﻿Department family,Entity,Date of payment,Expense type,Expense area,Supplier,Transaction number,Amount in Sterling,Supplier VAT Registration Number
Department of Health,Guys and St Thomas NHS Foundation Trust,22/12/2021,(80200) Drug Costs,(id:42134) Pathology,CSL BEHRING UK LIMITED,id:14740952   ,    10098.00
Department of Health,Guys and St Thomas NHS Foundation Trust,23/12/2021,(82600) Uniforms & Clothing,(id:41905) TAP,NHS SUPPLY CHAIN (MAIDSTONE),id:14704159    ,  49.68
Department of Health,Guys and St Thomas NHS Foundation Trust,23/12/2021,(81100) Dressings,(id:41905) TAP,NHS SUPPLY CHAIN (MAIDSTONE),id:14704159    , 119.57
Department of Health,Guys and St Thomas NHS Foundation Trust,17/12/2021,(81200) Medical Surgical Supplies & Equipment,(id:41907) TAP,SMITHS MEDICAL INTERNATIONAL LTD:69519000,id:14712561   , 937.13
Department of Health,Guys and St Thomas NHS Foundation Trust,10/12/2021,(82600) Uniforms & Clothing,(id:41907) TAP,NHS SUPPLY CHAIN (MAIDSTONE),id:14665974    ,   2.88
Department of Health,Guys and St Thomas NHS Foundation Trust,23/12/2021,(82600) Uniforms & Clothing,(id:41907) TAP,NHS SUPPLY CHAIN (MAIDSTONE),id:14704159    ,  12.96
Department of Health,Guys and St Thomas NHS Foundation Trust,10/12/2021,(50562) Qualified Nursing Staff,(id:41918) TAP,MEDICSPRO LTD,id:14709425,1240.25
Department of Health,Guys and St Thomas NHS Foundation Trust,10/12/2021,(82800) Bedding & Linen,(id:41916) TAP,NHS SUPPLY CHAIN (MAIDSTONE),id:14665974   ,  75.23
Department of Health,Guys and St Thomas NHS Foundation Trust,10/12/2021,(83400) Office Equipment,(id:41916) TAP,NHS SUPPLY CHAIN (MAIDSTONE),id:14665974  , 470.60
Department of Health,Guys and St Thomas NHS Foundation Trust,17/12/2021,(84400) Transport,(id:5150419) TAP,CITYSPRINT (UK) LTD,id:14720868 ,    -3416.05
Department of Health,Guys and St Thomas NHS Foundation Trust,10/12/2021,(82700) Uniforms & Clothing,(id:41921) TAP,NHS SUPPLY CHAIN (MAIDSTONE),id:14665974    , 743.76
Department of Health,Guys and St Thomas NHS Foundation Trust,23/12/2021,(81275) Medical Surgical Supplies & Equipment,(id:41922) TAP,NHS SUPPLY CHAIN (MAIDSTONE),id:14704159 , 375.96
Department of Health,Guys and St Thomas NHS Foundation Trust,10/12/2021,(81700) Lab Equipment Purchase,(id:41924) TAP,NHS SUPPLY CHAIN (MAIDSTONE),id:14665974 ,  56.97
Department of Health,Guys and St Thomas NHS Foundation Trust,22/12/2021,(81275) Medical Surgical Supplies & Equipment,(id:41924) TAP,NHS SUPPLY CHAIN (MAIDSTONE),id:14687496 , 115.68
Department of Health,Guys and St Thomas NHS Foundation Trust,03/12/2021,(82600) Uniforms & Clothing,(id:41883) TAP,BUNZL HEALTHCARE,id:14647765 , 672.00
Department of Health,Guys and St Thomas NHS Foundation Trust,22/12/2021,(82800) Bedding & Linen,(id:41883) TAP,NHS SUPPLY CHAIN (MAIDSTONE),id:14687496   , 133.83
Department of Health,Guys and St Thomas NHS Foundation Trust,23/12/2021,(82800) Bedding & Linen,(id:41883) TAP,NHS SUPPLY CHAIN (MAIDSTONE),id:14704159   , 161.71
Department of Health,Guys and St Thomas NHS Foundation Trust,10/12/2021,(82800) Bedding & Linen,(id:41883) TAP,NHS SUPPLY CHAIN (MAIDSTONE),id:14665974   ,  85.14
Department of Health,Guys and St Thomas NHS Foundation Trust,22/12/2021,(81100) Dressings,(id:41883) TAP,ELIS UK LIMITED,id:14740905  , 988.86
Department of Health,Guys and St Thomas NHS Foundation Trust,22/12/2021,(81100) Dressings,(id:41883) TAP,ELIS UK LIMITED,id:14735654  , 704.76
Department of Health,Guys and St Thomas NHS Foundation Trust,10/12/2021,(81100) Dressings,(id:41883) TAP,NHS SUPPLY CHAIN (MAIDSTONE),id:14665974    ,1069.69
Department of Health,Guys and St Thomas NHS Foundation Trust,23/12/2021,(81200) Medical Surgical Supplies & Equipment,(id:41883) TAP,NHS SUPPLY CHAIN (MAIDSTONE),id:14704159 ,2500.31
Department of Health,Guys and St Thomas NHS Foundation Trust,03/12/2021,(81200) Medical Surgical Supplies & Equipment,(id:41883) TAP,JOHNSON & JOHNSON MEDICAL LTD,id:14638008,  98.12
Department of Health,Guys and St Thomas NHS Foundation Trust,22/12/2021,(82000) Provisions & Kitchens,(id:41883) TAP,NHS SUPPLY CHAIN (MAIDSTONE),id:14687496  ,  81.02
Department of Health,Guys and St Thomas NHS Foundation Trust,23/12/2021,(82000) Provisions & Kitchens,(id:41883) TAP,NHS SUPPLY CHAIN (MAIDSTONE),id:14704159  ,  29.86
Department of Health,Guys and St Thomas NHS Foundation Trust,10/12/2021,(82000) Provisions & Kitchens,(id:41883) TAP,NHS SUPPLY CHAIN (MAIDSTONE),id:14665974  ,  31.37
Department of Health,Guys and St Thomas NHS Foundation Trust,03/12/2021,(50562) Qualified Nursing Staff,(id:41883) TAP,YOUR WORLD RECRUITMENT LIMITED(YOUR WORLD HEALTHCARE),id:14670911, 622.44
Department of Health,Guys and St Thomas NHS Foundation Trust,10/12/2021,(50562) Qualified Nursing Staff,(id:41883) TAP,YOUR WORLD RECRUITMENT LIMITED(YOUR WORLD HEALTHCARE),id:14711215, 556.92
Department of Health,Guys and St Thomas NHS Foundation Trust,22/12/2021,(81100) Dressings,(id:2549419) TAP,NHS SUPPLY CHAIN (MAIDSTONE),id:14687496  , 105.92
Department of Health,Guys and St Thomas NHS Foundation Trust,23/12/2021,(83400) Office Equipment,(id:41897) TAP,NHS SUPPLY CHAIN (MAIDSTONE),id:14704159  ,1829.02
Department of Health,Guys and St Thomas NHS Foundation Trust,22/12/2021,(81200) Medical Surgical Supplies & Equipment,(id:41897) TAP,NHS SUPPLY CHAIN (MAIDSTONE),id:14687496 ,2217.55
Department of Health,Guys and St Thomas NHS Foundation Trust,23/12/2021,(81200) Medical Surgical Supplies & Equipment,(id:41897) TAP,FREELANCE SURGICAL PROMOTIONS,id:14748856, 720.00
Department of Health,Guys and St Thomas NHS Foundation Trust,22/12/2021,(81100) Dressings,(id:41897) TAP,ELIS UK LIMITED,id:14740799  , 576.15
Department of Health,Guys and St Thomas NHS Foundation Trust,22/12/2021,(81100) Dressings,(id:41897) TAP,ELIS UK LIMITED,id:14735034  , 822.00
Department of Health,Guys and St Thomas NHS Foundation Trust,22/12/2021,(81100) Dressings,(id:41897) TAP,ELIS UK LIMITED,id:14740534  , 814.92
Department of Health,Guys and St Thomas NHS Foundation Trust,22/12/2021,(81100) Dressings,(id:41894) TAP,ELIS UK LIMITED,id:14734734  , 461.20
Department of Health,Guys and St Thomas NHS Foundation Trust,22/12/2021,(82800) Bedding & Linen,(id:41894) TAP,NHS SUPPLY CHAIN (MAIDSTONE),id:14687496   ,   5.68
Department of Health,Guys and St Thomas NHS Foundation Trust,23/12/2021,(82800) Bedding & Linen,(id:41894) TAP,NHS SUPPLY CHAIN (MAIDSTONE),id:14704159   ,  11.36
Department of Health,Guys and St Thomas NHS Foundation Trust,23/12/2021,(82600) Uniforms & Clothing,(id:41894) TAP,NHS SUPPLY CHAIN (MAIDSTONE),id:14704159    , 144.91
Department of Health,Guys and St Thomas NHS Foundation Trust,22/12/2021,(83400) Office Equipment,(id:41894) TAP,NHS SUPPLY CHAIN (MAIDSTONE),id:14687496  , 104.28
Department of Health,Guys and St Thomas NHS Foundation Trust,22/12/2021,(81200) Medical Surgical Supplies & Equipment,(id:41892) TAP,NHS SUPPLY CHAIN (MAIDSTONE),id:14687496 ,   4.10
Department of Health,Guys and St Thomas NHS Foundation Trust,22/12/2021,(81200) Medical Surgical Supplies & Equipment,(id:41963) Gastrointestinal Medicine & Surgery,INTUITIVE SURGICAL LTD,id:14731403,    15000.00
Department of Health,Guys and St Thomas NHS Foundation Trust,23/12/2021,(82000) Provisions & Kitchens,(id:41958) Gastrointestinal Medicine & Surgery,NHS SUPPLY CHAIN (MAIDSTONE),id:14704159,  78.02
Department of Health,Guys and St Thomas NHS Foundation Trust,22/12/2021,(83400) Office Equipment,(id:41958) Gastrointestinal Medicine & Surgery,NHS SUPPLY CHAIN (MAIDSTONE),id:14687496,  67.26
Department of Health,Guys and St Thomas NHS Foundation Trust,23/12/2021,(81200) Medical Surgical Supplies & Equipment,(id:41958) Gastrointestinal Medicine & Surgery,NHS SUPPLY CHAIN (MAIDSTONE),id:14704159    ,1292.99
Department of Health,Guys and St Thomas NHS Foundation Trust,17/12/2021,(50552) Qualified Nursing Staff,(id:41958) Gastrointestinal Medicine & Surgery,CARE PROVIDERS HEALTHCARE,id:14726777 , 362.97
Department of Health,Guys and St Thomas NHS Foundation Trust,17/12/2021,(50552) Qualified Nursing Staff,(id:41958) Gastrointestinal Medicine & Surgery,CARE PROVIDERS HEALTHCARE,id:14726550 , 387.21
Department of Health,Guys and St Thomas NHS Foundation Trust,03/12/2021,(50552) Qualified Nursing Staff,(id:41958) Gastrointestinal Medicine & Surgery,CARE PROVIDERS HEALTHCARE,id:14687153 , 349.67
Department of Health,Guys and St Thomas NHS Foundation Trust,22/12/2021,(50522) Unqualified Nursing Staff,(id:41958) Gastrointestinal Medicine & Surgery,GLOBE LOCUMS LTD,id:14747278   , 283.75
Department of Health,Guys and St Thomas NHS Foundation Trust,17/12/2021,(50522) Unqualified Nursing Staff,(id:41958) Gastrointestinal Medicine & Surgery,MSI GROUP LTD,id:14726568 , 283.28
Department of Health,Guys and St Thomas NHS Foundation Trust,03/12/2021,(50522) Unqualified Nursing Staff,(id:41958) Gastrointestinal Medicine & Surgery,MSI GROUP LTD,id:14687167 ,1617.43
Department of Health,Guys and St Thomas NHS Foundation Trust,23/12/2021,(81200) Medical Surgical Supplies & Equipment,(id:41959) Gastrointestinal Medicine & Surgery,NHS SUPPLY CHAIN (MAIDSTONE),id:14704159    ,    22108.80
Department of Health,Guys and St Thomas NHS Foundation Trust,22/12/2021,(81200) Medical Surgical Supplies & Equipment,(id:41943) Gastrointestinal Medicine & Surgery,NHS SUPPLY CHAIN (MAIDSTONE),id:14687496    ,  18.00
Department of Health,Guys and St Thomas NHS Foundation Trust,23/12/2021,(82000) Provisions & Kitchens,(id:41954) Gastrointestinal Medicine & Surgery,NHS SUPPLY CHAIN (MAIDSTONE),id:14704159, 412.32
Department of Health,Guys and St Thomas NHS Foundation Trust,10/12/2021,(82000) Provisions & Kitchens,(id:41954) Gastrointestinal Medicine & Surgery,NHS SUPPLY CHAIN (MAIDSTONE),id:14665974,  55.59
Department of Health,Guys and St Thomas NHS Foundation Trust,03/12/2021,(50522) Unqualified Nursing Staff,(id:41954) Gastrointestinal Medicine & Surgery,MSI GROUP LTD,id:14692065 , 274.94
Department of Health,Guys and St Thomas NHS Foundation Trust,03/12/2021,(50522) Unqualified Nursing Staff,(id:41954) Gastrointestinal Medicine & Surgery,CARE PROVIDERS HEALTHCARE,id:14691775    , 283.45
Department of Health,Guys and St Thomas NHS Foundation Trust,10/12/2021,(81200) Medical Surgical Supplies & Equipment,(id:41954) Gastrointestinal Medicine & Surgery,NHS SUPPLY CHAIN (MAIDSTONE),id:14665974    ,1477.72
Department of Health,Guys and St Thomas NHS Foundation Trust,23/12/2021,(81200) Medical Surgical Supplies & Equipment,(id:41954) Gastrointestinal Medicine & Surgery,NHS SUPPLY CHAIN (MAIDSTONE),id:14704159    ,1767.70
Department of Health,Guys and St Thomas NHS Foundation Trust,17/12/2021,(50552) Qualified Nursing Staff,(id:41954) Gastrointestinal Medicine & Surgery,CONTINENTAL NURSE LTD,id:14729434,2938.47
Department of Health,Guys and St Thomas NHS Foundation Trust,22/12/2021,(50552) Qualified Nursing Staff,(id:41954) Gastrointestinal Medicine & Surgery,CONTINENTAL NURSE LTD,id:14746914, 344.98
Department of Health,Guys and St Thomas NHS Foundation Trust,03/12/2021,(50552) Qualified Nursing Staff,(id:41954) Gastrointestinal Medicine & Surgery,CARE PROVIDERS HEALTHCARE,id:14687274 , 741.44
Department of Health,Guys and St Thomas NHS Foundation Trust,10/12/2021,(50552) Qualified Nursing Staff,(id:41954) Gastrointestinal Medicine & Surgery,CARE PROVIDERS HEALTHCARE,id:14711091 , 687.90
Department of Health,Guys and St Thomas NHS Foundation Trust,03/12/2021,(81000) Surgical Appliances,(id:41955) Gastrointestinal Medicine & Surgery,TALAR MADE ORTHOTICS LTD,id:14682415 ,  16.49
Department of Health,Guys and St Thomas NHS Foundation Trust,22/12/2021,(81200) Medical Surgical Supplies & Equipment,(id:5182419) Gastrointestinal Medicine & Surgery,INTUITIVE SURGICAL LTD,id:14731555   ,1304.40
Department of Health,Guys and St Thomas NHS Foundation Trust,22/12/2021,(81200) Medical Surgical Supplies & Equipment,(id:5182419) Gastrointestinal Medicine & Surgery,INTUITIVE SURGICAL LTD,id:14731499   ,2905.20
Department of Health,Guys and St Thomas NHS Foundation Trust,17/12/2021,(81200) Medical Surgical Supplies & Equipment,(id:5182419) Gastrointestinal Medicine & Surgery,LAWMED LTD,id:14722666, 808.20
Department of Health,Guys and St Thomas NHS Foundation Trust,17/12/2021,(81200) Medical Surgical Supplies & Equipment,(id:5182419) Gastrointestinal Medicine & Surgery,INTUITIVE SURGICAL LTD,id:14711817   ,2460.00
Department of Health,Guys and St Thomas NHS Foundation Trust,22/12/2021,(81200) Medical Surgical Supplies & Equipment,(id:41949) Gastrointestinal Medicine & Surgery,OLYMPUS KEYMED,id:14740939   ,2316.92
Department of Health,Guys and St Thomas NHS Foundation Trust,17/12/2021,(81200) Medical Surgical Supplies & Equipment,(id:41949) Gastrointestinal Medicine & Surgery,HILL-ROM LTD,id:14722054,4800.00
Department of Health,Guys and St Thomas NHS Foundation Trust,03/12/2021,(81200) Medical Surgical Supplies & Equipment,(id:41949) Gastrointestinal Medicine & Surgery,JOHNSON & JOHNSON MEDICAL LTD,id:14643653   , 757.26
Department of Health,Guys and St Thomas NHS Foundation Trust,03/12/2021,(81200) Medical Surgical Supplies & Equipment,(id:41949) Gastrointestinal Medicine & Surgery,CRYOLIFE EUROPA LTD,id:14687641   , 895.20
Department of Health,Guys and St Thomas NHS Foundation Trust,03/12/2021,(81200) Medical Surgical Supplies & Equipment,(id:41949) Gastrointestinal Medicine & Surgery,JOHNSON & JOHNSON MEDICAL LTD,id:14575816   ,6360.00
Department of Health,Guys and St Thomas NHS Foundation Trust,10/12/2021,(81200) Medical Surgical Supplies & Equipment,(id:41949) Gastrointestinal Medicine & Surgery,BARD LTD,id:14670038    , 685.63
Department of Health,Guys and St Thomas NHS Foundation Trust,23/12/2021,(81700) Lab Equipment Purchase,(id:2367419) Gastrointestinal Medicine & Surgery,NHS SUPPLY CHAIN (MAIDSTONE),id:14704159  ,   5.90
Department of Health,Guys and St Thomas NHS Foundation Trust,22/12/2021,(82800) Bedding & Linen,(id:41917) Gastrointestinal Medicine & Surgery,NHS SUPPLY CHAIN (MAIDSTONE),id:14687496 , 154.37
Department of Health,Guys and St Thomas NHS Foundation Trust,10/12/2021,(81235) Medical Surgical Supplies & Equipment,(id:41917) Gastrointestinal Medicine & Surgery,BOSTON SCIENTIFIC LTD,id:14669963 , 386.40
Department of Health,Guys and St Thomas NHS Foundation Trust,22/12/2021,(81200) Medical Surgical Supplies & Equipment,(id:41917) Gastrointestinal Medicine & Surgery,DIAGMED HEALTHCARE LTD,id:14731634,2898.00
Department of Health,Guys and St Thomas NHS Foundation Trust,22/12/2021,(81200) Medical Surgical Supplies & Equipment,(id:41917) Gastrointestinal Medicine & Surgery,OLYMPUS KEYMED,id:14740937   ,1410.00
Department of Health,Guys and St Thomas NHS Foundation Trust,17/12/2021,(81200) Medical Surgical Supplies & Equipment,(id:41917) Gastrointestinal Medicine & Surgery,FRESENIUS KABI LTD,id:14670020    ,1366.56
Department of Health,Guys and St Thomas NHS Foundation Trust,10/12/2021,(81400) Medical Surgical Supplies & Equipment,(id:41917) Gastrointestinal Medicine & Surgery,NHS SUPPLY CHAIN (MAIDSTONE),id:14665974    ,4171.60
Department of Health,Guys and St Thomas NHS Foundation Trust,03/12/2021,(81200) Medical Surgical Supplies & Equipment,(id:41942) Gastrointestinal Medicine & Surgery,OFFICE FURNITURE ONLINE,id:14691484    , 508.80
Department of Health,Guys and St Thomas NHS Foundation Trust,10/12/2021,(81200) Medical Surgical Supplies & Equipment,(id:1064419) Gastrointestinal Medicine & Surgery,NHS SUPPLY CHAIN (MAIDSTONE),id:14665974  ,1181.83
Department of Health,Guys and St Thomas NHS Foundation Trust,22/12/2021,(84500) Establishment,(id:169405) Cancer Strategy,CANCER RESEARCH UK,id:14740771  ,2100.00
Department of Health,Guys and St Thomas NHS Foundation Trust,23/12/2021,(55632) Maintenance Staff,(id:42423) Transplant Renal and Urology,COMPUTACENTER UK LTD,id:14747886    , 553.33
Department of Health,Guys and St Thomas NHS Foundation Trust,10/12/2021,(82800) Bedding & Linen,(id:42419) Transplant Renal and Urology,NHS SUPPLY CHAIN (MAIDSTONE),id:14665974   , 157.26
Department of Health,Guys and St Thomas NHS Foundation Trust,10/12/2021,(83400) Office Equipment,(id:42449) Transplant Renal and Urology,NHS SUPPLY CHAIN (MAIDSTONE),id:14665974  ,  72.86
Department of Health,Guys and St Thomas NHS Foundation Trust,03/12/2021,(81230) Medical Surgical Supplies & Equipment,(id:42449) Transplant Renal and Urology,LINC MEDICAL SYSTEMS  LTD,id:14664795    , 673.20
Department of Health,Guys and St Thomas NHS Foundation Trust,23/12/2021,(81225) Medical Surgical Supplies & Equipment,(id:42449) Transplant Renal and Urology,NHS SUPPLY CHAIN (MAIDSTONE),id:14704159 ,  88.68
Department of Health,Guys and St Thomas NHS Foundation Trust,03/12/2021,(81200) Medical Surgical Supplies & Equipment,(id:42450) Transplant Renal and Urology,MEDTRONIC LTD,id:14643644 , 465.59
Department of Health,Guys and St Thomas NHS Foundation Trust,10/12/2021,(50522) Unqualified Nursing Staff,(id:42442) Transplant Renal and Urology,CARE PROVIDERS HEALTHCARE,id:14709816 , 252.92
Department of Health,Guys and St Thomas NHS Foundation Trust,10/12/2021,(83400) Office Equipment,(id:42442) Transplant Renal and Urology,NHS SUPPLY CHAIN (MAIDSTONE),id:14665974  , 145.29
Department of Health,Guys and St Thomas NHS Foundation Trust,22/12/2021,(81700) Lab Equipment Purchase,(id:42442) Transplant Renal and Urology,NHS SUPPLY CHAIN (MAIDSTONE),id:14687496 ,  41.87
Department of Health,Guys and St Thomas NHS Foundation Trust,10/12/2021,(82800) Bedding & Linen,(id:42443) Transplant Renal and Urology,NHS SUPPLY CHAIN (MAIDSTONE),id:14665974   , 167.25
Department of Health,Guys and St Thomas NHS Foundation Trust,03/12/2021,(50522) Unqualified Nursing Staff,(id:42443) Transplant Renal and Urology,MSI GROUP LTD,id:14691682   , 258.37
Department of Health,Guys and St Thomas NHS Foundation Trust,23/12/2021,(81200) Medical Surgical Supplies & Equipment,(id:42444) Transplant Renal and Urology,STRYKER UK LTD,id:14712377, 504.00
Department of Health,Guys and St Thomas NHS Foundation Trust,03/12/2021,(81200) Medical Surgical Supplies & Equipment,(id:42444) Transplant Renal and Urology,BOSTON SCIENTIFIC LTD,id:14410747   ,1868.16
Department of Health,Guys and St Thomas NHS Foundation Trust,03/12/2021,(81200) Medical Surgical Supplies & Equipment,(id:42444) Transplant Renal and Urology,BOSTON SCIENTIFIC LTD,id:14507547   ,1871.76
Department of Health,Guys and St Thomas NHS Foundation Trust,10/12/2021,(81200) Medical Surgical Supplies & Equipment,(id:42444) Transplant Renal and Urology,BOSTON SCIENTIFIC LTD,id:14648743   , 833.76
Department of Health,Guys and St Thomas NHS Foundation Trust,03/12/2021,(81235) Medical Surgical Supplies & Equipment,(id:42444) Transplant Renal and Urology,BOSTON SCIENTIFIC LTD,id:14598847   , 269.00
Department of Health,Guys and St Thomas NHS Foundation Trust,22/12/2021,(81200) Medical Surgical Supplies & Equipment,(id:42446) Transplant Renal and Urology,MEDTRONIC LTD,id:14695731 , 986.54
Department of Health,Guys and St Thomas NHS Foundation Trust,03/12/2021,(81200) Medical Surgical Supplies & Equipment,(id:42446) Transplant Renal and Urology,BOSTON SCIENTIFIC LTD,id:14551881   , 843.84
Department of Health,Guys and St Thomas NHS Foundation Trust,03/12/2021,(81200) Medical Surgical Supplies & Equipment,(id:42446) Transplant Renal and Urology,KARL STORZ ENDOSCOPY UK LTD,id:14682234  ,  16.20
Department of Health,Guys and St Thomas NHS Foundation Trust,03/12/2021,(81200) Medical Surgical Supplies & Equipment,(id:42446) Transplant Renal and Urology,KARL STORZ ENDOSCOPY UK LTD,id:14682414  ,  16.20
Department of Health,Guys and St Thomas NHS Foundation Trust,03/12/2021,(81200) Medical Surgical Supplies & Equipment,(id:42446) Transplant Renal and Urology,BOSTON SCIENTIFIC LTD,id:14669969   ,2376.00
Department of Health,Guys and St Thomas NHS Foundation Trust,03/12/2021,(81200) Medical Surgical Supplies & Equipment,(id:42446) Transplant Renal and Urology,POLAR SPEED DISTRIBUTION LTD,id:14686880 , 800.00
Department of Health,Guys and St Thomas NHS Foundation Trust,10/12/2021,(81200) Medical Surgical Supplies & Equipment,(id:42446) Transplant Renal and Urology,RICHARD WOLF U K  LTD,id:14660175   ,8640.00
Department of Health,Guys and St Thomas NHS Foundation Trust,10/12/2021,(81200) Medical Surgical Supplies & Equipment,(id:42446) Transplant Renal and Urology,BOSTON SCIENTIFIC LTD,id:14695643   ,2376.00
Department of Health,Guys and St Thomas NHS Foundation Trust,03/12/2021,(81400) Medical Surgical Supplies & Equipment,(id:42446) Transplant Renal and Urology,KARL STORZ ENDOSCOPY UK LTD,id:14682396  ,1209.55
Department of Health,Guys and St Thomas NHS Foundation Trust,10/12/2021,(81400) Medical Surgical Supplies & Equipment,(id:42446) Transplant Renal and Urology,KARL STORZ ENDOSCOPY UK LTD,id:14682394  , 842.35
Department of Health,Guys and St Thomas NHS Foundation Trust,10/12/2021,(81400) Medical Surgical Supplies & Equipment,(id:42446) Transplant Renal and Urology,KARL STORZ ENDOSCOPY UK LTD,id:14706414  , 842.35
Department of Health,Guys and St Thomas NHS Foundation Trust,22/12/2021,(81500) X Ray Equipment Purchase,(id:42446) Transplant Renal and Urology,NHS SUPPLY CHAIN (MAIDSTONE),id:14687496    ,6468.00
Department of Health,Guys and St Thomas NHS Foundation Trust,17/12/2021,(89000) Other - Training courses and conferences,(id:42447) Transplant Renal and Urology,KINGS COLLEGE LONDON:03529700,id:14589861  ,5835.00
Department of Health,Guys and St Thomas NHS Foundation Trust,17/12/2021,(81200) Medical Surgical Supplies & Equipment,(id:42420) Transplant Renal and Urology,FRESENIUS MEDICAL CARE UK LTD,id:14696854,3088.80
Department of Health,Guys and St Thomas NHS Foundation Trust,23/12/2021,(81200) Medical Surgical Supplies & Equipment,(id:42420) Transplant Renal and Urology,NHS SUPPLY CHAIN (MAIDSTONE),id:14704159 ,3310.62
Department of Health,Guys and St Thomas NHS Foundation Trust,03/12/2021,(81200) Medical Surgical Supplies & Equipment,(id:42420) Transplant Renal and Urology,FRESENIUS MEDICAL CARE UK LTD,id:14686563, 589.30
Department of Health,Guys and St Thomas NHS Foundation Trust,03/12/2021,(81200) Medical Surgical Supplies & Equipment,(id:42420) Transplant Renal and Urology,FRESENIUS MEDICAL CARE UK LTD,id:14685974, 564.68
Department of Health,Guys and St Thomas NHS Foundation Trust,03/12/2021,(81200) Medical Surgical Supplies & Equipment,(id:42420) Transplant Renal and Urology,FRESENIUS MEDICAL CARE UK LTD,id:14686489,1043.21
Department of Health,Guys and St Thomas NHS Foundation Trust,10/12/2021,(81200) Medical Surgical Supplies & Equipment,(id:42420) Transplant Renal and Urology,NHS SUPPLY CHAIN (MAIDSTONE),id:14665974 ,4467.09
Department of Health,Guys and St Thomas NHS Foundation Trust,10/12/2021,(82800) Bedding & Linen,(id:42420) Transplant Renal and Urology,NHS SUPPLY CHAIN (MAIDSTONE),id:14665974   , 386.35
Department of Health,Guys and St Thomas NHS Foundation Trust,03/12/2021,(81100) Dressings,(id:42420) Transplant Renal and Urology,JOHNSON & JOHNSON MEDICAL LTD,id:14643679   , 694.70
Department of Health,Guys and St Thomas NHS Foundation Trust,23/12/2021,(81100) Dressings,(id:42435) Transplant Renal and Urology,NHS SUPPLY CHAIN (MAIDSTONE),id:14704159    , 536.71
Department of Health,Guys and St Thomas NHS Foundation Trust,10/12/2021,(81200) Medical Surgical Supplies & Equipment,(id:42435) Transplant Renal and Urology,NHS SUPPLY CHAIN (MAIDSTONE),id:14665974 , 821.61
Department of Health,Guys and St Thomas NHS Foundation Trust,17/12/2021,(50552) Qualified Nursing Staff,(id:42435) Transplant Renal and Urology,MSI GROUP LTD,id:14726971, 308.93
Department of Health,Guys and St Thomas NHS Foundation Trust,17/12/2021,(50552) Qualified Nursing Staff,(id:42435) Transplant Renal and Urology,MSI GROUP LTD,id:14726575, 318.21
Department of Health,Guys and St Thomas NHS Foundation Trust,23/12/2021,(81400) Medical Surgical Supplies & Equipment,(id:42433) Transplant Renal and Urology,SURGICAL HOLDINGS LTD,id:14748715   , 675.00
Department of Health,Guys and St Thomas NHS Foundation Trust,10/12/2021,(82800) Bedding & Linen,(id:42428) Transplant Renal and Urology,NHS SUPPLY CHAIN (MAIDSTONE),id:14665974   ,  21.56
Department of Health,Guys and St Thomas NHS Foundation Trust,10/12/2021,(81200) Medical Surgical Supplies & Equipment,(id:42430) Transplant Renal and Urology,LINC MEDICAL SYSTEMS  LTD,id:14686875    ,7928.40
Department of Health,Guys and St Thomas NHS Foundation Trust,17/12/2021,(81200) Medical Surgical Supplies & Equipment,(id:42422) Transplant Renal and Urology,NXSTAGE MEDICAL UK LIMITED,id:14712060   ,1084.98
Department of Health,Guys and St Thomas NHS Foundation Trust,03/12/2021,(81200) Medical Surgical Supplies & Equipment,(id:42422) Transplant Renal and Urology,NXSTAGE MEDICAL UK LIMITED,id:14638474   ,-777.46
Department of Health,Guys and St Thomas NHS Foundation Trust,10/12/2021,(81200) Medical Surgical Supplies & Equipment,(id:42422) Transplant Renal and Urology,NXSTAGE MEDICAL UK LIMITED,id:14706453   ,1346.64
Department of Health,Guys and St Thomas NHS Foundation Trust,10/12/2021,(81200) Medical Surgical Supplies & Equipment,(id:42422) Transplant Renal and Urology,FRESENIUS MEDICAL CARE UK LTD,id:13870657, 576.08
Department of Health,Guys and St Thomas NHS Foundation Trust,10/12/2021,(81200) Medical Surgical Supplies & Equipment,(id:42422) Transplant Renal and Urology,NXSTAGE MEDICAL UK LIMITED,id:14706466   , 664.15
Department of Health,Guys and St Thomas NHS Foundation Trust,10/12/2021,(81200) Medical Surgical Supplies & Equipment,(id:42422) Transplant Renal and Urology,NXSTAGE MEDICAL UK LIMITED,id:14706461   ,1116.00
Department of Health,Guys and St Thomas NHS Foundation Trust,22/12/2021,(81200) Medical Surgical Supplies & Equipment,(id:42422) Transplant Renal and Urology,NHS SUPPLY CHAIN (MAIDSTONE),id:14687496 , 331.98
Department of Health,Guys and St Thomas NHS Foundation Trust,03/12/2021,(81200) Medical Surgical Supplies & Equipment,(id:42421) Transplant Renal and Urology,BAXTER HEALTHCARE LTD,id:14588459   , 928.04
Department of Health,Guys and St Thomas NHS Foundation Trust,17/12/2021,(84400) Transport,(id:42421) Transplant Renal and Urology,CITYSPRINT (UK) LTD,id:14637078   ,    11733.08
Department of Health,Guys and St Thomas NHS Foundation Trust,10/12/2021,(81200) Medical Surgical Supplies & Equipment,(id:42438) Transplant Renal and Urology,NHS SUPPLY CHAIN (MAIDSTONE),id:14665974 ,  82.66
Department of Health,Guys and St Thomas NHS Foundation Trust,10/12/2021,(86300) Healthcare from non-NHS bodies,(id:42438) Transplant Renal and Urology,DIAVERUM UK LTD,id:14708974 ,    62148.24
Department of Health,Guys and St Thomas NHS Foundation Trust,10/12/2021,(86300) Healthcare from non-NHS bodies,(id:42437) Transplant Renal and Urology,DIAVERUM UK LTD,id:14709000 ,    44849.34
Department of Health,Guys and St Thomas NHS Foundation Trust,23/12/2021,(81200) Medical Surgical Supplies & Equipment,(id:42427) Transplant Renal and Urology,NHS SUPPLY CHAIN (MAIDSTONE),id:14704159 ,  51.06
Department of Health,Guys and St Thomas NHS Foundation Trust,22/12/2021,(81200) Medical Surgical Supplies & Equipment,(id:42427) Transplant Renal and Urology,NHS SUPPLY CHAIN (MAIDSTONE),id:14687496 ,  38.70
Department of Health,Guys and St Thomas NHS Foundation Trust,22/12/2021,(81200) Medical Surgical Supplies & Equipment,(id:4622425) Transplant Renal and Urology,FRESENIUS MEDICAL CARE RENAL SERVICES LT,id:14711489  , 914.86
Department of Health,Guys and St Thomas NHS Foundation Trust,22/12/2021,(81200) Medical Surgical Supplies & Equipment,(id:4622425) Transplant Renal and Urology,FRESENIUS MEDICAL CARE RENAL SERVICES LT,id:14711472  ,1280.16
Department of Health,Guys and St Thomas NHS Foundation Trust,22/12/2021,(81100) Dressings,(id:42481) Surgery,NHS SUPPLY CHAIN (MAIDSTONE),id:14687496,   3.29
Department of Health,Guys and St Thomas NHS Foundation Trust,10/12/2021,(83400) Office Equipment,(id:42482) Surgery,NHS SUPPLY CHAIN (MAIDSTONE),id:14665974   ,  34.27
Department of Health,Guys and St Thomas NHS Foundation Trust,23/12/2021,(81100) Dressings,(id:42483) Surgery,NHS SUPPLY CHAIN (MAIDSTONE),id:14704159,  18.00
Department of Health,Guys and St Thomas NHS Foundation Trust,03/12/2021,(81200) Medical Surgical Supplies & Equipment,(id:42484) Surgery,ZIMMER BIOMET UK LTD,id:14686862,1629.60
Department of Health,Guys and St Thomas NHS Foundation Trust,10/12/2021,(81200) Medical Surgical Supplies & Equipment,(id:42484) Surgery,Q MEDICAL TECHNOLOGIES LTD,id:14641674    ,5271.60
Department of Health,Guys and St Thomas NHS Foundation Trust,10/12/2021,(81200) Medical Surgical Supplies & Equipment,(id:42484) Surgery,MOTIVA IMPLANTS UK LTD,id:14702860   , 891.00
Department of Health,Guys and St Thomas NHS Foundation Trust,10/12/2021,(81200) Medical Surgical Supplies & Equipment,(id:42484) Surgery,JOHNSON & JOHNSON MEDICAL LTD,id:14662794 , 920.34
Department of Health,Guys and St Thomas NHS Foundation Trust,23/12/2021,(81225) Medical Surgical Supplies & Equipment,(id:42484) Surgery,NHS SUPPLY CHAIN (MAIDSTONE),id:14704159  , 146.88
Department of Health,Guys and St Thomas NHS Foundation Trust,23/12/2021,(83400) Office Equipment,(id:42485) Surgery,NHS SUPPLY CHAIN (MAIDSTONE),id:14704159   , 946.42
Department of Health,Guys and St Thomas NHS Foundation Trust,22/12/2021,(82700) Uniforms & Clothing,(id:42485) Surgery,NHS SUPPLY CHAIN (MAIDSTONE),id:14687496,  31.68
Department of Health,Guys and St Thomas NHS Foundation Trust,10/12/2021,(81225) Medical Surgical Supplies & Equipment,(id:42485) Surgery,NHS SUPPLY CHAIN (MAIDSTONE),id:14665974  ,   9.18
Department of Health,Guys and St Thomas NHS Foundation Trust,03/12/2021,(81000) Surgical Appliances,(id:42485) Surgery,MEDI UK LTD,id:14680774  ,  95.78
Department of Health,Guys and St Thomas NHS Foundation Trust,22/12/2021,(82000) Provisions & Kitchens,(id:42485) Surgery,NHS SUPPLY CHAIN (MAIDSTONE),id:14687496   ,   8.10
Department of Health,Guys and St Thomas NHS Foundation Trust,10/12/2021,(81100) Dressings,(id:42485) Surgery,KCI MEDICAL LTD,id:14647280   , 819.60
Department of Health,Guys and St Thomas NHS Foundation Trust,10/12/2021,(81200) Medical Surgical Supplies & Equipment,(id:42485) Surgery,NHS SUPPLY CHAIN (MAIDSTONE),id:14665974  , 205.50
Department of Health,Guys and St Thomas NHS Foundation Trust,10/12/2021,(82600) Uniforms & Clothing,(id:42463) Surgery,NHS SUPPLY CHAIN (MAIDSTONE),id:14665974,   7.92
Department of Health,Guys and St Thomas NHS Foundation Trust,10/12/2021,(81200) Medical Surgical Supplies & Equipment,(id:42463) Surgery,BONESUPPORT AB,id:14674354 ,3912.00
Department of Health,Guys and St Thomas NHS Foundation Trust,22/12/2021,(81100) Dressings,(id:42463) Surgery,NHS SUPPLY CHAIN (MAIDSTONE),id:14687496,  40.96
Department of Health,Guys and St Thomas NHS Foundation Trust,22/12/2021,(81200) Medical Surgical Supplies & Equipment,(id:42464) Surgery,NHS SUPPLY CHAIN (MAIDSTONE),id:14687496  ,  25.44
Department of Health,Guys and St Thomas NHS Foundation Trust,23/12/2021,(81225) Medical Surgical Supplies & Equipment,(id:42465) Surgery,NHS SUPPLY CHAIN (MAIDSTONE),id:14704159  ,  55.08
Department of Health,Guys and St Thomas NHS Foundation Trust,10/12/2021,(81100) Dressings,(id:42465) Surgery,NHS SUPPLY CHAIN (MAIDSTONE),id:14665974, 126.10
Department of Health,Guys and St Thomas NHS Foundation Trust,22/12/2021,(81200) Medical Surgical Supplies & Equipment,(id:42466) Surgery,JOINT OPERATIONS (UK) LLP,id:14747523,1346.40
Department of Health,Guys and St Thomas NHS Foundation Trust,03/12/2021,(81000) Surgical Appliances,(id:42466) Surgery,TALAR MADE ORTHOTICS LTD,id:14688800    ,  87.31
Department of Health,Guys and St Thomas NHS Foundation Trust,22/12/2021,(81200) Medical Surgical Supplies & Equipment,(id:42467) Surgery,LOCKDOWN MEDICAL LTD FORMERLY MANDACO 569 LTD T/A SURGICRAFTSURGICRAFT,id:14731814,2047.20
Department of Health,Guys and St Thomas NHS Foundation Trust,17/12/2021,(81200) Medical Surgical Supplies & Equipment,(id:42467) Surgery,JOHNSON & JOHNSON MEDICAL LTD,id:14687756 , 691.92
Department of Health,Guys and St Thomas NHS Foundation Trust,17/12/2021,(81200) Medical Surgical Supplies & Equipment,(id:42467) Surgery,JOHNSON & JOHNSON MEDICAL LTD,id:14695690 ,1381.97
Department of Health,Guys and St Thomas NHS Foundation Trust,23/12/2021,(81200) Medical Surgical Supplies & Equipment,(id:42467) Surgery,NHS SUPPLY CHAIN (MAIDSTONE),id:14704159  , 244.12
Department of Health,Guys and St Thomas NHS Foundation Trust,03/12/2021,(81200) Medical Surgical Supplies & Equipment,(id:42467) Surgery,JOHNSON & JOHNSON MEDICAL LTD,id:14631939 ,2022.78
Department of Health,Guys and St Thomas NHS Foundation Trust,03/12/2021,(81200) Medical Surgical Supplies & Equipment,(id:42467) Surgery,JOHNSON & JOHNSON MEDICAL LTD,id:14628369 ,1347.08
Department of Health,Guys and St Thomas NHS Foundation Trust,22/12/2021,(81100) Dressings,(id:42467) Surgery,NHS SUPPLY CHAIN (MAIDSTONE),id:14687496,  52.46
Department of Health,Guys and St Thomas NHS Foundation Trust,23/12/2021,(81100) Dressings,(id:42459) Surgery,NHS SUPPLY CHAIN (MAIDSTONE),id:14704159,  99.38
Department of Health,Guys and St Thomas NHS Foundation Trust,22/12/2021,(81100) Dressings,(id:42459) Surgery,NHS SUPPLY CHAIN (MAIDSTONE),id:14687496,  45.56
Department of Health,Guys and St Thomas NHS Foundation Trust,03/12/2021,(83400) Office Equipment,(id:3821419) Cancer Supportive Services and R&D,SKYE CLOUD LTD,id:14692121   ,    12688.43
Department of Health,Guys and St Thomas NHS Foundation Trust,03/12/2021,(81700) Lab Equipment Purchase,(id:42276) Haematology Cellular Pathology and Supporting Services,DJB LABCARE LTD,id:14686795   ,6609.12
Department of Health,Guys and St Thomas NHS Foundation Trust,22/12/2021,(81200) Medical Surgical Supplies & Equipment,(id:42265) Haematology Cellular Pathology and Supporting Services,SCC PLC)SPECIALIST COMPUTER CENTRES,id:14727319   ,  90.00
Department of Health,Guys and St Thomas NHS Foundation Trust,10/12/2021,(81275) Medical Surgical Supplies & Equipment,(id:42265) Haematology Cellular Pathology and Supporting Services,NHS SUPPLY CHAIN (MAIDSTONE),id:14665974,  14.46
Department of Health,Guys and St Thomas NHS Foundation Trust,23/12/2021,(81255) Medical Surgical Supplies & Equipment,(id:42265) Haematology Cellular Pathology and Supporting Services,NHS SUPPLY CHAIN (MAIDSTONE),id:14704159,   3.46
Department of Health,Guys and St Thomas NHS Foundation Trust,17/12/2021,(82600) Uniforms & Clothing,(id:42267) Haematology Cellular Pathology and Supporting Services,CIRDAN PATHXL LTD,id:14725885    ,1800.00
Department of Health,Guys and St Thomas NHS Foundation Trust,17/12/2021,(81000) Surgical Appliances,(id:42267) Haematology Cellular Pathology and Supporting Services,MEDI UK LTD,id:14718235, 105.70
Department of Health,Guys and St Thomas NHS Foundation Trust,22/12/2021,(81200) Medical Surgical Supplies & Equipment,(id:42270) Haematology Cellular Pathology and Supporting Services,NHS SUPPLY CHAIN (MAIDSTONE),id:14687496,2041.33
Department of Health,Guys and St Thomas NHS Foundation Trust,17/12/2021,(81200) Medical Surgical Supplies & Equipment,(id:42270) Haematology Cellular Pathology and Supporting Services,TERUMO BCT EUROPE NV/SA  (PREVIOUSLY CARIDIAN),id:14704445  ,    11465.78
Department of Health,Guys and St Thomas NHS Foundation Trust,23/12/2021,(81100) Dressings,(id:42270) Haematology Cellular Pathology and Supporting Services,NHS SUPPLY CHAIN (MAIDSTONE),id:14704159   , 166.65
Department of Health,Guys and St Thomas NHS Foundation Trust,22/12/2021,(82700) Uniforms & Clothing,(id:42270) Haematology Cellular Pathology and Supporting Services,NHS SUPPLY CHAIN (MAIDSTONE),id:14687496   , 423.74
Department of Health,Guys and St Thomas NHS Foundation Trust,10/12/2021,(82000) Provisions & Kitchens,(id:42272) Haematology Cellular Pathology and Supporting Services,NHS SUPPLY CHAIN (MAIDSTONE),id:14665974 ,  33.45
Department of Health,Guys and St Thomas NHS Foundation Trust,23/12/2021,(83400) Office Equipment,(id:42272) Haematology Cellular Pathology and Supporting Services,NHS SUPPLY CHAIN (MAIDSTONE),id:14704159 ,  87.99
Department of Health,Guys and St Thomas NHS Foundation Trust,10/12/2021,(50200) Consultants,(id:42272) Haematology Cellular Pathology and Supporting Services,ST GEORGE'S UNIVERSITY HOSPITALS NHS FOUNDATION TRUST,id:14710915 ,6732.37
Department of Health,Guys and St Thomas NHS Foundation Trust,23/12/2021,(81100) Dressings,(id:42272) Haematology Cellular Pathology and Supporting Services,NHS SUPPLY CHAIN (MAIDSTONE),id:14704159   , 130.26
Department of Health,Guys and St Thomas NHS Foundation Trust,22/12/2021,(80205) Drug Costs,(id:42273) Haematology Cellular Pathology and Supporting Services,HEALTHCARE AT HOME LTD,id:14744534   ,6130.17
Department of Health,Guys and St Thomas NHS Foundation Trust,22/12/2021,(80205) Drug Costs,(id:42273) Haematology Cellular Pathology and Supporting Services,HEALTHCARE AT HOME LTD,id:14739860   ,6930.17
Department of Health,Guys and St Thomas NHS Foundation Trust,22/12/2021,(80205) Drug Costs,(id:42273) Haematology Cellular Pathology and Supporting Services,HEALTHCARE AT HOME LTD,id:14740770   ,8130.17
Department of Health,Guys and St Thomas NHS Foundation Trust,22/12/2021,(80205) Drug Costs,(id:42273) Haematology Cellular Pathology and Supporting Services,HEALTHCARE AT HOME LTD,id:14739856   ,9730.17
Department of Health,Guys and St Thomas NHS Foundation Trust,22/12/2021,(80205) Drug Costs,(id:42273) Haematology Cellular Pathology and Supporting Services,HEALTHCARE AT HOME LTD,id:14744754   ,    33618.17
Department of Health,Guys and St Thomas NHS Foundation Trust,22/12/2021,(80205) Drug Costs,(id:42273) Haematology Cellular Pathology and Supporting Services,HEALTHCARE AT HOME LTD,id:14744894   ,1390.17
Department of Health,Guys and St Thomas NHS Foundation Trust,22/12/2021,(80205) Drug Costs,(id:42273) Haematology Cellular Pathology and Supporting Services,HEALTHCARE AT HOME LTD,id:14744414   ,2197.37
Department of Health,Guys and St Thomas NHS Foundation Trust,22/12/2021,(80205) Drug Costs,(id:42273) Haematology Cellular Pathology and Supporting Services,HEALTHCARE AT HOME LTD,id:14744454   ,2261.97
Department of Health,Guys and St Thomas NHS Foundation Trust,22/12/2021,(80205) Drug Costs,(id:42273) Haematology Cellular Pathology and Supporting Services,HEALTHCARE AT HOME LTD,id:14745114   ,3970.17
Department of Health,Guys and St Thomas NHS Foundation Trust,22/12/2021,(80205) Drug Costs,(id:42273) Haematology Cellular Pathology and Supporting Services,HEALTHCARE AT HOME LTD,id:14740774   ,4910.57
Department of Health,Guys and St Thomas NHS Foundation Trust,22/12/2021,(80205) Drug Costs,(id:42273) Haematology Cellular Pathology and Supporting Services,HEALTHCARE AT HOME LTD,id:14740359   ,4930.17
Department of Health,Guys and St Thomas NHS Foundation Trust,17/12/2021,(83400) Office Equipment,(id:42128) Haematology Cellular Pathology and Supporting Services,LAZERBEAM FIRE AND SECURITY LTD,id:14717334   ,9890.00
Department of Health,Guys and St Thomas NHS Foundation Trust,17/12/2021,(54052) Technical Officers,(id:42128) Haematology Cellular Pathology and Supporting Services,TOTAL ASSIST RECRUITMENT LTD,id:14709621    ,1212.40
Department of Health,Guys and St Thomas NHS Foundation Trust,22/12/2021,(54052) Technical Officers,(id:42128) Haematology Cellular Pathology and Supporting Services,TOTAL ASSIST RECRUITMENT LTD,id:14726646    ,1280.70
Department of Health,Guys and St Thomas NHS Foundation Trust,03/12/2021,(54052) Technical Officers,(id:42128) Haematology Cellular Pathology and Supporting Services,TOTAL ASSIST RECRUITMENT LTD,id:14669087    , 768.42
Department of Health,Guys and St Thomas NHS Foundation Trust,22/12/2021,(89000) Other - Training courses and conferences,(id:202405) Haematology Cellular Pathology and Supporting Services,CITYSPRINT (UK) LTD,id:14739396,1060.55
Department of Health,Guys and St Thomas NHS Foundation Trust,03/12/2021,(83610) IT Costs,(id:202405) Haematology Cellular Pathology and Supporting Services,PROBRAND LIMITED,id:14659214, 508.56
Department of Health,Guys and St Thomas NHS Foundation Trust,17/12/2021,(81000) Surgical Appliances,(id:42257) Oncology Services,MEDI UK LTD,id:14718235  ,  68.47
Department of Health,Guys and St Thomas NHS Foundation Trust,10/12/2021,(82800) Bedding & Linen,(id:42258) Oncology Services,NHS SUPPLY CHAIN (MAIDSTONE),id:14665974    , 168.98
Department of Health,Guys and St Thomas NHS Foundation Trust,10/12/2021,(82000) Provisions & Kitchens,(id:42258) Oncology Services,NHS SUPPLY CHAIN (MAIDSTONE),id:14665974   ,   7.80
Department of Health,Guys and St Thomas NHS Foundation Trust,17/12/2021,(83610) IT Costs,(id:42261) Oncology Services,DICTATE IT,id:14706501    , 818.40
Department of Health,Guys and St Thomas NHS Foundation Trust,10/12/2021,(82000) Provisions & Kitchens,(id:42261) Oncology Services,NHS SUPPLY CHAIN (MAIDSTONE),id:14665974   ,   4.82
Department of Health,Guys and St Thomas NHS Foundation Trust,22/12/2021,(81200) Medical Surgical Supplies & Equipment,(id:42260) Oncology Services,NHS SUPPLY CHAIN (MAIDSTONE),id:14687496  ,9295.58
Department of Health,Guys and St Thomas NHS Foundation Trust,10/12/2021,(83420) Office Equipment,(id:42260) Oncology Services,CAMELOT FURNITURE LTD,id:14676517,6248.00
Department of Health,Guys and St Thomas NHS Foundation Trust,23/12/2021,(82800) Bedding & Linen,(id:42259) Oncology Services,NHS SUPPLY CHAIN (MAIDSTONE),id:14704159    , 153.11
Department of Health,Guys and St Thomas NHS Foundation Trust,17/12/2021,(81200) Medical Surgical Supplies & Equipment,(id:42259) Oncology Services,SCC PLC)SPECIALIST COMPUTER CENTRES,id:14727315, 180.00
Department of Health,Guys and St Thomas NHS Foundation Trust,17/12/2021,(81200) Medical Surgical Supplies & Equipment,(id:42259) Oncology Services,BARD LTD,id:14662796  , 885.00
Department of Health,Guys and St Thomas NHS Foundation Trust,22/12/2021,(50522) Unqualified Nursing Staff,(id:42259) Oncology Services,GLOBE LOCUMS LTD,id:14747031 , 263.10
Department of Health,Guys and St Thomas NHS Foundation Trust,10/12/2021,(50522) Unqualified Nursing Staff,(id:42259) Oncology Services,GLOBE LOCUMS LTD,id:14709731 , 222.61
Department of Health,Guys and St Thomas NHS Foundation Trust,23/12/2021,(81700) Lab Equipment Purchase,(id:42259) Oncology Services,NHS SUPPLY CHAIN (MAIDSTONE),id:14704159  ,  53.12
Department of Health,Guys and St Thomas NHS Foundation Trust,17/12/2021,(81200) Medical Surgical Supplies & Equipment,(id:42280) Surgical Oncology,Q MEDICAL TECHNOLOGIES LTD,id:14661194    ,1446.60
Department of Health,Guys and St Thomas NHS Foundation Trust,10/12/2021,(81200) Medical Surgical Supplies & Equipment,(id:42280) Surgical Oncology,NHS SUPPLY CHAIN (MAIDSTONE),id:14665974  ,  36.14
Department of Health,Guys and St Thomas NHS Foundation Trust,23/12/2021,(81200) Medical Surgical Supplies & Equipment,(id:243406) Surgical Oncology,NHS SUPPLY CHAIN (MAIDSTONE),id:14704159 , 129.43
Department of Health,Guys and St Thomas NHS Foundation Trust,10/12/2021,(81200) Medical Surgical Supplies & Equipment,(id:243406) Surgical Oncology,NHS SUPPLY CHAIN (MAIDSTONE),id:14665974 , 371.52
Department of Health,Guys and St Thomas NHS Foundation Trust,10/12/2021,(81100) Dressings,(id:243406) Surgical Oncology,NHS SUPPLY CHAIN (MAIDSTONE),id:14665974    , 208.08
Department of Health,Guys and St Thomas NHS Foundation Trust,17/12/2021,(50522) Unqualified Nursing Staff,(id:243406) Surgical Oncology,GLOBE LOCUMS LTD,id:14726877, 251.47
Department of Health,Guys and St Thomas NHS Foundation Trust,23/12/2021,(82800) Bedding & Linen,(id:42473) Surgical Oncology,NHS SUPPLY CHAIN (MAIDSTONE),id:14704159    ,  62.10
Department of Health,Guys and St Thomas NHS Foundation Trust,03/12/2021,(81200) Medical Surgical Supplies & Equipment,(id:42473) Surgical Oncology,STRYKER UK LTD,id:14676834 ,5700.00
Department of Health,Guys and St Thomas NHS Foundation Trust,10/12/2021,(81200) Medical Surgical Supplies & Equipment,(id:42473) Surgical Oncology,OLYMPUS KEYMED,id:14709294 , 679.20
Department of Health,Guys and St Thomas NHS Foundation Trust,10/12/2021,(81200) Medical Surgical Supplies & Equipment,(id:42473) Surgical Oncology,BAXTER HEALTHCARE LTD,id:14671974    ,1170.00
Department of Health,Guys and St Thomas NHS Foundation Trust,22/12/2021,(81200) Medical Surgical Supplies & Equipment,(id:42473) Surgical Oncology,INTEGRA NEUROSCIENCES LIMITED,id:14724007 ,3696.00
Department of Health,Guys and St Thomas NHS Foundation Trust,22/12/2021,(81200) Medical Surgical Supplies & Equipment,(id:42473) Surgical Oncology,OLYMPUS KEYMED,id:14740940 ,1358.40
Department of Health,Guys and St Thomas NHS Foundation Trust,22/12/2021,(81225) Medical Surgical Supplies & Equipment,(id:42473) Surgical Oncology,NHS SUPPLY CHAIN (MAIDSTONE),id:14687496  ,2389.20
Department of Health,Guys and St Thomas NHS Foundation Trust,17/12/2021,(81200) Medical Surgical Supplies & Equipment,(id:42474) Surgical Oncology,SHAWBROOK BANK LIMITED,id:14530166   ,    14518.99
Department of Health,Guys and St Thomas NHS Foundation Trust,10/12/2021,(81200) Medical Surgical Supplies & Equipment,(id:42474) Surgical Oncology,LAERDAL MEDICAL LTD,id:14706386 , 937.20
Department of Health,Guys and St Thomas NHS Foundation Trust,23/12/2021,(81400) Medical Surgical Supplies & Equipment,(id:42474) Surgical Oncology,NHS SUPPLY CHAIN (MAIDSTONE),id:14704159  ,  44.00
Department of Health,Guys and St Thomas NHS Foundation Trust,10/12/2021,(84656) Establishment,(id:42474) Surgical Oncology,DICT8 LIMITED,id:14378474 ,3766.56
Department of Health,Guys and St Thomas NHS Foundation Trust,17/12/2021,(81215) Medical Surgical Supplies & Equipment,(id:42475) Surgical Oncology,ADVANCED BIONICS SARL (AND UK LTD),id:14712069 ,9702.00
Department of Health,Guys and St Thomas NHS Foundation Trust,23/12/2021,(81225) Medical Surgical Supplies & Equipment,(id:42475) Surgical Oncology,COCHLEAR EUROPE LTD,id:14723443 ,1278.00
Department of Health,Guys and St Thomas NHS Foundation Trust,17/12/2021,(81225) Medical Surgical Supplies & Equipment,(id:42475) Surgical Oncology,COCHLEAR EUROPE LTD,id:14720377 , 510.00
Department of Health,Guys and St Thomas NHS Foundation Trust,17/12/2021,(81225) Medical Surgical Supplies & Equipment,(id:42475) Surgical Oncology,COCHLEAR EUROPE LTD,id:14720492 ,1096.80
Department of Health,Guys and St Thomas NHS Foundation Trust,03/12/2021,(81225) Medical Surgical Supplies & Equipment,(id:42475) Surgical Oncology,COCHLEAR EUROPE LTD,id:14690716 , 520.80
Department of Health,Guys and St Thomas NHS Foundation Trust,10/12/2021,(81225) Medical Surgical Supplies & Equipment,(id:42475) Surgical Oncology,NHS SUPPLY CHAIN (MAIDSTONE),id:14665974  ,    61068.60
Department of Health,Guys and St Thomas NHS Foundation Trust,22/12/2021,(81235) Medical Surgical Supplies & Equipment,(id:42286) Surgical Oncology,NHS SUPPLY CHAIN (MAIDSTONE),id:14687496  , 318.24
Department of Health,Guys and St Thomas NHS Foundation Trust,03/12/2021,(81200) Medical Surgical Supplies & Equipment,(id:42286) Surgical Oncology,MEDTRONIC LTD,id:14628348  ,4747.01
Department of Health,Guys and St Thomas NHS Foundation Trust,10/12/2021,(81200) Medical Surgical Supplies & Equipment,(id:42286) Surgical Oncology,ALLOGA UK,id:14687099 ,1045.00
Department of Health,Guys and St Thomas NHS Foundation Trust,17/12/2021,(81200) Medical Surgical Supplies & Equipment,(id:42286) Surgical Oncology,MEDTRONIC LTD,id:14695667  ,3827.52
Department of Health,Guys and St Thomas NHS Foundation Trust,23/12/2021,(81100) Dressings,(id:42284) Surgical Oncology,NHS SUPPLY CHAIN (MAIDSTONE),id:14704159, 219.45
Department of Health,Guys and St Thomas NHS Foundation Trust,10/12/2021,(81100) Dressings,(id:42284) Surgical Oncology,NHS SUPPLY CHAIN (MAIDSTONE),id:14665974, 289.42
Department of Health,Guys and St Thomas NHS Foundation Trust,17/12/2021,(50522) Unqualified Nursing Staff,(id:42284) Surgical Oncology,MSI GROUP LTD,id:14726863    , 258.37
Department of Health,Guys and St Thomas NHS Foundation Trust,10/12/2021,(50522) Unqualified Nursing Staff,(id:42284) Surgical Oncology,CARE PROVIDERS HEALTHCARE,id:14709535  , 252.93
Department of Health,Guys and St Thomas NHS Foundation Trust,10/12/2021,(83400) Office Equipment,(id:42284) Surgical Oncology,NHS SUPPLY CHAIN (MAIDSTONE),id:14665974   , 165.48
Department of Health,Guys and St Thomas NHS Foundation Trust,10/12/2021,(82700) Uniforms & Clothing,(id:42470) Surgical Oncology,NHS SUPPLY CHAIN (MAIDSTONE),id:14665974,  53.52
Department of Health,Guys and St Thomas NHS Foundation Trust,23/12/2021,(82800) Bedding & Linen,(id:42470) Surgical Oncology,NHS SUPPLY CHAIN (MAIDSTONE),id:14704159    ,  14.24
Department of Health,Guys and St Thomas NHS Foundation Trust,22/12/2021,(82800) Bedding & Linen,(id:42470) Surgical Oncology,NHS SUPPLY CHAIN (MAIDSTONE),id:14687496    , 196.53
Department of Health,Guys and St Thomas NHS Foundation Trust,10/12/2021,(82800) Bedding & Linen,(id:42470) Surgical Oncology,NHS SUPPLY CHAIN (MAIDSTONE),id:14665974    , 170.60
Department of Health,Guys and St Thomas NHS Foundation Trust,23/12/2021,(81700) Lab Equipment Purchase,(id:42470) Surgical Oncology,NHS SUPPLY CHAIN (MAIDSTONE),id:14704159  ,  11.70
Department of Health,Guys and St Thomas NHS Foundation Trust,03/12/2021,(81200) Medical Surgical Supplies & Equipment,(id:42508) Surgical Oncology,WILLIAMS MEDICAL SUPPLIES PLC,id:14664574 , 654.78
Department of Health,Guys and St Thomas NHS Foundation Trust,17/12/2021,(50522) Unqualified Nursing Staff,(id:41870) Acute & General Medicine,GLOBE LOCUMS LTD,id:14726697    , 274.96
Department of Health,Guys and St Thomas NHS Foundation Trust,22/12/2021,(82600) Uniforms & Clothing,(id:41858) Acute & General Medicine,NHS SUPPLY CHAIN (MAIDSTONE),id:14687496   ,  30.60
Department of Health,Guys and St Thomas NHS Foundation Trust,22/12/2021,(82000) Provisions & Kitchens,(id:41858) Acute & General Medicine,NHS SUPPLY CHAIN (MAIDSTONE),id:14687496 , 196.37
Department of Health,Guys and St Thomas NHS Foundation Trust,10/12/2021,(83500) Furniture & Fittings,(id:41858) Acute & General Medicine,NHS SUPPLY CHAIN (MAIDSTONE),id:14665974  ,  23.94
Department of Health,Guys and St Thomas NHS Foundation Trust,17/12/2021,(50552) Qualified Nursing Staff,(id:41858) Acute & General Medicine,CONTINENTAL NURSE LTD,id:14729494 , 362.75
Department of Health,Guys and St Thomas NHS Foundation Trust,10/12/2021,(50522) Unqualified Nursing Staff,(id:41858) Acute & General Medicine,GLOBE LOCUMS LTD,id:14709847    , 200.10
Department of Health,Guys and St Thomas NHS Foundation Trust,10/12/2021,(50522) Unqualified Nursing Staff,(id:41858) Acute & General Medicine,GLOBE LOCUMS LTD,id:14709731    , 222.60
Department of Health,Guys and St Thomas NHS Foundation Trust,23/12/2021,(81225) Medical Surgical Supplies & Equipment,(id:41858) Acute & General Medicine,NHS SUPPLY CHAIN (MAIDSTONE),id:14704159,  20.08
Department of Health,Guys and St Thomas NHS Foundation Trust,22/12/2021,(50522) Unqualified Nursing Staff,(id:41859) Acute & General Medicine,GLOBE LOCUMS LTD,id:14747278    , 283.75
Department of Health,Guys and St Thomas NHS Foundation Trust,17/12/2021,(50522) Unqualified Nursing Staff,(id:41859) Acute & General Medicine,CARE PROVIDERS HEALTHCARE,id:14726617, 505.86
Department of Health,Guys and St Thomas NHS Foundation Trust,17/12/2021,(50522) Unqualified Nursing Staff,(id:41859) Acute & General Medicine,CARE PROVIDERS HEALTHCARE,id:14726616, 592.85
Department of Health,Guys and St Thomas NHS Foundation Trust,17/12/2021,(50522) Unqualified Nursing Staff,(id:41859) Acute & General Medicine,MSI GROUP LTD,id:14726872  , 546.94
Department of Health,Guys and St Thomas NHS Foundation Trust,10/12/2021,(50522) Unqualified Nursing Staff,(id:41859) Acute & General Medicine,GLOBE LOCUMS LTD,id:14709564    , 222.61
Department of Health,Guys and St Thomas NHS Foundation Trust,10/12/2021,(50522) Unqualified Nursing Staff,(id:41859) Acute & General Medicine,GLOBE LOCUMS LTD,id:14709843    , 467.71
Department of Health,Guys and St Thomas NHS Foundation Trust,23/12/2021,(82000) Provisions & Kitchens,(id:41860) Acute & General Medicine,NHS SUPPLY CHAIN (MAIDSTONE),id:14704159 , 126.12
Department of Health,Guys and St Thomas NHS Foundation Trust,10/12/2021,(83400) Office Equipment,(id:41860) Acute & General Medicine,NHS SUPPLY CHAIN (MAIDSTONE),id:14665974 ,  81.64
Department of Health,Guys and St Thomas NHS Foundation Trust,03/12/2021,(50552) Qualified Nursing Staff,(id:41860) Acute & General Medicine,MSI GROUP LTD,id:14691743    , 318.92
Department of Health,Guys and St Thomas NHS Foundation Trust,17/12/2021,(50522) Unqualified Nursing Staff,(id:41860) Acute & General Medicine,MSI GROUP LTD,id:14726863  , 258.37
Department of Health,Guys and St Thomas NHS Foundation Trust,17/12/2021,(50522) Unqualified Nursing Staff,(id:41860) Acute & General Medicine,GLOBE LOCUMS LTD,id:14726589    , 286.22
Department of Health,Guys and St Thomas NHS Foundation Trust,17/12/2021,(50522) Unqualified Nursing Staff,(id:41860) Acute & General Medicine,MSI GROUP LTD,id:14726570  , 602.76
Department of Health,Guys and St Thomas NHS Foundation Trust,03/12/2021,(50522) Unqualified Nursing Staff,(id:41860) Acute & General Medicine,MSI GROUP LTD,id:14687160  , 233.85
Department of Health,Guys and St Thomas NHS Foundation Trust,17/12/2021,(50552) Qualified Nursing Staff,(id:2182419) Acute & General Medicine,GENEVA HEALTH INTERNATIONAL LIMITED,id:14726957, 427.42
Department of Health,Guys and St Thomas NHS Foundation Trust,03/12/2021,(50522) Unqualified Nursing Staff,(id:2182419) Acute & General Medicine,CARE PROVIDERS HEALTHCARE,id:14694305   , 489.38
Department of Health,Guys and St Thomas NHS Foundation Trust,03/12/2021,(50522) Unqualified Nursing Staff,(id:2182419) Acute & General Medicine,MSI GROUP LTD,id:14691684, 289.05
Department of Health,Guys and St Thomas NHS Foundation Trust,10/12/2021,(82000) Provisions & Kitchens,(id:2182419) Acute & General Medicine,NHS SUPPLY CHAIN (MAIDSTONE),id:14665974    , 104.28
Department of Health,Guys and St Thomas NHS Foundation Trust,17/12/2021,(50552) Qualified Nursing Staff,(id:41872) Acute & General Medicine,MEDICSPRO LTD,id:14729517    , 416.87
Department of Health,Guys and St Thomas NHS Foundation Trust,17/12/2021,(50552) Qualified Nursing Staff,(id:41872) Acute & General Medicine,FIRSTPOINT HEALTHCARE LTD,id:14729438  , 429.99
Department of Health,Guys and St Thomas NHS Foundation Trust,03/12/2021,(50552) Qualified Nursing Staff,(id:41872) Acute & General Medicine,FIRSTPOINT HEALTHCARE LTD,id:14694311  , 429.99
Department of Health,Guys and St Thomas NHS Foundation Trust,10/12/2021,(50522) Unqualified Nursing Staff,(id:41872) Acute & General Medicine,GLOBE LOCUMS LTD,id:14709844    , 269.08
Department of Health,Guys and St Thomas NHS Foundation Trust,10/12/2021,(82000) Provisions & Kitchens,(id:41868) Acute & General Medicine,NHS SUPPLY CHAIN (MAIDSTONE),id:14665974 ,  50.96
Department of Health,Guys and St Thomas NHS Foundation Trust,23/12/2021,(81225) Medical Surgical Supplies & Equipment,(id:41868) Acute & General Medicine,NHS SUPPLY CHAIN (MAIDSTONE),id:14704159, 277.20
Department of Health,Guys and St Thomas NHS Foundation Trust,23/12/2021,(81700) Lab Equipment Purchase,(id:41868) Acute & General Medicine,NHS SUPPLY CHAIN (MAIDSTONE),id:14704159,  19.40
Department of Health,Guys and St Thomas NHS Foundation Trust,22/12/2021,(86300) Healthcare from non-NHS bodies,(id:41869) Acute & General Medicine,SELDOC LTD,id:14746094,2677.73
Department of Health,Guys and St Thomas NHS Foundation Trust,23/12/2021,(81225) Medical Surgical Supplies & Equipment,(id:41869) Acute & General Medicine,NHS SUPPLY CHAIN (MAIDSTONE),id:14704159, 169.76
Department of Health,Guys and St Thomas NHS Foundation Trust,03/12/2021,(81000) Surgical Appliances,(id:41876) Acute & General Medicine,MEDI UK LTD,id:14680774,  52.04
Department of Health,Guys and St Thomas NHS Foundation Trust,23/12/2021,(82000) Provisions & Kitchens,(id:41878) Acute & General Medicine,NHS SUPPLY CHAIN (MAIDSTONE),id:14704159 , 309.09
Department of Health,Guys and St Thomas NHS Foundation Trust,22/12/2021,(83400) Office Equipment,(id:41878) Acute & General Medicine,NHS SUPPLY CHAIN (MAIDSTONE),id:14687496 , 287.38
Department of Health,Guys and St Thomas NHS Foundation Trust,23/12/2021,(81100) Dressings,(id:41878) Acute & General Medicine,NHS SUPPLY CHAIN (MAIDSTONE),id:14704159   , 330.97
Department of Health,Guys and St Thomas NHS Foundation Trust,10/12/2021,(81100) Dressings,(id:41878) Acute & General Medicine,NHS SUPPLY CHAIN (MAIDSTONE),id:14665974   ,  88.43
Department of Health,Guys and St Thomas NHS Foundation Trust,03/12/2021,(50552) Qualified Nursing Staff,(id:41878) Acute & General Medicine,MSI GROUP LTD,id:14692063    , 670.74
Department of Health,Guys and St Thomas NHS Foundation Trust,22/12/2021,(50522) Unqualified Nursing Staff,(id:41878) Acute & General Medicine,GLOBE LOCUMS LTD,id:14747102    , 273.46
Department of Health,Guys and St Thomas NHS Foundation Trust,17/12/2021,(50522) Unqualified Nursing Staff,(id:41878) Acute & General Medicine,CARE PROVIDERS HEALTHCARE,id:14726720, 207.02
Department of Health,Guys and St Thomas NHS Foundation Trust,03/12/2021,(50522) Unqualified Nursing Staff,(id:41878) Acute & General Medicine,GLOBE LOCUMS LTD,id:14687170    , 465.40
Department of Health,Guys and St Thomas NHS Foundation Trust,03/12/2021,(50522) Unqualified Nursing Staff,(id:41878) Acute & General Medicine,CARE PROVIDERS HEALTHCARE,id:14691828, 277.45
Department of Health,Guys and St Thomas NHS Foundation Trust,23/12/2021,(81200) Medical Surgical Supplies & Equipment,(id:41878) Acute & General Medicine,NHS SUPPLY CHAIN (MAIDSTONE),id:14704159, 432.43
Department of Health,Guys and St Thomas NHS Foundation Trust,10/12/2021,(81200) Medical Surgical Supplies & Equipment,(id:41878) Acute & General Medicine,NHS SUPPLY CHAIN (MAIDSTONE),id:14665974, 491.88
Department of Health,Guys and St Thomas NHS Foundation Trust,22/12/2021,(81255) Medical Surgical Supplies & Equipment,(id:41878) Acute & General Medicine,NHS SUPPLY CHAIN (MAIDSTONE),id:14687496,  85.25
Department of Health,Guys and St Thomas NHS Foundation Trust,17/12/2021,(50522) Unqualified Nursing Staff,(id:41879) Acute & General Medicine,MEDICSPRO LTD,id:14726558  , 540.90
Department of Health,Guys and St Thomas NHS Foundation Trust,03/12/2021,(50522) Unqualified Nursing Staff,(id:41879) Acute & General Medicine,CARE PROVIDERS HEALTHCARE,id:14687125, 894.54
Department of Health,Guys and St Thomas NHS Foundation Trust,22/12/2021,(81700) Lab Equipment Purchase,(id:41879) Acute & General Medicine,NHS SUPPLY CHAIN (MAIDSTONE),id:14687496,  19.40
Department of Health,Guys and St Thomas NHS Foundation Trust,10/12/2021,(50552) Qualified Nursing Staff,(id:41879) Acute & General Medicine,CARE PROVIDERS HEALTHCARE,id:14709529  , 351.42
Department of Health,Guys and St Thomas NHS Foundation Trust,22/12/2021,(83400) Office Equipment,(id:41880) Acute & General Medicine,NHS SUPPLY CHAIN (MAIDSTONE),id:14687496 , 106.10
Department of Health,Guys and St Thomas NHS Foundation Trust,22/12/2021,(81200) Medical Surgical Supplies & Equipment,(id:41880) Acute & General Medicine,NHS SUPPLY CHAIN (MAIDSTONE),id:14687496, 626.31
Department of Health,Guys and St Thomas NHS Foundation Trust,23/12/2021,(81200) Medical Surgical Supplies & Equipment,(id:41880) Acute & General Medicine,NHS SUPPLY CHAIN (MAIDSTONE),id:14704159, 845.83
Department of Health,Guys and St Thomas NHS Foundation Trust,22/12/2021,(50522) Unqualified Nursing Staff,(id:41880) Acute & General Medicine,MSI GROUP LTD,id:14747271  , 233.86
Department of Health,Guys and St Thomas NHS Foundation Trust,22/12/2021,(50522) Unqualified Nursing Staff,(id:41880) Acute & General Medicine,GLOBE LOCUMS LTD,id:14746864    , 277.12
Department of Health,Guys and St Thomas NHS Foundation Trust,03/12/2021,(50522) Unqualified Nursing Staff,(id:41880) Acute & General Medicine,GLOBE LOCUMS LTD,id:14687260    , 258.80
Department of Health,Guys and St Thomas NHS Foundation Trust,17/12/2021,(50522) Unqualified Nursing Staff,(id:41881) Acute & General Medicine,MSI GROUP LTD,id:14726633  ,1033.49
Department of Health,Guys and St Thomas NHS Foundation Trust,17/12/2021,(50522) Unqualified Nursing Staff,(id:41881) Acute & General Medicine,GLOBE LOCUMS LTD,id:14726697    , 274.96
Department of Health,Guys and St Thomas NHS Foundation Trust,03/12/2021,(50522) Unqualified Nursing Staff,(id:41881) Acute & General Medicine,MSI GROUP LTD,id:14691680  , 467.71
Department of Health,Guys and St Thomas NHS Foundation Trust,03/12/2021,(50522) Unqualified Nursing Staff,(id:41881) Acute & General Medicine,MSI GROUP LTD,id:14691960  , 516.74
Department of Health,Guys and St Thomas NHS Foundation Trust,02/12/2021,(89570) Other – Other Operating Expenditure,(id:1435419) Acute & General Medicine,GSTT PROCUREMENT CARD,id:14690314 , 276.96
Department of Health,Guys and St Thomas NHS Foundation Trust,10/12/2021,(82000) Provisions & Kitchens,(id:41968) Inpatient Services,NHS SUPPLY CHAIN (MAIDSTONE),id:14665974  ,   8.10
Department of Health,Guys and St Thomas NHS Foundation Trust,03/12/2021,(81200) Medical Surgical Supplies & Equipment,(id:42025) Dental Services,HENRY SCHEIN,id:14671814, 539.66
Department of Health,Guys and St Thomas NHS Foundation Trust,03/12/2021,(50203) Consultants,(id:42010) Dental Services,KINGS COLLEGE LONDON:03529700,id:14366574    ,    16335.63
Department of Health,Guys and St Thomas NHS Foundation Trust,22/12/2021,(81200) Medical Surgical Supplies & Equipment,(id:42037) Dental Services,HENRY SCHEIN,id:14729237, 832.91
Department of Health,Guys and St Thomas NHS Foundation Trust,22/12/2021,(81200) Medical Surgical Supplies & Equipment,(id:42037) Dental Services,HENRY SCHEIN,id:14729235, 783.07
Department of Health,Guys and St Thomas NHS Foundation Trust,03/12/2021,(81200) Medical Surgical Supplies & Equipment,(id:42037) Dental Services,STRAUMANN LTD,id:14658562    , 920.35
Department of Health,Guys and St Thomas NHS Foundation Trust,03/12/2021,(81200) Medical Surgical Supplies & Equipment,(id:42037) Dental Services,3M UNITED KINGDOM PLC,id:14434354 , 964.26
Department of Health,Guys and St Thomas NHS Foundation Trust,03/12/2021,(81200) Medical Surgical Supplies & Equipment,(id:42037) Dental Services,GEISTLICH SONS LTD,id:14671138    , 899.06
Department of Health,Guys and St Thomas NHS Foundation Trust,10/12/2021,(81200) Medical Surgical Supplies & Equipment,(id:42037) Dental Services,HENRY SCHEIN,id:14695394, 848.40
Department of Health,Guys and St Thomas NHS Foundation Trust,03/12/2021,(81400) Medical Surgical Supplies & Equipment,(id:42037) Dental Services,QED - QUALITY ENDODONTIC DISTRIBUTORS LTD,id:14364635 , 698.70
Department of Health,Guys and St Thomas NHS Foundation Trust,22/12/2021,(81100) Dressings,(id:42005) Dental Services,ELIS UK LIMITED,id:14735494, 418.50
Department of Health,Guys and St Thomas NHS Foundation Trust,10/12/2021,(81100) Dressings,(id:42005) Dental Services,NHS SUPPLY CHAIN (MAIDSTONE),id:14665974  , 178.69
Department of Health,Guys and St Thomas NHS Foundation Trust,22/12/2021,(82600) Uniforms & Clothing,(id:42007) Dental Services,NHS SUPPLY CHAIN (MAIDSTONE),id:14687496  ,  29.47
Department of Health,Guys and St Thomas NHS Foundation Trust,23/12/2021,(82600) Uniforms & Clothing,(id:42007) Dental Services,NHS SUPPLY CHAIN (MAIDSTONE),id:14704159  ,  29.47
Department of Health,Guys and St Thomas NHS Foundation Trust,03/12/2021,(82600) Uniforms & Clothing,(id:42007) Dental Services,HELMSMAN,id:14672035  ,9925.90
Department of Health,Guys and St Thomas NHS Foundation Trust,22/12/2021,(82000) Provisions & Kitchens,(id:42007) Dental Services,NHS SUPPLY CHAIN (MAIDSTONE),id:14687496,   6.05
Department of Health,Guys and St Thomas NHS Foundation Trust,23/12/2021,(81200) Medical Surgical Supplies & Equipment,(id:42007) Dental Services,NHS SUPPLY CHAIN (MAIDSTONE),id:14704159    ,2139.81
Department of Health,Guys and St Thomas NHS Foundation Trust,10/12/2021,(81200) Medical Surgical Supplies & Equipment,(id:42007) Dental Services,MERCIAN SURGICAL SUPPLY CO LTD,id:14702962  , 672.00
Department of Health,Guys and St Thomas NHS Foundation Trust,23/12/2021,(83400) Office Equipment,(id:42007) Dental Services,NHS SUPPLY CHAIN (MAIDSTONE),id:14704159,  61.99
Department of Health,Guys and St Thomas NHS Foundation Trust,10/12/2021,(83400) Office Equipment,(id:42015) Dental Services,NHS SUPPLY CHAIN (MAIDSTONE),id:14665974,   8.77
Department of Health,Guys and St Thomas NHS Foundation Trust,03/12/2021,(50343) Other Medical Grades,(id:42015) Dental Services,KINGS COLLEGE LONDON:03529700,id:14485554,1309.67
Department of Health,Guys and St Thomas NHS Foundation Trust,03/12/2021,(50343) Other Medical Grades,(id:42015) Dental Services,KINGS COLLEGE LONDON:03529700,id:14366574,2635.88
Department of Health,Guys and St Thomas NHS Foundation Trust,03/12/2021,(50200) Consultants,(id:42033) Dental Services,KINGS COLLEGE LONDON:03529700,id:14366574    ,1307.19
Department of Health,Guys and St Thomas NHS Foundation Trust,03/12/2021,(50200) Consultants,(id:42033) Dental Services,KINGS COLLEGE LONDON:03529700,id:14485554    ,3697.70
Department of Health,Guys and St Thomas NHS Foundation Trust,22/12/2021,(81200) Medical Surgical Supplies & Equipment,(id:2884419) Dental Services,TECHNOVENT LTD,id:14745374 ,1085.52
Department of Health,Guys and St Thomas NHS Foundation Trust,03/12/2021,(50343) Other Medical Grades,(id:42022) Dental Services,KINGS COLLEGE LONDON:03529700,id:14366574,4033.83
Department of Health,Guys and St Thomas NHS Foundation Trust,03/12/2021,(50200) Consultants,(id:3088419) Dental Services,KINGS COLLEGE LONDON:03529700,id:14366574  ,4375.90
Department of Health,Guys and St Thomas NHS Foundation Trust,23/12/2021,(82600) Uniforms & Clothing,(id:42014) Dental Services,NHS SUPPLY CHAIN (MAIDSTONE),id:14704159  , 200.32
Department of Health,Guys and St Thomas NHS Foundation Trust,03/12/2021,(50203) Consultants,(id:42014) Dental Services,KINGS COLLEGE LONDON:03529700,id:14366574    ,1173.82
Department of Health,Guys and St Thomas NHS Foundation Trust,10/12/2021,(50542) Unqualified Nursing Staff,(id:1885419) Dental Services,MEDACS HEALTHCARE SERVICES PLC,id:14709671  , 453.38
Department of Health,Guys and St Thomas NHS Foundation Trust,10/12/2021,(50542) Unqualified Nursing Staff,(id:1885419) Dental Services,MEDACS HEALTHCARE SERVICES PLC,id:14709720  , 453.38
Department of Health,Guys and St Thomas NHS Foundation Trust,03/12/2021,(50200) Consultants,(id:42035) Dental Services,KINGS COLLEGE LONDON:03529700,id:14366574    ,    13571.10
Department of Health,Guys and St Thomas NHS Foundation Trust,17/12/2021,(81200) Medical Surgical Supplies & Equipment,(id:42035) Dental Services,DENTSPLY IH LTD,id:14686654  , 675.04
Department of Health,Guys and St Thomas NHS Foundation Trust,22/12/2021,(81200) Medical Surgical Supplies & Equipment,(id:42035) Dental Services,DENTSPLY IH LTD,id:14730834  , 828.14
Department of Health,Guys and St Thomas NHS Foundation Trust,03/12/2021,(81200) Medical Surgical Supplies & Equipment,(id:42035) Dental Services,DENTSPLY IH LTD,id:14678575  ,2086.04
Department of Health,Guys and St Thomas NHS Foundation Trust,03/12/2021,(81200) Medical Surgical Supplies & Equipment,(id:42035) Dental Services,DENTSPLY IH LTD,id:14678614  , 872.78
Department of Health,Guys and St Thomas NHS Foundation Trust,03/12/2021,(81200) Medical Surgical Supplies & Equipment,(id:42035) Dental Services,DENTSPLY IH LTD,id:14694139  , 866.91
Department of Health,Guys and St Thomas NHS Foundation Trust,03/12/2021,(81200) Medical Surgical Supplies & Equipment,(id:42035) Dental Services,GEISTLICH SONS LTD,id:14674736    , 530.96
Department of Health,Guys and St Thomas NHS Foundation Trust,10/12/2021,(81200) Medical Surgical Supplies & Equipment,(id:42035) Dental Services,DENTSPLY IH LTD,id:14694135  , 661.73
Department of Health,Guys and St Thomas NHS Foundation Trust,10/12/2021,(81200) Medical Surgical Supplies & Equipment,(id:1634429) Dental Services,HENRY SCHEIN,id:14692180   , 968.62
Department of Health,Guys and St Thomas NHS Foundation Trust,22/12/2021,(81200) Medical Surgical Supplies & Equipment,(id:1634429) Dental Services,NHS SUPPLY CHAIN (MAIDSTONE),id:14687496  , 925.84
Department of Health,Guys and St Thomas NHS Foundation Trust,22/12/2021,(81200) Medical Surgical Supplies & Equipment,(id:1634429) Dental Services,HENRY SCHEIN,id:14727377   ,1983.05
Department of Health,Guys and St Thomas NHS Foundation Trust,22/12/2021,(82800) Bedding & Linen,(id:1634432) Dental Services,NHS SUPPLY CHAIN (MAIDSTONE),id:14687496    , 431.04
Department of Health,Guys and St Thomas NHS Foundation Trust,03/12/2021,(81200) Medical Surgical Supplies & Equipment,(id:1634432) Dental Services,HENRY SCHEIN,id:14671816   ,-768.60
Department of Health,Guys and St Thomas NHS Foundation Trust,17/12/2021,(81200) Medical Surgical Supplies & Equipment,(id:1634433) Dental Services,HENRY SCHEIN,id:14667216   , 905.82
Department of Health,Guys and St Thomas NHS Foundation Trust,03/12/2021,(81200) Medical Surgical Supplies & Equipment,(id:1634433) Dental Services,HENRY SCHEIN,id:14671815   , 954.20
Department of Health,Guys and St Thomas NHS Foundation Trust,22/12/2021,(81100) Dressings,(id:1634433) Dental Services,NHS SUPPLY CHAIN (MAIDSTONE),id:14687496, 122.03
Department of Health,Guys and St Thomas NHS Foundation Trust,22/12/2021,(83400) Office Equipment,(id:1634433) Dental Services,NHS SUPPLY CHAIN (MAIDSTONE),id:14687496   ,   6.72
Department of Health,Guys and St Thomas NHS Foundation Trust,22/12/2021,(81200) Medical Surgical Supplies & Equipment,(id:1650420) Dental Services,SKILLBOND  DIRECT LTD,id:14741378    , 572.82
Department of Health,Guys and St Thomas NHS Foundation Trust,09/12/2021,(81700) Lab Equipment Purchase,(id:641456) Specialist Ambulatory Services,TAKARA BIO EUROPE/CLONTECH,id:14529994, 814.00
Department of Health,Guys and St Thomas NHS Foundation Trust,23/12/2021,(82000) Provisions & Kitchens,(id:42193) Specialist Ambulatory Services,NHS SUPPLY CHAIN (MAIDSTONE),id:14704159,  27.84
Department of Health,Guys and St Thomas NHS Foundation Trust,03/12/2021,(81000) Surgical Appliances,(id:42193) Specialist Ambulatory Services,TALAR MADE ORTHOTICS LTD,id:14682554 ,  45.40
Department of Health,Guys and St Thomas NHS Foundation Trust,03/12/2021,(81000) Surgical Appliances,(id:42193) Specialist Ambulatory Services,TALAR MADE ORTHOTICS LTD,id:14682415 ,  83.81
Department of Health,Guys and St Thomas NHS Foundation Trust,03/12/2021,(81000) Surgical Appliances,(id:42195) Specialist Ambulatory Services,TALAR MADE ORTHOTICS LTD,id:14682635 ,  43.66
Department of Health,Guys and St Thomas NHS Foundation Trust,17/12/2021,(81275) Medical Surgical Supplies & Equipment,(id:42088) Specialist Ambulatory Services,CANUTE PHARMA LTD,id:14689314, 556.20
Department of Health,Guys and St Thomas NHS Foundation Trust,03/12/2021,(81275) Medical Surgical Supplies & Equipment,(id:42088) Specialist Ambulatory Services,CANUTE PHARMA LTD,id:14689319, 556.20
Department of Health,Guys and St Thomas NHS Foundation Trust,10/12/2021,(81100) Dressings,(id:42088) Specialist Ambulatory Services,NHS SUPPLY CHAIN (MAIDSTONE),id:14665974  ,   5.33
Department of Health,Guys and St Thomas NHS Foundation Trust,23/12/2021,(81100) Dressings,(id:42091) Specialist Ambulatory Services,NHS SUPPLY CHAIN (MAIDSTONE),id:14704159  ,2537.72
Department of Health,Guys and St Thomas NHS Foundation Trust,23/12/2021,(81200) Medical Surgical Supplies & Equipment,(id:42091) Specialist Ambulatory Services,NHS SUPPLY CHAIN (MAIDSTONE),id:14704159    , 306.00
Department of Health,Guys and St Thomas NHS Foundation Trust,17/12/2021,(84501) Establishment,(id:42065) Specialist Ambulatory Services,TWOFOLD LIMITED,id:14725869 ,1428.00
Department of Health,Guys and St Thomas NHS Foundation Trust,23/12/2021,(80010) Drug Costs,(id:42079) Specialist Ambulatory Services,THERAKOS (UK) LIMITED,id:14747913   ,    22572.00
Department of Health,Guys and St Thomas NHS Foundation Trust,23/12/2021,(80010) Drug Costs,(id:42079) Specialist Ambulatory Services,THERAKOS (UK) LIMITED,id:14747957   ,    22572.00
Department of Health,Guys and St Thomas NHS Foundation Trust,22/12/2021,(81275) Medical Surgical Supplies & Equipment,(id:42079) Specialist Ambulatory Services,NHS SUPPLY CHAIN (MAIDSTONE),id:14687496    ,  14.46
Department of Health,Guys and St Thomas NHS Foundation Trust,22/12/2021,(82800) Bedding & Linen,(id:42097) Specialist Ambulatory Services,NHS SUPPLY CHAIN (MAIDSTONE),id:14687496 ,  43.13
Department of Health,Guys and St Thomas NHS Foundation Trust,10/12/2021,(83400) Office Equipment,(id:42097) Specialist Ambulatory Services,NHS SUPPLY CHAIN (MAIDSTONE),id:14665974,  11.69
Department of Health,Guys and St Thomas NHS Foundation Trust,10/12/2021,(81100) Dressings,(id:391417) Specialist Ambulatory Services,NHS SUPPLY CHAIN (MAIDSTONE),id:14665974 ,  24.96
Department of Health,Guys and St Thomas NHS Foundation Trust,17/12/2021,(89000) Other - Training courses and conferences,(id:42061) Specialist Ambulatory Services,TURNING TIDES SCOTLAND LTD T/A 'TURNINGTIDES',id:14712143    ,2680.00
Department of Health,Guys and St Thomas NHS Foundation Trust,17/12/2021,(84656) Establishment,(id:42057) Specialist Ambulatory Services,DICT8 LIMITED,id:14706228   ,2604.72
Department of Health,Guys and St Thomas NHS Foundation Trust,22/12/2021,(81225) Medical Surgical Supplies & Equipment,(id:42050) Specialist Ambulatory Services,NHS SUPPLY CHAIN (MAIDSTONE),id:14687496    ,  60.73
Department of Health,Guys and St Thomas NHS Foundation Trust,17/12/2021,(83360) Premises Services,(id:42050) Specialist Ambulatory Services,ESSEX SECURITY SERVICES LTD,id:14717786, 985.00
Department of Health,Guys and St Thomas NHS Foundation Trust,21/12/2021,(53672) Pharmacists,(id:42165) Pharmacy,PRICEWATERHOUSECOOPERS LLP,id:14741514    , 694.23
Department of Health,Guys and St Thomas NHS Foundation Trust,23/12/2021,(55102) Admin & Clerical,(id:42159) Pharmacy,HYPER RECRUITMENT SOLUTIONS LTD,id:14726691    ,1923.76
Department of Health,Guys and St Thomas NHS Foundation Trust,17/12/2021,(55122) Admin & Clerical,(id:42159) Pharmacy,HYPER RECRUITMENT SOLUTIONS LTD,id:14711158    ,1500.00
Department of Health,Guys and St Thomas NHS Foundation Trust,17/12/2021,(55122) Admin & Clerical,(id:42159) Pharmacy,HYPER RECRUITMENT SOLUTIONS LTD,id:14711114    ,1500.00
Department of Health,Guys and St Thomas NHS Foundation Trust,03/12/2021,(81700) Lab Equipment Purchase,(id:42159) Pharmacy,SCI-TEK INSTRUMENTS LTD,id:14684554 , 529.70
Department of Health,Guys and St Thomas NHS Foundation Trust,17/12/2021,(81275) Medical Surgical Supplies & Equipment,(id:581409) Pharmacy,CHERWELL LABORATORIES LTD,id:14725438   , 783.23
Department of Health,Guys and St Thomas NHS Foundation Trust,03/12/2021,(81400) Medical Surgical Supplies & Equipment,(id:581409) Pharmacy,AMERCARE LTD,id:14475503 ,2280.00
Department of Health,Guys and St Thomas NHS Foundation Trust,03/12/2021,(81400) Medical Surgical Supplies & Equipment,(id:581409) Pharmacy,VALIDAIR (EURO) LTD,id:14691366    ,3480.00
Department of Health,Guys and St Thomas NHS Foundation Trust,03/12/2021,(80040) Drug Costs,(id:42164) Pharmacy,NHS BUSINESS SERVICES AUTHORITY,id:14686544,  56.29
Department of Health,Guys and St Thomas NHS Foundation Trust,10/12/2021,(81200) Medical Surgical Supplies & Equipment,(id:3695419) Medical Specialties,NHS SUPPLY CHAIN (MAIDSTONE),id:14665974   ,  69.06
Department of Health,Guys and St Thomas NHS Foundation Trust,22/12/2021,(82800) Bedding & Linen,(id:42176) Medical Specialties,NHS SUPPLY CHAIN (MAIDSTONE),id:14687496  ,  21.56
Department of Health,Guys and St Thomas NHS Foundation Trust,03/12/2021,(81000) Surgical Appliances,(id:42171) Medical Specialties,TALAR MADE ORTHOTICS LTD,id:14688800  , 110.58
Department of Health,Guys and St Thomas NHS Foundation Trust,17/12/2021,(50552) Qualified Nursing Staff,(id:42217) Medical Specialties,CONTINENTAL NURSE LTD,id:14729402 ,1037.63
Department of Health,Guys and St Thomas NHS Foundation Trust,22/12/2021,(81700) Lab Equipment Purchase,(id:42217) Medical Specialties,NHS SUPPLY CHAIN (MAIDSTONE),id:14687496, 163.20
Department of Health,Guys and St Thomas NHS Foundation Trust,21/12/2021,(51262) Dieticians,(id:3731419) Medical Specialties,PRICEWATERHOUSECOOPERS LLP,id:14741874  , 668.70
Department of Health,Guys and St Thomas NHS Foundation Trust,21/12/2021,(51262) Dieticians,(id:42249) Medical Specialties,PRICEWATERHOUSECOOPERS LLP,id:14741874    ,1133.60
Department of Health,Guys and St Thomas NHS Foundation Trust,21/12/2021,(51262) Dieticians,(id:42249) Medical Specialties,PRICEWATERHOUSECOOPERS LLP,id:14741514    ,1133.60
Department of Health,Guys and St Thomas NHS Foundation Trust,17/12/2021,(83755) Rental under Operating Lease,(id:42224) Medical Specialties,COMMUNITY HEALTH PARTNERSHIPS,id:14711882   ,2884.39
Department of Health,Guys and St Thomas NHS Foundation Trust,22/12/2021,(81200) Medical Surgical Supplies & Equipment,(id:42221) Medical Specialties,JOHNSON & JOHNSON MEDICAL LTD,id:14697047    ,2119.10
Department of Health,Guys and St Thomas NHS Foundation Trust,17/12/2021,(81200) Medical Surgical Supplies & Equipment,(id:42221) Medical Specialties,JOHNSON & JOHNSON MEDICAL LTD,id:14687909    ,2093.48
Department of Health,Guys and St Thomas NHS Foundation Trust,03/12/2021,(81200) Medical Surgical Supplies & Equipment,(id:42221) Medical Specialties,ALCON EYE CARE UK LIMITED,id:14576799   ,  60.00
Department of Health,Guys and St Thomas NHS Foundation Trust,03/12/2021,(81200) Medical Surgical Supplies & Equipment,(id:42221) Medical Specialties,ALCON EYE CARE UK LIMITED,id:14246395   , 933.60
Department of Health,Guys and St Thomas NHS Foundation Trust,03/12/2021,(81200) Medical Surgical Supplies & Equipment,(id:42221) Medical Specialties,ALCON EYE CARE UK LIMITED,id:14686828   ,3024.00
Department of Health,Guys and St Thomas NHS Foundation Trust,10/12/2021,(81200) Medical Surgical Supplies & Equipment,(id:42221) Medical Specialties,DAYBREAK MEDICAL LTD,id:14699774   , 745.19
Department of Health,Guys and St Thomas NHS Foundation Trust,23/12/2021,(81200) Medical Surgical Supplies & Equipment,(id:42223) Medical Specialties,KEELER LTD,id:14748576   ,4783.22
Department of Health,Guys and St Thomas NHS Foundation Trust,03/12/2021,(81200) Medical Surgical Supplies & Equipment,(id:42223) Medical Specialties,ALCON EYE CARE UK LIMITED,id:14353694   , 918.00
Department of Health,Guys and St Thomas NHS Foundation Trust,03/12/2021,(81200) Medical Surgical Supplies & Equipment,(id:42223) Medical Specialties,BLINK MEDICAL LTD,id:14616799 ,1027.20
Department of Health,Guys and St Thomas NHS Foundation Trust,10/12/2021,(81200) Medical Surgical Supplies & Equipment,(id:42223) Medical Specialties,OCURA HEALTHCARE FURNITURE,id:14687109  ,1169.28
Department of Health,Guys and St Thomas NHS Foundation Trust,10/12/2021,(82000) Provisions & Kitchens,(id:42208) Medical Specialties,NHS SUPPLY CHAIN (MAIDSTONE),id:14665974 ,  26.17
Department of Health,Guys and St Thomas NHS Foundation Trust,23/12/2021,(82800) Bedding & Linen,(id:42208) Medical Specialties,NHS SUPPLY CHAIN (MAIDSTONE),id:14704159  , 172.51
Department of Health,Guys and St Thomas NHS Foundation Trust,22/12/2021,(81200) Medical Surgical Supplies & Equipment,(id:42208) Medical Specialties,AIR LIQUIDE (HOMECARE) LTD,id:14743296  , 520.80
Department of Health,Guys and St Thomas NHS Foundation Trust,22/12/2021,(81200) Medical Surgical Supplies & Equipment,(id:42208) Medical Specialties,MEDTRONIC LTD,id:14697043, 850.50
Department of Health,Guys and St Thomas NHS Foundation Trust,23/12/2021,(81200) Medical Surgical Supplies & Equipment,(id:42208) Medical Specialties,MEDTRONIC LTD,id:14552000, 567.00
Department of Health,Guys and St Thomas NHS Foundation Trust,23/12/2021,(81200) Medical Surgical Supplies & Equipment,(id:42208) Medical Specialties,MEDTRONIC LTD,id:14705653, 594.00
Department of Health,Guys and St Thomas NHS Foundation Trust,23/12/2021,(81200) Medical Surgical Supplies & Equipment,(id:42208) Medical Specialties,AIR LIQUIDE (HOMECARE) LTD,id:14749294  ,3366.00
Department of Health,Guys and St Thomas NHS Foundation Trust,03/12/2021,(81200) Medical Surgical Supplies & Equipment,(id:42208) Medical Specialties,AIR LIQUIDE (HOMECARE) LTD,id:14692267  ,1104.00
Department of Health,Guys and St Thomas NHS Foundation Trust,03/12/2021,(81200) Medical Surgical Supplies & Equipment,(id:42208) Medical Specialties,AIR LIQUIDE (HOMECARE) LTD,id:14671617  ,3366.00
Department of Health,Guys and St Thomas NHS Foundation Trust,10/12/2021,(81200) Medical Surgical Supplies & Equipment,(id:42208) Medical Specialties,DEXCOM INTERNATIONAL LTD,id:14710395    , 793.50
Department of Health,Guys and St Thomas NHS Foundation Trust,03/12/2021,(89680) Non-Healthcare from CCGs & NHS England,(id:42213) Medical Specialties,NHS SOUTH EAST LONDON CCG,id:14639814  ,3401.12
Department of Health,Guys and St Thomas NHS Foundation Trust,17/12/2021,(80010) Drug Costs,(id:42204) Medical Specialties,THE LONDON UPRIGHT MRI CENTRE:70838400,id:14672264  ,1150.00
Department of Health,Guys and St Thomas NHS Foundation Trust,17/12/2021,(89440) Research and Development,(id:4127419) Medical Specialties,KINGS COLLEGE LONDON:03529700,id:14726276,6400.00
Department of Health,Guys and St Thomas NHS Foundation Trust,10/12/2021,(89640) Non-Healthcare from NHS Trusts,(id:3235419) Medical Specialties,DARTFORD AND GRAVESHAM NHS TRUST,id:14684039 ,2023.03
Department of Health,Guys and St Thomas NHS Foundation Trust,23/12/2021,(81200) Medical Surgical Supplies & Equipment,(id:41937) Medical Specialties,NHS SUPPLY CHAIN (MAIDSTONE),id:14704159,   162390.83
Department of Health,Guys and St Thomas NHS Foundation Trust,23/12/2021,(81200) Medical Surgical Supplies & Equipment,(id:41937) Medical Specialties,MEDTRONIC LTD,id:12917803,    40735.20
Department of Health,Guys and St Thomas NHS Foundation Trust,22/12/2021,(81100) Dressings,(id:41937) Medical Specialties,NHS SUPPLY CHAIN (MAIDSTONE),id:14687496   ,  35.88
Department of Health,Guys and St Thomas NHS Foundation Trust,17/12/2021,(84656) Establishment,(id:41937) Medical Specialties,DICT8 LIMITED,id:14712654    ,1937.52
Department of Health,Guys and St Thomas NHS Foundation Trust,21/12/2021,(53072) Speech Therapists,(id:184406) Therapies and Rehabilitation,PRICEWATERHOUSECOOPERS LLP,id:14741874  ,1411.24
Department of Health,Guys and St Thomas NHS Foundation Trust,21/12/2021,(53072) Speech Therapists,(id:184406) Therapies and Rehabilitation,PRICEWATERHOUSECOOPERS LLP,id:14741514  ,2586.63
Department of Health,Guys and St Thomas NHS Foundation Trust,23/12/2021,(81200) Medical Surgical Supplies & Equipment,(id:42232) Therapies and Rehabilitation,NHS SUPPLY CHAIN (MAIDSTONE),id:14704159 , 447.60
Department of Health,Guys and St Thomas NHS Foundation Trust,21/12/2021,(51862) Physiotherapists,(id:42230) Therapies and Rehabilitation,PRICEWATERHOUSECOOPERS LLP,id:14741514    ,2294.72
Department of Health,Guys and St Thomas NHS Foundation Trust,22/12/2021,(81200) Medical Surgical Supplies & Equipment,(id:42230) Therapies and Rehabilitation,NHS SUPPLY CHAIN (MAIDSTONE),id:14687496 ,  18.08
Department of Health,Guys and St Thomas NHS Foundation Trust,22/12/2021,(81100) Dressings,(id:590530) Therapies and Rehabilitation,NHS SUPPLY CHAIN (MAIDSTONE),id:14687496   ,   3.84
Department of Health,Guys and St Thomas NHS Foundation Trust,10/12/2021,(81100) Dressings,(id:590530) Therapies and Rehabilitation,NHS SUPPLY CHAIN (MAIDSTONE),id:14665974   , 248.57
Department of Health,Guys and St Thomas NHS Foundation Trust,10/12/2021,(81200) Medical Surgical Supplies & Equipment,(id:590530) Therapies and Rehabilitation,NHS SUPPLY CHAIN (MAIDSTONE),id:14665974, 151.63
Department of Health,Guys and St Thomas NHS Foundation Trust,21/12/2021,(51062) Chiropodists,(id:590490) Therapies and Rehabilitation,PRICEWATERHOUSECOOPERS LLP,id:14741919  , 984.78
Department of Health,Guys and St Thomas NHS Foundation Trust,22/12/2021,(81200) Medical Surgical Supplies & Equipment,(id:590490) Therapies and Rehabilitation,NHS SUPPLY CHAIN (MAIDSTONE),id:14687496, 238.29
Department of Health,Guys and St Thomas NHS Foundation Trust,10/12/2021,(81200) Medical Surgical Supplies & Equipment,(id:590490) Therapies and Rehabilitation,NHS SUPPLY CHAIN (MAIDSTONE),id:14665974,  67.27
Department of Health,Guys and St Thomas NHS Foundation Trust,23/12/2021,(81100) Dressings,(id:590490) Therapies and Rehabilitation,NHS SUPPLY CHAIN (MAIDSTONE),id:14704159   , 106.51
Department of Health,Guys and St Thomas NHS Foundation Trust,22/12/2021,(81225) Medical Surgical Supplies & Equipment,(id:590490) Therapies and Rehabilitation,NHS SUPPLY CHAIN (MAIDSTONE),id:14687496, 989.28
Department of Health,Guys and St Thomas NHS Foundation Trust,21/12/2021,(51062) Chiropodists,(id:42243) Therapies and Rehabilitation,PRICEWATERHOUSECOOPERS LLP,id:14741919   ,1173.31
Department of Health,Guys and St Thomas NHS Foundation Trust,23/12/2021,(81100) Dressings,(id:42243) Therapies and Rehabilitation,NHS SUPPLY CHAIN (MAIDSTONE),id:14704159    , 775.50
Department of Health,Guys and St Thomas NHS Foundation Trust,21/12/2021,(52062) Radiographers,(id:42243) Therapies and Rehabilitation,PRICEWATERHOUSECOOPERS LLP,id:14741919  ,1292.37
Department of Health,Guys and St Thomas NHS Foundation Trust,22/12/2021,(83400) Office Equipment,(id:42247) Therapies and Rehabilitation,NHS SUPPLY CHAIN (MAIDSTONE),id:14687496  ,   3.24
Department of Health,Guys and St Thomas NHS Foundation Trust,10/12/2021,(81225) Medical Surgical Supplies & Equipment,(id:42242) Therapies and Rehabilitation,BROWNS MORE HAIR NOW LIMITED,id:14695514 ,4256.00
Department of Health,Guys and St Thomas NHS Foundation Trust,23/12/2021,(86300) Healthcare from non-NHS bodies,(id:590497) Therapies and Rehabilitation,OPCARE LTD,id:14748957, 731.45
Department of Health,Guys and St Thomas NHS Foundation Trust,22/12/2021,(81225) Medical Surgical Supplies & Equipment,(id:590498) Therapies and Rehabilitation,REED MEDICAL LIMITED,id:14733054   , 566.66
Department of Health,Guys and St Thomas NHS Foundation Trust,03/12/2021,(81225) Medical Surgical Supplies & Equipment,(id:590498) Therapies and Rehabilitation,JANE SAUNDERS & MANNING LTD,id:14679196 , 704.34
Department of Health,Guys and St Thomas NHS Foundation Trust,10/12/2021,(81225) Medical Surgical Supplies & Equipment,(id:590498) Therapies and Rehabilitation,REED MEDICAL LIMITED,id:14695789   , 548.99
Department of Health,Guys and St Thomas NHS Foundation Trust,10/12/2021,(81225) Medical Surgical Supplies & Equipment,(id:590498) Therapies and Rehabilitation,JANE SAUNDERS & MANNING LTD,id:14705143 , 598.27
Department of Health,Guys and St Thomas NHS Foundation Trust,10/12/2021,(81225) Medical Surgical Supplies & Equipment,(id:590498) Therapies and Rehabilitation,THUASNE UK LTD,id:14705034    , 708.00
Department of Health,Guys and St Thomas NHS Foundation Trust,10/12/2021,(81225) Medical Surgical Supplies & Equipment,(id:590498) Therapies and Rehabilitation,JANE SAUNDERS & MANNING LTD,id:14705140 , 844.94
Department of Health,Guys and St Thomas NHS Foundation Trust,03/12/2021,(81000) Surgical Appliances,(id:590498) Therapies and Rehabilitation,ALLARD SUPPORT LTD,id:14606074   ,2950.80
Department of Health,Guys and St Thomas NHS Foundation Trust,10/12/2021,(81100) Dressings,(id:590498) Therapies and Rehabilitation,NHS SUPPLY CHAIN (MAIDSTONE),id:14665974   , 420.33
Department of Health,Guys and St Thomas NHS Foundation Trust,22/12/2021,(81200) Medical Surgical Supplies & Equipment,(id:590499) Therapies and Rehabilitation,INVACARE LTD,id:14732554 , 621.60
Department of Health,Guys and St Thomas NHS Foundation Trust,22/12/2021,(81200) Medical Surgical Supplies & Equipment,(id:590499) Therapies and Rehabilitation,INVACARE LTD,id:14732556 , 667.20
Department of Health,Guys and St Thomas NHS Foundation Trust,22/12/2021,(81200) Medical Surgical Supplies & Equipment,(id:590499) Therapies and Rehabilitation,INVACARE LTD,id:14732595 ,2916.00
Department of Health,Guys and St Thomas NHS Foundation Trust,03/12/2021,(81200) Medical Surgical Supplies & Equipment,(id:590499) Therapies and Rehabilitation,INVACARE LTD,id:14676503 ,3110.40
Department of Health,Guys and St Thomas NHS Foundation Trust,03/12/2021,(81200) Medical Surgical Supplies & Equipment,(id:590499) Therapies and Rehabilitation,INVACARE LTD,id:14676515 ,3914.40
Department of Health,Guys and St Thomas NHS Foundation Trust,17/12/2021,(81225) Medical Surgical Supplies & Equipment,(id:590499) Therapies and Rehabilitation,BES HEALTHCARE LTD,id:14703254,3588.30
Department of Health,Guys and St Thomas NHS Foundation Trust,03/12/2021,(81225) Medical Surgical Supplies & Equipment,(id:590499) Therapies and Rehabilitation,R82 UK LTD,id:14350261   , 520.44
Department of Health,Guys and St Thomas NHS Foundation Trust,10/12/2021,(81225) Medical Surgical Supplies & Equipment,(id:590499) Therapies and Rehabilitation,FORMAL GROUP LTD,id:14695954  , 895.20
Department of Health,Guys and St Thomas NHS Foundation Trust,22/12/2021,(81100) Dressings,(id:1042419) Therapies and Rehabilitation,NHS SUPPLY CHAIN (MAIDSTONE),id:14687496  , 145.61
Department of Health,Guys and St Thomas NHS Foundation Trust,10/12/2021,(82800) Bedding & Linen,(id:42366) Clinical Imaging & Med Physics,NHS SUPPLY CHAIN (MAIDSTONE),id:14665974 , 130.52
Department of Health,Guys and St Thomas NHS Foundation Trust,23/12/2021,(81500) X Ray Equipment Purchase,(id:42366) Clinical Imaging & Med Physics,NHS SUPPLY CHAIN (MAIDSTONE),id:14704159  ,3758.69
Department of Health,Guys and St Thomas NHS Foundation Trust,22/12/2021,(81700) Lab Equipment Purchase,(id:42366) Clinical Imaging & Med Physics,NHS SUPPLY CHAIN (MAIDSTONE),id:14687496    ,  54.05
Department of Health,Guys and St Thomas NHS Foundation Trust,22/12/2021,(81400) Medical Surgical Supplies & Equipment,(id:42367) Clinical Imaging & Med Physics,NHS SUPPLY CHAIN ( CAPITAL FUND ONLY),id:14747383,6437.49
Department of Health,Guys and St Thomas NHS Foundation Trust,22/12/2021,(80010) Drug Costs,(id:42367) Clinical Imaging & Med Physics,COMPLEO HEALTH UK LTD,id:14746787   ,4872.00
Department of Health,Guys and St Thomas NHS Foundation Trust,17/12/2021,(81200) Medical Surgical Supplies & Equipment,(id:42367) Clinical Imaging & Med Physics,COOK UK LTD,id:14643582 ,  79.20
Department of Health,Guys and St Thomas NHS Foundation Trust,17/12/2021,(81200) Medical Surgical Supplies & Equipment,(id:42367) Clinical Imaging & Med Physics,COOK UK LTD,id:14638924 , 674.40
Department of Health,Guys and St Thomas NHS Foundation Trust,17/12/2021,(81200) Medical Surgical Supplies & Equipment,(id:42367) Clinical Imaging & Med Physics,COOK UK LTD,id:14643579 ,1800.00
Department of Health,Guys and St Thomas NHS Foundation Trust,23/12/2021,(81200) Medical Surgical Supplies & Equipment,(id:42367) Clinical Imaging & Med Physics,VOLCANO EUROPE BVBA/SPRL,id:14724019   ,1668.00
Department of Health,Guys and St Thomas NHS Foundation Trust,17/12/2021,(81200) Medical Surgical Supplies & Equipment,(id:42367) Clinical Imaging & Med Physics,CARDINAL HEALTH UK 432 LIMITED,id:14687837  , 343.80
Department of Health,Guys and St Thomas NHS Foundation Trust,17/12/2021,(81200) Medical Surgical Supplies & Equipment,(id:42367) Clinical Imaging & Med Physics,BOSTON SCIENTIFIC LTD,id:14695645 , 932.40
Department of Health,Guys and St Thomas NHS Foundation Trust,03/12/2021,(81200) Medical Surgical Supplies & Equipment,(id:42367) Clinical Imaging & Med Physics,SHOCKWAVE MEDICAL,id:14680334,3600.00
Department of Health,Guys and St Thomas NHS Foundation Trust,03/12/2021,(81200) Medical Surgical Supplies & Equipment,(id:42367) Clinical Imaging & Med Physics,SHOCKWAVE MEDICAL,id:14687543,1800.00
Department of Health,Guys and St Thomas NHS Foundation Trust,03/12/2021,(81200) Medical Surgical Supplies & Equipment,(id:42367) Clinical Imaging & Med Physics,VOLCANO EUROPE BVBA/SPRL,id:14688828   , 540.00
Department of Health,Guys and St Thomas NHS Foundation Trust,06/12/2021,(81200) Medical Surgical Supplies & Equipment,(id:42367) Clinical Imaging & Med Physics,APRIOMED AB,id:14689384 , 720.00
Department of Health,Guys and St Thomas NHS Foundation Trust,06/12/2021,(81200) Medical Surgical Supplies & Equipment,(id:42367) Clinical Imaging & Med Physics,APRIOMED AB,id:14136557 , 730.00
Department of Health,Guys and St Thomas NHS Foundation Trust,10/12/2021,(81200) Medical Surgical Supplies & Equipment,(id:42367) Clinical Imaging & Med Physics,BARD LTD,id:14670041    , 624.00
Department of Health,Guys and St Thomas NHS Foundation Trust,10/12/2021,(81200) Medical Surgical Supplies & Equipment,(id:42367) Clinical Imaging & Med Physics,COOK UK LTD,id:14660689 , 499.20
Department of Health,Guys and St Thomas NHS Foundation Trust,10/12/2021,(81200) Medical Surgical Supplies & Equipment,(id:42367) Clinical Imaging & Med Physics,COOK UK LTD,id:14672205 , 816.00
Department of Health,Guys and St Thomas NHS Foundation Trust,22/12/2021,(81200) Medical Surgical Supplies & Equipment,(id:42367) Clinical Imaging & Med Physics,SHOCKWAVE MEDICAL,id:14741454,1800.00
Department of Health,Guys and St Thomas NHS Foundation Trust,10/12/2021,(81235) Medical Surgical Supplies & Equipment,(id:42367) Clinical Imaging & Med Physics,BOSTON SCIENTIFIC LTD,id:14651223 , 204.00
Department of Health,Guys and St Thomas NHS Foundation Trust,10/12/2021,(81235) Medical Surgical Supplies & Equipment,(id:42367) Clinical Imaging & Med Physics,BOSTON SCIENTIFIC LTD,id:14662745 , 384.00
Department of Health,Guys and St Thomas NHS Foundation Trust,17/12/2021,(81230) Medical Surgical Supplies & Equipment,(id:42367) Clinical Imaging & Med Physics,TERUMO UK LTD,id:14712378    , 420.00
Department of Health,Guys and St Thomas NHS Foundation Trust,23/12/2021,(81500) X Ray Equipment Purchase,(id:42367) Clinical Imaging & Med Physics,FUJIFILM UK LTD,id:14645896,1638.14
Department of Health,Guys and St Thomas NHS Foundation Trust,22/12/2021,(81500) X Ray Equipment Purchase,(id:42367) Clinical Imaging & Med Physics,NHS SUPPLY CHAIN (MAIDSTONE),id:14687496  ,1332.00
Department of Health,Guys and St Thomas NHS Foundation Trust,03/12/2021,(50552) Qualified Nursing Staff,(id:42368) Clinical Imaging & Med Physics,CONTINENTAL NURSE LTD,id:14692074,1189.02
Department of Health,Guys and St Thomas NHS Foundation Trust,21/12/2021,(50202) Consultants,(id:42368) Clinical Imaging & Med Physics,PRICEWATERHOUSECOOPERS LLP,id:14741919  ,5948.19
Department of Health,Guys and St Thomas NHS Foundation Trust,10/12/2021,(81100) Dressings,(id:42372) Clinical Imaging & Med Physics,NHS SUPPLY CHAIN (MAIDSTONE),id:14665974  , 124.70
Department of Health,Guys and St Thomas NHS Foundation Trust,23/12/2021,(82800) Bedding & Linen,(id:42372) Clinical Imaging & Med Physics,NHS SUPPLY CHAIN (MAIDSTONE),id:14704159 ,  10.55
Department of Health,Guys and St Thomas NHS Foundation Trust,17/12/2021,(81275) Medical Surgical Supplies & Equipment,(id:42372) Clinical Imaging & Med Physics,GE HEALTHCARE (50652318),id:14690149   , 756.00
Department of Health,Guys and St Thomas NHS Foundation Trust,17/12/2021,(81275) Medical Surgical Supplies & Equipment,(id:42372) Clinical Imaging & Med Physics,GE HEALTHCARE (50652318),id:14690152   ,-959.57
Department of Health,Guys and St Thomas NHS Foundation Trust,03/12/2021,(81275) Medical Surgical Supplies & Equipment,(id:42372) Clinical Imaging & Med Physics,GE HEALTHCARE (50652318),id:14553155   , 959.57
Department of Health,Guys and St Thomas NHS Foundation Trust,03/12/2021,(81275) Medical Surgical Supplies & Equipment,(id:42372) Clinical Imaging & Med Physics,GE HEALTHCARE (50652318),id:14689935   ,1260.00
Department of Health,Guys and St Thomas NHS Foundation Trust,10/12/2021,(81275) Medical Surgical Supplies & Equipment,(id:42372) Clinical Imaging & Med Physics,GE HEALTHCARE (50652318),id:14689914   ,4794.00
Department of Health,Guys and St Thomas NHS Foundation Trust,10/12/2021,(81275) Medical Surgical Supplies & Equipment,(id:42372) Clinical Imaging & Med Physics,GE HEALTHCARE (50652318),id:14689955   , 756.00
Department of Health,Guys and St Thomas NHS Foundation Trust,17/12/2021,(81500) X Ray Equipment Purchase,(id:42372) Clinical Imaging & Med Physics,CURIUM PHARMA UK LTD,id:14706506,1934.40
Department of Health,Guys and St Thomas NHS Foundation Trust,17/12/2021,(81500) X Ray Equipment Purchase,(id:4187419) Clinical Imaging & Med Physics,CURIUM PHARMA UK LTD,id:14726250   ,    56346.00
Department of Health,Guys and St Thomas NHS Foundation Trust,22/12/2021,(81500) X Ray Equipment Purchase,(id:4187419) Clinical Imaging & Med Physics,ADVANCED ACCELERATOR APPLICATIONS (UK & IRELAND) LTD,id:14747554 ,    63402.00
Department of Health,Guys and St Thomas NHS Foundation Trust,03/12/2021,(81500) X Ray Equipment Purchase,(id:4187419) Clinical Imaging & Med Physics,CURIUM PHARMA UK LTD,id:14681894   ,    39354.00
Department of Health,Guys and St Thomas NHS Foundation Trust,03/12/2021,(81500) X Ray Equipment Purchase,(id:4187419) Clinical Imaging & Med Physics,ADVANCED ACCELERATOR APPLICATIONS (UK & IRELAND) LTD,id:14651595 ,    15658.50
Department of Health,Guys and St Thomas NHS Foundation Trust,22/12/2021,(81500) X Ray Equipment Purchase,(id:4187419) Clinical Imaging & Med Physics,ADVANCED ACCELERATOR APPLICATIONS (UK & IRELAND) LTD,id:14731614 ,    15658.50
Department of Health,Guys and St Thomas NHS Foundation Trust,03/12/2021,(81700) Lab Equipment Purchase,(id:42374) Clinical Imaging & Med Physics,TRI-TECH ENGINEERING T/A TRI-TECH 3D,id:14671597 ,2574.00
Department of Health,Guys and St Thomas NHS Foundation Trust,03/12/2021,(81700) Lab Equipment Purchase,(id:42374) Clinical Imaging & Med Physics,TRI-TECH ENGINEERING T/A TRI-TECH 3D,id:14671595 ,1080.00
Department of Health,Guys and St Thomas NHS Foundation Trust,17/12/2021,(84600) Establishment,(id:42376) Clinical Imaging & Med Physics,SALOMONS UK LIMITED,id:14723850  ,    12737.45
Department of Health,Guys and St Thomas NHS Foundation Trust,03/12/2021,(83400) Office Equipment,(id:42378) Clinical Imaging & Med Physics,KINGSFIELD COMPUTER PRODUCTS LTD,id:14671574 , 789.54
Department of Health,Guys and St Thomas NHS Foundation Trust,17/12/2021,(83610) IT Costs,(id:42378) Clinical Imaging & Med Physics,SCAN COMPUTERS INTERNATIONAL LTD,id:14720506    ,    96800.50
Department of Health,Guys and St Thomas NHS Foundation Trust,17/12/2021,(81400) Medical Surgical Supplies & Equipment,(id:42379) Clinical Imaging & Med Physics,MEDACX LIMITED,id:14720445   , 594.90
Department of Health,Guys and St Thomas NHS Foundation Trust,17/12/2021,(81400) Medical Surgical Supplies & Equipment,(id:42379) Clinical Imaging & Med Physics,ZOLL MEDICAL UK LTD,id:14691057   ,1342.17
Department of Health,Guys and St Thomas NHS Foundation Trust,17/12/2021,(81400) Medical Surgical Supplies & Equipment,(id:42379) Clinical Imaging & Med Physics,TENACORE UK LTD,id:14675634  , 695.00
Department of Health,Guys and St Thomas NHS Foundation Trust,17/12/2021,(81200) Medical Surgical Supplies & Equipment,(id:42379) Clinical Imaging & Med Physics,TENACORE UK LTD,id:14675634  ,  24.00
Department of Health,Guys and St Thomas NHS Foundation Trust,23/12/2021,(81200) Medical Surgical Supplies & Equipment,(id:42379) Clinical Imaging & Med Physics,AGILE MEDICAL,id:14722917    , 598.32
Department of Health,Guys and St Thomas NHS Foundation Trust,03/12/2021,(81200) Medical Surgical Supplies & Equipment,(id:42379) Clinical Imaging & Med Physics,MINDRAY UK LTD,id:14686945   , 510.00
Department of Health,Guys and St Thomas NHS Foundation Trust,03/12/2021,(81200) Medical Surgical Supplies & Equipment,(id:42379) Clinical Imaging & Med Physics,FRESENIUS KABI LTD,id:14631025    ,1036.80
Department of Health,Guys and St Thomas NHS Foundation Trust,03/12/2021,(81200) Medical Surgical Supplies & Equipment,(id:42379) Clinical Imaging & Med Physics,TENACORE UK LTD,id:14562753  ,  24.00
Department of Health,Guys and St Thomas NHS Foundation Trust,03/12/2021,(81200) Medical Surgical Supplies & Equipment,(id:42379) Clinical Imaging & Med Physics,PHILIPS HEALTHCARE,id:14687386    ,4074.00
Department of Health,Guys and St Thomas NHS Foundation Trust,03/12/2021,(81200) Medical Surgical Supplies & Equipment,(id:42379) Clinical Imaging & Med Physics,DRAEGER MEDICAL UK LTD,id:14638048,1667.09
Department of Health,Guys and St Thomas NHS Foundation Trust,03/12/2021,(83880) Building & Engineering,(id:42381) Clinical Imaging & Med Physics,SMITHS METAL CENTRES LTD LTD,id:14622714    ,1305.17
Department of Health,Guys and St Thomas NHS Foundation Trust,17/12/2021,(81200) Medical Surgical Supplies & Equipment,(id:5336419) Clinical Imaging & Med Physics,PHARMED UK LTD (FORMERLY NEUROTECHNICS LTD),id:14691551  ,    14057.16
Department of Health,Guys and St Thomas NHS Foundation Trust,10/12/2021,(81250) Medical Surgical Supplies & Equipment,(id:1348419) Clinical Imaging & Med Physics,ACROSTAK-UK LTD,id:14691594, 506.40
Department of Health,Guys and St Thomas NHS Foundation Trust,17/12/2021,(81200) Medical Surgical Supplies & Equipment,(id:1348419) Clinical Imaging & Med Physics,BENTLEY INNOMED GMBH,id:14703221,1020.00
Department of Health,Guys and St Thomas NHS Foundation Trust,17/12/2021,(81200) Medical Surgical Supplies & Equipment,(id:1348419) Clinical Imaging & Med Physics,BENTLEY INNOMED GMBH,id:14703223,1020.00
Department of Health,Guys and St Thomas NHS Foundation Trust,17/12/2021,(81200) Medical Surgical Supplies & Equipment,(id:1348419) Clinical Imaging & Med Physics,BOSTON SCIENTIFIC LTD,id:14672106    ,1260.00
Department of Health,Guys and St Thomas NHS Foundation Trust,17/12/2021,(81200) Medical Surgical Supplies & Equipment,(id:1348419) Clinical Imaging & Med Physics,MEDTRONIC LTD,id:14695813  ,1680.00
Department of Health,Guys and St Thomas NHS Foundation Trust,23/12/2021,(81200) Medical Surgical Supplies & Equipment,(id:1348419) Clinical Imaging & Med Physics,WERFEN LIMITED,id:14749175 ,1029.53
Department of Health,Guys and St Thomas NHS Foundation Trust,06/12/2021,(81200) Medical Surgical Supplies & Equipment,(id:1348419) Clinical Imaging & Med Physics,APRIOMED AB,id:14158334    ,    -2265.00
Department of Health,Guys and St Thomas NHS Foundation Trust,10/12/2021,(81200) Medical Surgical Supplies & Equipment,(id:1348419) Clinical Imaging & Med Physics,NHS SUPPLY CHAIN (MAIDSTONE),id:14665974  ,3177.79
Department of Health,Guys and St Thomas NHS Foundation Trust,17/12/2021,(80100) Drug Costs,(id:1348419) Clinical Imaging & Med Physics,AIR LIQUIDE (HOMECARE) LTD,id:14404834 ,1348.21
Department of Health,Guys and St Thomas NHS Foundation Trust,03/12/2021,(84600) Establishment,(id:42255) Integrated Local Services,SELDOC LTD,id:14687315 ,4500.00
Department of Health,Guys and St Thomas NHS Foundation Trust,22/12/2021,(82000) Provisions & Kitchens,(id:590597) Integrated Local Services,NHS SUPPLY CHAIN (MAIDSTONE),id:14687496    ,  17.88
Department of Health,Guys and St Thomas NHS Foundation Trust,22/12/2021,(82800) Bedding & Linen,(id:590469) Integrated Local Services,NHS SUPPLY CHAIN (MAIDSTONE),id:14687496,  86.26
Department of Health,Guys and St Thomas NHS Foundation Trust,10/12/2021,(82000) Provisions & Kitchens,(id:590432) Integrated Local Services,NHS SUPPLY CHAIN (MAIDSTONE),id:14665974    , 165.60
Department of Health,Guys and St Thomas NHS Foundation Trust,10/12/2021,(82000) Provisions & Kitchens,(id:590427) Integrated Local Services,NHS SUPPLY CHAIN (MAIDSTONE),id:14665974    ,  51.42
Department of Health,Guys and St Thomas NHS Foundation Trust,10/12/2021,(83350) Premises Services,(id:4631420) Integrated Local Services,ASSIST SECURITY LIMITED,id:14018811  ,1440.00
Department of Health,Guys and St Thomas NHS Foundation Trust,22/12/2021,(83350) Premises Services,(id:4631420) Integrated Local Services,ASSIST SECURITY LIMITED,id:14743222  ,1260.00
Department of Health,Guys and St Thomas NHS Foundation Trust,10/12/2021,(81200) Medical Surgical Supplies & Equipment,(id:590563) Integrated Local Services,NHS SUPPLY CHAIN (MAIDSTONE),id:14665974   , 111.11
Department of Health,Guys and St Thomas NHS Foundation Trust,03/12/2021,(89000) Other - Training courses and conferences,(id:590577) Integrated Local Services,COLOUR POINT STUDIO,id:14686708    , 580.00
Department of Health,Guys and St Thomas NHS Foundation Trust,23/12/2021,(82800) Bedding & Linen,(id:590495) Integrated Local Services,NHS SUPPLY CHAIN (MAIDSTONE),id:14704159,  58.22
Department of Health,Guys and St Thomas NHS Foundation Trust,03/12/2021,(50562) Qualified Nursing Staff,(id:1885424) Integrated Local Services,MSI GROUP LTD,id:14691859 ,1474.89
Department of Health,Guys and St Thomas NHS Foundation Trust,17/12/2021,(50572) Qualified Nursing Staff,(id:699422) Integrated Local Services,MSI GROUP LTD,id:14726747  ,1697.69
Department of Health,Guys and St Thomas NHS Foundation Trust,03/12/2021,(50572) Qualified Nursing Staff,(id:699422) Integrated Local Services,MSI GROUP LTD,id:14694355  ,1388.96
Department of Health,Guys and St Thomas NHS Foundation Trust,22/12/2021,(83400) Office Equipment,(id:2357419) Integrated Local Services,NHS SUPPLY CHAIN (MAIDSTONE),id:14687496   ,   2.74
Department of Health,Guys and St Thomas NHS Foundation Trust,21/12/2021,(50202) Consultants,(id:2357419) Integrated Local Services,PRICEWATERHOUSECOOPERS LLP,id:14741874,1048.87
Department of Health,Guys and St Thomas NHS Foundation Trust,21/12/2021,(51472) Occupational Therapists,(id:1888419) Integrated Local Services,PRICEWATERHOUSECOOPERS LLP,id:14741874   ,1465.93
Department of Health,Guys and St Thomas NHS Foundation Trust,22/12/2021,(81200) Medical Surgical Supplies & Equipment,(id:684420) Integrated Local Services,NHS SUPPLY CHAIN (MAIDSTONE),id:14687496   , 212.59
Department of Health,Guys and St Thomas NHS Foundation Trust,21/12/2021,(51862) Physiotherapists,(id:1913419) Integrated Local Services,PRICEWATERHOUSECOOPERS LLP,id:14741874,1181.40
Department of Health,Guys and St Thomas NHS Foundation Trust,10/12/2021,(86300) Healthcare from non-NHS bodies,(id:684419) Integrated Local Services,NHS SUPPLY CHAIN (MAIDSTONE),id:14665974,  48.91
Department of Health,Guys and St Thomas NHS Foundation Trust,23/12/2021,(82000) Provisions & Kitchens,(id:590470) Integrated Local Services,NHS SUPPLY CHAIN (MAIDSTONE),id:14704159    ,  12.98
Department of Health,Guys and St Thomas NHS Foundation Trust,22/12/2021,(81100) Dressings,(id:590471) Integrated Local Services,NHS SUPPLY CHAIN (MAIDSTONE),id:14687496 ,    .71
Department of Health,Guys and St Thomas NHS Foundation Trust,22/12/2021,(83400) Office Equipment,(id:590471) Integrated Local Services,NHS SUPPLY CHAIN (MAIDSTONE),id:14687496    ,  23.50
Department of Health,Guys and St Thomas NHS Foundation Trust,17/12/2021,(50552) Qualified Nursing Staff,(id:590471) Integrated Local Services,NURSING 2000 LTD,id:14726829    ,1141.65
Department of Health,Guys and St Thomas NHS Foundation Trust,22/12/2021,(82600) Uniforms & Clothing,(id:590522) Integrated Local Services,NHS SUPPLY CHAIN (MAIDSTONE),id:14687496 , 119.95
Department of Health,Guys and St Thomas NHS Foundation Trust,03/12/2021,(81225) Medical Surgical Supplies & Equipment,(id:590527) Integrated Local Services,BENMOR MEDICAL UK LTD,id:14505208,1284.00
Department of Health,Guys and St Thomas NHS Foundation Trust,22/12/2021,(81100) Dressings,(id:903421) Integrated Local Services,NHS SUPPLY CHAIN (MAIDSTONE),id:14687496 , 114.08
Department of Health,Guys and St Thomas NHS Foundation Trust,23/12/2021,(81225) Medical Surgical Supplies & Equipment,(id:903421) Integrated Local Services,NHS SUPPLY CHAIN (MAIDSTONE),id:14704159   ,  16.70
Department of Health,Guys and St Thomas NHS Foundation Trust,22/12/2021,(81200) Medical Surgical Supplies & Equipment,(id:903421) Integrated Local Services,NHS SUPPLY CHAIN (MAIDSTONE),id:14687496   , 348.69
Department of Health,Guys and St Thomas NHS Foundation Trust,23/12/2021,(81200) Medical Surgical Supplies & Equipment,(id:903421) Integrated Local Services,NHS SUPPLY CHAIN (MAIDSTONE),id:14704159   , 705.62
Department of Health,Guys and St Thomas NHS Foundation Trust,23/12/2021,(82000) Provisions & Kitchens,(id:1379420) Integrated Local Services,NHS SUPPLY CHAIN (MAIDSTONE),id:14704159   ,  21.17
Department of Health,Guys and St Thomas NHS Foundation Trust,21/12/2021,(51832) Physiotherapists,(id:699421) Integrated Local Services,PRICEWATERHOUSECOOPERS LLP,id:14741919 ,1633.79
Department of Health,Guys and St Thomas NHS Foundation Trust,10/12/2021,(81200) Medical Surgical Supplies & Equipment,(id:776419) Integrated Local Services,NHS SUPPLY CHAIN (MAIDSTONE),id:14665974   ,  45.60
Department of Health,Guys and St Thomas NHS Foundation Trust,22/12/2021,(50552) Qualified Nursing Staff,(id:4609420) Integrated Local Services,NURSING 2000 LTD,id:14704515   , 594.21
Department of Health,Guys and St Thomas NHS Foundation Trust,03/12/2021,(50552) Qualified Nursing Staff,(id:4609420) Integrated Local Services,NURSING 2000 LTD,id:14671042   , 698.50
Department of Health,Guys and St Thomas NHS Foundation Trust,23/12/2021,(50552) Qualified Nursing Staff,(id:4263423) Integrated Local Services,MEDICARE HEALTH PROFESSIONALS LTD,id:14747045 ,1670.36
Department of Health,Guys and St Thomas NHS Foundation Trust,03/12/2021,(89270) Establishment,(id:4439419) Integrated Care Management,NHS SOUTHWARK CCG,id:12840948 ,    23753.00
Department of Health,Guys and St Thomas NHS Foundation Trust,03/12/2021,(89270) Establishment,(id:4439419) Integrated Care Management,NHS SOUTH EAST LONDON CCG,id:13129255   ,    34155.00
Department of Health,Guys and St Thomas NHS Foundation Trust,22/12/2021,(81100) Dressings,(id:42518) Evelina Womens Services,NHS SUPPLY CHAIN (MAIDSTONE),id:14687496    ,  43.78
Department of Health,Guys and St Thomas NHS Foundation Trust,22/12/2021,(81700) Lab Equipment Purchase,(id:42518) Evelina Womens Services,NHS SUPPLY CHAIN (MAIDSTONE),id:14687496 ,  80.66
Department of Health,Guys and St Thomas NHS Foundation Trust,10/12/2021,(80010) Drug Costs,(id:42517) Evelina Womens Services,PERSONAL HOMECARE PHARMACY LTD,id:14704219 ,    67443.91
Department of Health,Guys and St Thomas NHS Foundation Trust,17/12/2021,(80100) Drug Costs,(id:42517) Evelina Womens Services,BOC LTD :02107500,id:14712545    ,1194.49
Department of Health,Guys and St Thomas NHS Foundation Trust,10/12/2021,(89260) Clinical Services,(id:42517) Evelina Womens Services,YULIYA KOPEIKA,id:14703554,    11170.00
Department of Health,Guys and St Thomas NHS Foundation Trust,10/12/2021,(89260) Clinical Services,(id:42517) Evelina Womens Services,DR JAN GRACE,id:14704202  ,    12690.00
Department of Health,Guys and St Thomas NHS Foundation Trust,10/12/2021,(89260) Clinical Services,(id:42517) Evelina Womens Services,MR TAREK EL-TOUKHY,id:14703474 ,    14150.00
Department of Health,Guys and St Thomas NHS Foundation Trust,17/12/2021,(89640) Non-Healthcare from NHS Trusts,(id:42517) Evelina Womens Services,LEEDS TEACHING HOSPITALS NHS TRUST,id:12932460  ,1520.28
Department of Health,Guys and St Thomas NHS Foundation Trust,22/12/2021,(89640) Non-Healthcare from NHS Trusts,(id:42517) Evelina Womens Services,LEEDS TEACHING HOSPITALS NHS TRUST,id:14441703  , 789.27
Department of Health,Guys and St Thomas NHS Foundation Trust,10/12/2021,(89270) Establishment,(id:42517) Evelina Womens Services,SMARTSURVEY LTD,id:14694915   ,1020.00
Department of Health,Guys and St Thomas NHS Foundation Trust,03/12/2021,(81200) Medical Surgical Supplies & Equipment,(id:42517) Evelina Womens Services,THERMO FISHER SCIENTIFIC,id:14681514, 899.70
Department of Health,Guys and St Thomas NHS Foundation Trust,10/12/2021,(81200) Medical Surgical Supplies & Equipment,(id:42517) Evelina Womens Services,NHS SUPPLY CHAIN (MAIDSTONE),id:14665974 , 468.90
Department of Health,Guys and St Thomas NHS Foundation Trust,22/12/2021,(83400) Office Equipment,(id:42514) Evelina Womens Services,ASSIST SECURITY LIMITED,id:14743455  ,1706.25
Department of Health,Guys and St Thomas NHS Foundation Trust,22/12/2021,(83400) Office Equipment,(id:42514) Evelina Womens Services,ASSIST SECURITY LIMITED,id:14743375  ,1980.00
Department of Health,Guys and St Thomas NHS Foundation Trust,23/12/2021,(81200) Medical Surgical Supplies & Equipment,(id:42513) Evelina Womens Services,NHS SUPPLY CHAIN (MAIDSTONE),id:14704159 , 378.55
Department of Health,Guys and St Thomas NHS Foundation Trust,22/12/2021,(83400) Office Equipment,(id:42513) Evelina Womens Services,NHS SUPPLY CHAIN (MAIDSTONE),id:14687496  ,  54.99
Department of Health,Guys and St Thomas NHS Foundation Trust,03/12/2021,(81200) Medical Surgical Supplies & Equipment,(id:42509) Evelina Womens Services,STRYKER UK LTD,id:14692177,1699.20
Department of Health,Guys and St Thomas NHS Foundation Trust,10/12/2021,(81200) Medical Surgical Supplies & Equipment,(id:42509) Evelina Womens Services,NHS SUPPLY CHAIN (MAIDSTONE),id:14665974 , 948.74
Department of Health,Guys and St Thomas NHS Foundation Trust,22/12/2021,(81700) Lab Equipment Purchase,(id:42510) Evelina Womens Services,NHS SUPPLY CHAIN (MAIDSTONE),id:14687496 ,  92.88
Department of Health,Guys and St Thomas NHS Foundation Trust,22/12/2021,(83400) Office Equipment,(id:42506) Evelina Womens Services,NHS SUPPLY CHAIN (MAIDSTONE),id:14687496  , 108.74
Department of Health,Guys and St Thomas NHS Foundation Trust,23/12/2021,(81700) Lab Equipment Purchase,(id:42506) Evelina Womens Services,NHS SUPPLY CHAIN (MAIDSTONE),id:14704159 , 153.49
Department of Health,Guys and St Thomas NHS Foundation Trust,23/12/2021,(83400) Office Equipment,(id:42486) Evelina Womens Services,NHS SUPPLY CHAIN (MAIDSTONE),id:14704159  ,  29.63
Department of Health,Guys and St Thomas NHS Foundation Trust,03/12/2021,(89640) Non-Healthcare from NHS Trusts,(id:42486) Evelina Womens Services,BARKING HAVERING AND REDBRIDGE UNIVERSITY HOSPITALS NHS TRUST,id:14552561, 985.50
Department of Health,Guys and St Thomas NHS Foundation Trust,23/12/2021,(81100) Dressings,(id:42488) Evelina Womens Services,NHS SUPPLY CHAIN (MAIDSTONE),id:14704159    ,  90.25
Department of Health,Guys and St Thomas NHS Foundation Trust,22/12/2021,(82700) Uniforms & Clothing,(id:42491) Evelina Womens Services,NHS SUPPLY CHAIN (MAIDSTONE),id:14687496    ,  43.68
Department of Health,Guys and St Thomas NHS Foundation Trust,23/12/2021,(82000) Provisions & Kitchens,(id:42491) Evelina Womens Services,NHS SUPPLY CHAIN (MAIDSTONE),id:14704159  , 277.18
Department of Health,Guys and St Thomas NHS Foundation Trust,23/12/2021,(83400) Office Equipment,(id:42491) Evelina Womens Services,NHS SUPPLY CHAIN (MAIDSTONE),id:14704159  ,  55.18
Department of Health,Guys and St Thomas NHS Foundation Trust,23/12/2021,(82700) Uniforms & Clothing,(id:42492) Evelina Womens Services,NHS SUPPLY CHAIN (MAIDSTONE),id:14704159    ,  11.82
Department of Health,Guys and St Thomas NHS Foundation Trust,17/12/2021,(81100) Dressings,(id:42492) Evelina Womens Services,SMITHS MEDICAL INTERNATIONAL LTD:69519000,id:14712197 , 597.22
Department of Health,Guys and St Thomas NHS Foundation Trust,03/12/2021,(81200) Medical Surgical Supplies & Equipment,(id:42492) Evelina Womens Services,UNISURGE INTERNATIONAL LTD,id:14674494   , 886.50
Department of Health,Guys and St Thomas NHS Foundation Trust,23/12/2021,(81275) Medical Surgical Supplies & Equipment,(id:42492) Evelina Womens Services,NHS SUPPLY CHAIN (MAIDSTONE),id:14704159 ,  19.80
Department of Health,Guys and St Thomas NHS Foundation Trust,10/12/2021,(81200) Medical Surgical Supplies & Equipment,(id:42493) Evelina Womens Services,NHS SUPPLY CHAIN (MAIDSTONE),id:14665974 , 646.71
Department of Health,Guys and St Thomas NHS Foundation Trust,23/12/2021,(81275) Medical Surgical Supplies & Equipment,(id:42493) Evelina Womens Services,NHS SUPPLY CHAIN (MAIDSTONE),id:14704159 ,   5.34
Department of Health,Guys and St Thomas NHS Foundation Trust,23/12/2021,(81200) Medical Surgical Supplies & Equipment,(id:42496) Evelina Womens Services,NHS SUPPLY CHAIN (MAIDSTONE),id:14704159 ,  26.87
Department of Health,Guys and St Thomas NHS Foundation Trust,22/12/2021,(81700) Lab Equipment Purchase,(id:42496) Evelina Womens Services,NHS SUPPLY CHAIN (MAIDSTONE),id:14687496 ,  66.48
Department of Health,Guys and St Thomas NHS Foundation Trust,10/12/2021,(81100) Dressings,(id:42496) Evelina Womens Services,NHS SUPPLY CHAIN (MAIDSTONE),id:14665974    ,   3.26
Department of Health,Guys and St Thomas NHS Foundation Trust,03/12/2021,(50562) Qualified Nursing Staff,(id:42497) Evelina Womens Services,CARE PROVIDERS HEALTHCARE,id:14692034   ,1839.59
Department of Health,Guys and St Thomas NHS Foundation Trust,17/12/2021,(89595) Non-Healthcare from Foundation Trusts,(id:42504) Evelina Womens Services,CHELSEA AND WESTMINSTER HOSPITAL NHS FOUNDATION TRUST,id:14409534 , 734.76
Department of Health,Guys and St Thomas NHS Foundation Trust,03/12/2021,(89270) Establishment,(id:42504) Evelina Womens Services,IMPERIAL COLLEGE LONDON,id:14669854,5524.17
Department of Health,Guys and St Thomas NHS Foundation Trust,22/12/2021,(89640) Non-Healthcare from NHS Trusts,(id:42504) Evelina Womens Services,MAIDSTONE AND TUNBRIDGE WELLS NHS TRUST,id:14335414  , 580.07
Department of Health,Guys and St Thomas NHS Foundation Trust,23/12/2021,(82800) Bedding & Linen,(id:42348) Evelina Central,NHS SUPPLY CHAIN (MAIDSTONE),id:14704159 ,  95.06
Department of Health,Guys and St Thomas NHS Foundation Trust,03/12/2021,(84500) Establishment,(id:42348) Evelina Central,CDP  PRINT MANAGEMENT,id:14686621, 743.77
Department of Health,Guys and St Thomas NHS Foundation Trust,10/12/2021,(84500) Establishment,(id:42348) Evelina Central,CDP  PRINT MANAGEMENT,id:14686521, 528.01
Department of Health,Guys and St Thomas NHS Foundation Trust,03/12/2021,(84501) Establishment,(id:2965419) Evelina Central,AYA-CREATIVE LTD (PREV. ANDREW YOUNGER AND ASSOCIATES),id:14687107,1215.00
Department of Health,Guys and St Thomas NHS Foundation Trust,22/12/2021,(81200) Medical Surgical Supplies & Equipment,(id:42319) Evelina Central,NHS SUPPLY CHAIN (MAIDSTONE),id:14687496    , 177.77
Department of Health,Guys and St Thomas NHS Foundation Trust,22/12/2021,(89260) Clinical Services,(id:42316) Evelina Central,JAMES WONG,id:14745996  ,2425.00
Department of Health,Guys and St Thomas NHS Foundation Trust,23/12/2021,(89200) Other - Patient travel,(id:42316) Evelina Central,RHINO SENSORY UK LTD,id:13239834  ,1030.80
Department of Health,Guys and St Thomas NHS Foundation Trust,21/12/2021,(54062) Technical Officers,(id:590444) Evelina Community Services,PRICEWATERHOUSECOOPERS LLP,id:14741874   ,1270.20
Department of Health,Guys and St Thomas NHS Foundation Trust,22/12/2021,(81225) Medical Surgical Supplies & Equipment,(id:590444) Evelina Community Services,NHS SUPPLY CHAIN (MAIDSTONE),id:14687496  ,3482.28
Department of Health,Guys and St Thomas NHS Foundation Trust,03/12/2021,(81225) Medical Surgical Supplies & Equipment,(id:590444) Evelina Community Services,UNIVERSAL AIDS LTD,id:14691154  ,1792.40
Department of Health,Guys and St Thomas NHS Foundation Trust,10/12/2021,(81225) Medical Surgical Supplies & Equipment,(id:590444) Evelina Community Services,NHS SUPPLY CHAIN (MAIDSTONE),id:14665974  ,6699.22
Department of Health,Guys and St Thomas NHS Foundation Trust,22/12/2021,(86300) Healthcare from non-NHS bodies,(id:590445) Evelina Community Services,NATUS NICOLET UK LTD ( T/A OTOMETRICS UK),id:14744236 ,2687.28
Department of Health,Guys and St Thomas NHS Foundation Trust,17/12/2021,(81225) Medical Surgical Supplies & Equipment,(id:590550) Evelina Community Services,QUEST 88 LTD,id:14727073   , 822.60
Department of Health,Guys and St Thomas NHS Foundation Trust,22/12/2021,(81200) Medical Surgical Supplies & Equipment,(id:590450) Evelina Community Services,NHS SUPPLY CHAIN (MAIDSTONE),id:14687496  ,  34.82
Department of Health,Guys and St Thomas NHS Foundation Trust,17/12/2021,(81200) Medical Surgical Supplies & Equipment,(id:706420) Evelina Community Services,INCLUSIVE TECHNOLOGY LTD,id:14717699 ,3960.00
Department of Health,Guys and St Thomas NHS Foundation Trust,10/12/2021,(83400) Office Equipment,(id:590451) Evelina Community Services,NHS SUPPLY CHAIN (MAIDSTONE),id:14665974   ,  55.45
Department of Health,Guys and St Thomas NHS Foundation Trust,22/12/2021,(82000) Provisions & Kitchens,(id:1831419) Evelina Community Services,NHS SUPPLY CHAIN (MAIDSTONE),id:14687496  , 418.26
Department of Health,Guys and St Thomas NHS Foundation Trust,10/12/2021,(82000) Provisions & Kitchens,(id:1831419) Evelina Community Services,NHS SUPPLY CHAIN (MAIDSTONE),id:14665974  , 952.08
Department of Health,Guys and St Thomas NHS Foundation Trust,10/12/2021,(81200) Medical Surgical Supplies & Equipment,(id:590547) Evelina Community Services,NHS SUPPLY CHAIN (MAIDSTONE),id:14665974  , 204.96
Department of Health,Guys and St Thomas NHS Foundation Trust,23/12/2021,(81200) Medical Surgical Supplies & Equipment,(id:590446) Evelina Community Services,NHS SUPPLY CHAIN (MAIDSTONE),id:14704159  ,  18.06
Department of Health,Guys and St Thomas NHS Foundation Trust,23/12/2021,(82800) Bedding & Linen,(id:590446) Evelina Community Services,NHS SUPPLY CHAIN (MAIDSTONE),id:14704159    , 107.82
Department of Health,Guys and St Thomas NHS Foundation Trust,17/12/2021,(89000) Other - Training courses and conferences,(id:590452) Evelina Community Services,LEEDS AND YORK PARTNERSHIP NHS FOUNDATION TRUST,id:14710735, 895.00
Department of Health,Guys and St Thomas NHS Foundation Trust,23/12/2021,(81225) Medical Surgical Supplies & Equipment,(id:590452) Evelina Community Services,NHS SUPPLY CHAIN (MAIDSTONE),id:14704159  , 468.00
Department of Health,Guys and St Thomas NHS Foundation Trust,22/12/2021,(82000) Provisions & Kitchens,(id:590539) Evelina Community Services,NHS SUPPLY CHAIN (MAIDSTONE),id:14687496   ,  85.15
Department of Health,Guys and St Thomas NHS Foundation Trust,10/12/2021,(82000) Provisions & Kitchens,(id:590537) Evelina Community Services,NHS SUPPLY CHAIN (MAIDSTONE),id:14665974   , 167.13
Department of Health,Guys and St Thomas NHS Foundation Trust,03/12/2021,(50562) Qualified Nursing Staff,(id:590421) Evelina Community Services,ARTHUR RAI MEDICAL SERVICES LTD,id:14692010   ,1053.60
Department of Health,Guys and St Thomas NHS Foundation Trust,22/12/2021,(50562) Qualified Nursing Staff,(id:590540) Evelina Community Services,ARTHUR RAI MEDICAL SERVICES LTD,id:14746806   ,1317.00
Department of Health,Guys and St Thomas NHS Foundation Trust,22/12/2021,(81200) Medical Surgical Supplies & Equipment,(id:2356419) Evelina Medicine & Neonatology,NHS SUPPLY CHAIN (MAIDSTONE),id:14687496  ,1255.02
Department of Health,Guys and St Thomas NHS Foundation Trust,17/12/2021,(84656) Establishment,(id:1196422) Evelina Medicine & Neonatology,DICT8 LIMITED,id:14502464 , 439.44
Department of Health,Guys and St Thomas NHS Foundation Trust,03/12/2021,(81200) Medical Surgical Supplies & Equipment,(id:1196422) Evelina Medicine & Neonatology,BOSTON SCIENTIFIC LTD,id:14485440    ,1695.00
Department of Health,Guys and St Thomas NHS Foundation Trust,23/12/2021,(81200) Medical Surgical Supplies & Equipment,(id:2499420) Evelina Medicine & Neonatology,NHS SUPPLY CHAIN (MAIDSTONE),id:14704159  ,  57.89
Department of Health,Guys and St Thomas NHS Foundation Trust,10/12/2021,(50552) Qualified Nursing Staff,(id:2499420) Evelina Medicine & Neonatology,CONTINENTAL NURSE LTD,id:14709556   ,2567.42
Department of Health,Guys and St Thomas NHS Foundation Trust,22/12/2021,(80010) Drug Costs,(id:2499420) Evelina Medicine & Neonatology,NHS SUPPLY CHAIN (MAIDSTONE),id:14687496    ,1688.84
Department of Health,Guys and St Thomas NHS Foundation Trust,03/12/2021,(50200) Consultants,(id:42349) Evelina Medicine & Neonatology,NORTH MIDDLESEX UNIVERSITY HOSPITAL NHS TRUST,id:14341434   ,3524.00
Department of Health,Guys and St Thomas NHS Foundation Trust,03/12/2021,(81200) Medical Surgical Supplies & Equipment,(id:42349) Evelina Medicine & Neonatology,BOSTON SCIENTIFIC LTD,id:14318664 , 367.20
Department of Health,Guys and St Thomas NHS Foundation Trust,17/12/2021,(84656) Establishment,(id:42349) Evelina Medicine & Neonatology,DICT8 LIMITED,id:14706821   , 705.00
Department of Health,Guys and St Thomas NHS Foundation Trust,10/12/2021,(80150) Drug Costs,(id:42350) Evelina Medicine & Neonatology,LINC MEDICAL SYSTEMS  LTD,id:14686733    , 960.00
Department of Health,Guys and St Thomas NHS Foundation Trust,22/12/2021,(81200) Medical Surgical Supplies & Equipment,(id:817420) Evelina Medicine & Neonatology,LINTON AND CO (ENG)LTD.,id:14727067   ,2160.60
Department of Health,Guys and St Thomas NHS Foundation Trust,22/12/2021,(81255) Medical Surgical Supplies & Equipment,(id:817420) Evelina Medicine & Neonatology,NHS SUPPLY CHAIN (MAIDSTONE),id:14687496   ,  86.40
Department of Health,Guys and St Thomas NHS Foundation Trust,10/12/2021,(80010) Drug Costs,(id:42335) Evelina Medicine & Neonatology,PHC EUROPE BV,id:14339314 ,4950.18
Department of Health,Guys and St Thomas NHS Foundation Trust,23/12/2021,(81100) Dressings,(id:42335) Evelina Medicine & Neonatology,NHS SUPPLY CHAIN (MAIDSTONE),id:14704159  ,  80.64
Department of Health,Guys and St Thomas NHS Foundation Trust,17/12/2021,(89595) Non-Healthcare from Foundation Trusts,(id:42335) Evelina Medicine & Neonatology,KING'S COLLEGE HOSPITAL NHS FOUNDATION TRUST,id:14652297   ,1626.00
Department of Health,Guys and St Thomas NHS Foundation Trust,17/12/2021,(84656) Establishment,(id:42335) Evelina Medicine & Neonatology,DICT8 LIMITED,id:14706837   ,7222.92
Department of Health,Guys and St Thomas NHS Foundation Trust,17/12/2021,(81000) Surgical Appliances,(id:42335) Evelina Medicine & Neonatology,JOHN FLORENCE LTD,id:14720761   , 924.93
Department of Health,Guys and St Thomas NHS Foundation Trust,10/12/2021,(81225) Medical Surgical Supplies & Equipment,(id:42335) Evelina Medicine & Neonatology,BLACK SHEEP PRESS,id:14677515, 561.66
Department of Health,Guys and St Thomas NHS Foundation Trust,22/12/2021,(82700) Uniforms & Clothing,(id:42327) Evelina Medicine & Neonatology,NHS SUPPLY CHAIN (MAIDSTONE),id:14687496  ,  50.15
Department of Health,Guys and St Thomas NHS Foundation Trust,22/12/2021,(82000) Provisions & Kitchens,(id:42327) Evelina Medicine & Neonatology,NHS SUPPLY CHAIN (MAIDSTONE),id:14687496, 153.36
Department of Health,Guys and St Thomas NHS Foundation Trust,10/12/2021,(82000) Provisions & Kitchens,(id:42327) Evelina Medicine & Neonatology,NHS SUPPLY CHAIN (MAIDSTONE),id:14665974, 201.62
Department of Health,Guys and St Thomas NHS Foundation Trust,23/12/2021,(81255) Medical Surgical Supplies & Equipment,(id:42327) Evelina Medicine & Neonatology,NHS SUPPLY CHAIN (MAIDSTONE),id:14704159    , 468.00
Department of Health,Guys and St Thomas NHS Foundation Trust,23/12/2021,(81100) Dressings,(id:42327) Evelina Medicine & Neonatology,NHS SUPPLY CHAIN (MAIDSTONE),id:14704159  ,1186.93
Department of Health,Guys and St Thomas NHS Foundation Trust,23/12/2021,(81200) Medical Surgical Supplies & Equipment,(id:42327) Evelina Medicine & Neonatology,NHS SUPPLY CHAIN (MAIDSTONE),id:14704159    ,8257.41
Department of Health,Guys and St Thomas NHS Foundation Trust,22/12/2021,(81200) Medical Surgical Supplies & Equipment,(id:1196420) Evelina Medicine & Neonatology,DEXCOM INTERNATIONAL LTD,id:14734614 , 600.00
Department of Health,Guys and St Thomas NHS Foundation Trust,23/12/2021,(81200) Medical Surgical Supplies & Equipment,(id:1196420) Evelina Medicine & Neonatology,MEDTRONIC LTD,id:14643696  ,1043.75
Department of Health,Guys and St Thomas NHS Foundation Trust,03/12/2021,(81200) Medical Surgical Supplies & Equipment,(id:1196420) Evelina Medicine & Neonatology,DEXCOM INTERNATIONAL LTD,id:14655478 , 600.00
Department of Health,Guys and St Thomas NHS Foundation Trust,10/12/2021,(81200) Medical Surgical Supplies & Equipment,(id:1196420) Evelina Medicine & Neonatology,DEXCOM INTERNATIONAL LTD,id:14710377 , 553.50
Department of Health,Guys and St Thomas NHS Foundation Trust,10/12/2021,(81200) Medical Surgical Supplies & Equipment,(id:1196420) Evelina Medicine & Neonatology,DEXCOM INTERNATIONAL LTD,id:14710294 , 600.00
Department of Health,Guys and St Thomas NHS Foundation Trust,10/12/2021,(81200) Medical Surgical Supplies & Equipment,(id:2984419) Evelina Medicine & Neonatology,TERUMO BCT EUROPE NV/SA  (PREVIOUSLY CARIDIAN),id:14575854    ,3127.03
Department of Health,Guys and St Thomas NHS Foundation Trust,17/12/2021,(50552) Qualified Nursing Staff,(id:41874) Evelina Medicine & Neonatology,HAYS HEALTHCARE LTD,id:14726993  , 426.48
Department of Health,Guys and St Thomas NHS Foundation Trust,10/12/2021,(81200) Medical Surgical Supplies & Equipment,(id:41874) Evelina Medicine & Neonatology,NHS SUPPLY CHAIN (MAIDSTONE),id:14665974    , 298.37
Department of Health,Guys and St Thomas NHS Foundation Trust,10/12/2021,(81100) Dressings,(id:41874) Evelina Medicine & Neonatology,NHS SUPPLY CHAIN (MAIDSTONE),id:14665974  ,  71.61
Department of Health,Guys and St Thomas NHS Foundation Trust,22/12/2021,(82000) Provisions & Kitchens,(id:41874) Evelina Medicine & Neonatology,NHS SUPPLY CHAIN (MAIDSTONE),id:14687496,  17.14
Department of Health,Guys and St Thomas NHS Foundation Trust,10/12/2021,(82000) Provisions & Kitchens,(id:41874) Evelina Medicine & Neonatology,NHS SUPPLY CHAIN (MAIDSTONE),id:14665974,  18.52
Department of Health,Guys and St Thomas NHS Foundation Trust,17/12/2021,(50552) Qualified Nursing Staff,(id:2495419) Evelina Medicine & Neonatology,CONTINENTAL NURSE LTD,id:14729497   ,1563.20
Department of Health,Guys and St Thomas NHS Foundation Trust,22/12/2021,(82800) Bedding & Linen,(id:42323) Evelina Medicine & Neonatology,NHS SUPPLY CHAIN (MAIDSTONE),id:14687496 ,  73.74
Department of Health,Guys and St Thomas NHS Foundation Trust,23/12/2021,(82800) Bedding & Linen,(id:42315) Evelina Medicine & Neonatology,NHS SUPPLY CHAIN (MAIDSTONE),id:14704159 ,  28.40
Department of Health,Guys and St Thomas NHS Foundation Trust,23/12/2021,(81200) Medical Surgical Supplies & Equipment,(id:42315) Evelina Medicine & Neonatology,NHS SUPPLY CHAIN (MAIDSTONE),id:14704159    , 169.72
Department of Health,Guys and St Thomas NHS Foundation Trust,23/12/2021,(83400) Office Equipment,(id:42315) Evelina Medicine & Neonatology,NHS SUPPLY CHAIN (MAIDSTONE),id:14704159, 177.27
Department of Health,Guys and St Thomas NHS Foundation Trust,22/12/2021,(83400) Office Equipment,(id:42315) Evelina Medicine & Neonatology,NHS SUPPLY CHAIN (MAIDSTONE),id:14687496,  49.97
Department of Health,Guys and St Thomas NHS Foundation Trust,23/12/2021,(81200) Medical Surgical Supplies & Equipment,(id:42312) Evelina Surgery Theatres & PICU,NHS SUPPLY CHAIN (MAIDSTONE),id:14704159   ,    10594.80
Department of Health,Guys and St Thomas NHS Foundation Trust,10/12/2021,(81400) Medical Surgical Supplies & Equipment,(id:42312) Evelina Surgery Theatres & PICU,NHS SUPPLY CHAIN (MAIDSTONE),id:14665974   , 495.62
Department of Health,Guys and St Thomas NHS Foundation Trust,22/12/2021,(81280) Medical Surgical Supplies & Equipment,(id:42312) Evelina Surgery Theatres & PICU,I CARDIOLOGY UK LTD,id:14695494  ,1200.00
Department of Health,Guys and St Thomas NHS Foundation Trust,10/12/2021,(84656) Establishment,(id:42312) Evelina Surgery Theatres & PICU,DICT8 LIMITED,id:14711334  ,3146.04
Department of Health,Guys and St Thomas NHS Foundation Trust,10/12/2021,(83400) Office Equipment,(id:42312) Evelina Surgery Theatres & PICU,NHS SUPPLY CHAIN (MAIDSTONE),id:14665974    ,  56.32
Department of Health,Guys and St Thomas NHS Foundation Trust,17/12/2021,(89640) Non-Healthcare from NHS Trusts,(id:42312) Evelina Surgery Theatres & PICU,SURREY AND SUSSEX HEALTHCARE NHS TRUST,id:14710277,    -7046.88
Department of Health,Guys and St Thomas NHS Foundation Trust,22/12/2021,(82000) Provisions & Kitchens,(id:4082419) Evelina Surgery Theatres & PICU,NHS SUPPLY CHAIN (MAIDSTONE),id:14687496  ,  72.82
Department of Health,Guys and St Thomas NHS Foundation Trust,22/12/2021,(82800) Bedding & Linen,(id:4082419) Evelina Surgery Theatres & PICU,NHS SUPPLY CHAIN (MAIDSTONE),id:14687496   ,  88.31
Department of Health,Guys and St Thomas NHS Foundation Trust,23/12/2021,(81100) Dressings,(id:42351) Evelina Surgery Theatres & PICU,NHS SUPPLY CHAIN (MAIDSTONE),id:14704159 , 358.09
Department of Health,Guys and St Thomas NHS Foundation Trust,23/12/2021,(83400) Office Equipment,(id:41914) Evelina Surgery Theatres & PICU,NHS SUPPLY CHAIN (MAIDSTONE),id:14704159    ,1158.82
Department of Health,Guys and St Thomas NHS Foundation Trust,22/12/2021,(81200) Medical Surgical Supplies & Equipment,(id:41914) Evelina Surgery Theatres & PICU,NHS SUPPLY CHAIN (MAIDSTONE),id:14687496   ,1044.05
Department of Health,Guys and St Thomas NHS Foundation Trust,17/12/2021,(81200) Medical Surgical Supplies & Equipment,(id:41914) Evelina Surgery Theatres & PICU,RENISHAW NEURO SOLUTIONS LTD,id:14717742   , 600.00
Department of Health,Guys and St Thomas NHS Foundation Trust,10/12/2021,(81200) Medical Surgical Supplies & Equipment,(id:41914) Evelina Surgery Theatres & PICU,NHS SUPPLY CHAIN (MAIDSTONE),id:14665974   , 951.22
Department of Health,Guys and St Thomas NHS Foundation Trust,03/12/2021,(81100) Dressings,(id:41914) Evelina Surgery Theatres & PICU,ELIS UK LIMITED,id:14551244    , 661.70
Department of Health,Guys and St Thomas NHS Foundation Trust,03/12/2021,(81100) Dressings,(id:41914) Evelina Surgery Theatres & PICU,ELIS UK LIMITED,id:14550954    , 561.90
Department of Health,Guys and St Thomas NHS Foundation Trust,10/12/2021,(81100) Dressings,(id:41914) Evelina Surgery Theatres & PICU,NHS SUPPLY CHAIN (MAIDSTONE),id:14665974 , 138.15
Department of Health,Guys and St Thomas NHS Foundation Trust,23/12/2021,(81200) Medical Surgical Supplies & Equipment,(id:41910) Evelina Surgery Theatres & PICU,NHS SUPPLY CHAIN (MAIDSTONE),id:14704159   ,2790.85
Department of Health,Guys and St Thomas NHS Foundation Trust,17/12/2021,(81200) Medical Surgical Supplies & Equipment,(id:1196421) Evelina Surgery Theatres & PICU,STRYKER UK LTD,id:14712486, 758.40
Department of Health,Guys and St Thomas NHS Foundation Trust,22/12/2021,(83400) Office Equipment,(id:2498419) Evelina Surgery Theatres & PICU,NHS SUPPLY CHAIN (MAIDSTONE),id:14687496  ,  37.20
Department of Health,Guys and St Thomas NHS Foundation Trust,23/12/2021,(81200) Medical Surgical Supplies & Equipment,(id:431409) Evelina Surgery Theatres & PICU,ARTHREX LTD,id:14749961    , 604.20
Department of Health,Guys and St Thomas NHS Foundation Trust,03/12/2021,(81200) Medical Surgical Supplies & Equipment,(id:431409) Evelina Surgery Theatres & PICU,ORTHOFIX LTD,id:14636757   ,1250.60
Department of Health,Guys and St Thomas NHS Foundation Trust,10/12/2021,(81200) Medical Surgical Supplies & Equipment,(id:431409) Evelina Surgery Theatres & PICU,ORTHOPEDIATRICS EU LIMITED,id:14524194    ,1460.34
Department of Health,Guys and St Thomas NHS Foundation Trust,23/12/2021,(81000) Surgical Appliances,(id:431409) Evelina Surgery Theatres & PICU,JOHN FLORENCE LTD,id:14749441 , 979.69
Department of Health,Guys and St Thomas NHS Foundation Trust,17/12/2021,(81000) Surgical Appliances,(id:431409) Evelina Surgery Theatres & PICU,JOHN FLORENCE LTD,id:14720751 , 823.56
Department of Health,Guys and St Thomas NHS Foundation Trust,17/12/2021,(81000) Surgical Appliances,(id:431409) Evelina Surgery Theatres & PICU,JOHN FLORENCE LTD,id:14720696 , 843.79
Department of Health,Guys and St Thomas NHS Foundation Trust,03/12/2021,(81200) Medical Surgical Supplies & Equipment,(id:468410) Evelina Surgery Theatres & PICU,VERTEC SCIENTIFIC LTD,id:14552467    ,1393.86
Department of Health,Guys and St Thomas NHS Foundation Trust,23/12/2021,(81100) Dressings,(id:468410) Evelina Surgery Theatres & PICU,NHS SUPPLY CHAIN (MAIDSTONE),id:14704159, 373.59
Department of Health,Guys and St Thomas NHS Foundation Trust,03/12/2021,(81200) Medical Surgical Supplies & Equipment,(id:468409) Evelina Surgery Theatres & PICU,SMITHS MEDICAL INTERNATIONAL LTD:69519000,id:14687295    , 994.75
Department of Health,Guys and St Thomas NHS Foundation Trust,10/12/2021,(81200) Medical Surgical Supplies & Equipment,(id:468409) Evelina Surgery Theatres & PICU,STRYKER UK LTD,id:14687296 , 568.80
Department of Health,Guys and St Thomas NHS Foundation Trust,22/12/2021,(81200) Medical Surgical Supplies & Equipment,(id:468409) Evelina Surgery Theatres & PICU,T J SMITH & NEPHEW LTD,id:14723547   , 874.66
Department of Health,Guys and St Thomas NHS Foundation Trust,22/12/2021,(81200) Medical Surgical Supplies & Equipment,(id:468409) Evelina Surgery Theatres & PICU,T J SMITH & NEPHEW LTD,id:14680054   , 731.28
Department of Health,Guys and St Thomas NHS Foundation Trust,22/12/2021,(81100) Dressings,(id:42347) Evelina Surgery Theatres & PICU,NHS SUPPLY CHAIN (MAIDSTONE),id:14687496 , 104.04
Department of Health,Guys and St Thomas NHS Foundation Trust,03/12/2021,(81200) Medical Surgical Supplies & Equipment,(id:42347) Evelina Surgery Theatres & PICU,BOSTON SCIENTIFIC LTD,id:14318664, 151.20
Department of Health,Guys and St Thomas NHS Foundation Trust,10/12/2021,(81200) Medical Surgical Supplies & Equipment,(id:42347) Evelina Surgery Theatres & PICU,NHS SUPPLY CHAIN (MAIDSTONE),id:14665974   , 762.86
Department of Health,Guys and St Thomas NHS Foundation Trust,22/12/2021,(82000) Provisions & Kitchens,(id:42339) Evelina Surgery Theatres & PICU,NHS SUPPLY CHAIN (MAIDSTONE),id:14687496    , 173.91
Department of Health,Guys and St Thomas NHS Foundation Trust,22/12/2021,(82600) Uniforms & Clothing,(id:42339) Evelina Surgery Theatres & PICU,NHS SUPPLY CHAIN (MAIDSTONE),id:14687496 ,  54.48
Department of Health,Guys and St Thomas NHS Foundation Trust,22/12/2021,(83500) Furniture & Fittings,(id:42339) Evelina Surgery Theatres & PICU,NHS SUPPLY CHAIN (MAIDSTONE),id:14687496, 888.00
Department of Health,Guys and St Thomas NHS Foundation Trust,23/12/2021,(81100) Dressings,(id:42339) Evelina Surgery Theatres & PICU,NHS SUPPLY CHAIN (MAIDSTONE),id:14704159 , 508.42
Department of Health,Guys and St Thomas NHS Foundation Trust,22/12/2021,(81200) Medical Surgical Supplies & Equipment,(id:42339) Evelina Surgery Theatres & PICU,AQUILANT LTD,id:14738794    ,1051.20
Department of Health,Guys and St Thomas NHS Foundation Trust,10/12/2021,(81225) Medical Surgical Supplies & Equipment,(id:42339) Evelina Surgery Theatres & PICU,NHS SUPPLY CHAIN (MAIDSTONE),id:14665974   ,  73.68
Department of Health,Guys and St Thomas NHS Foundation Trust,10/12/2021,(81700) Lab Equipment Purchase,(id:4755419) Evelina R&D and Charity,MICROSCOPE SERVICE & SALES,id:14702967 , 891.60
Department of Health,Guys and St Thomas NHS Foundation Trust,03/12/2021,(89440) Research and Development,(id:1622419) Evelina R&D and Charity,KINGS COLLEGE LONDON:03529700,id:14658813 ,2920.00
Department of Health,Guys and St Thomas NHS Foundation Trust,22/12/2021,(89270) Establishment,(id:2634419) Evelina R&D and Charity,DR STEPHANIE LAMB,id:14746215    ,2200.00
Department of Health,Guys and St Thomas NHS Foundation Trust,23/12/2021,(81100) Dressings,(id:1127419) Cardiovascular Services,NHS SUPPLY CHAIN (MAIDSTONE),id:14704159  , 278.97
Department of Health,Guys and St Thomas NHS Foundation Trust,10/12/2021,(81100) Dressings,(id:1127419) Cardiovascular Services,NHS SUPPLY CHAIN (MAIDSTONE),id:14665974  , 297.19
Department of Health,Guys and St Thomas NHS Foundation Trust,17/12/2021,(81200) Medical Surgical Supplies & Equipment,(id:639421) Cardiovascular Services,BOSTON SCIENTIFIC LTD,id:14712884  , 738.00
Department of Health,Guys and St Thomas NHS Foundation Trust,17/12/2021,(81200) Medical Surgical Supplies & Equipment,(id:639421) Cardiovascular Services,BENTLEY INNOMED GMBH,id:14703219   ,1020.00
Department of Health,Guys and St Thomas NHS Foundation Trust,22/12/2021,(81200) Medical Surgical Supplies & Equipment,(id:639421) Cardiovascular Services,COOK UK LTD,id:14705156  ,6300.00
Department of Health,Guys and St Thomas NHS Foundation Trust,22/12/2021,(81200) Medical Surgical Supplies & Equipment,(id:639421) Cardiovascular Services,COOK UK LTD,id:14705155  ,6300.00
Department of Health,Guys and St Thomas NHS Foundation Trust,22/12/2021,(81200) Medical Surgical Supplies & Equipment,(id:639421) Cardiovascular Services,WL GORE & ASSOCIATES (UK) LTD,id:14705270    ,8680.80
Department of Health,Guys and St Thomas NHS Foundation Trust,22/12/2021,(81200) Medical Surgical Supplies & Equipment,(id:639421) Cardiovascular Services,VOLCANO EUROPE BVBA/SPRL,id:14722942    , 540.00
Department of Health,Guys and St Thomas NHS Foundation Trust,23/12/2021,(81200) Medical Surgical Supplies & Equipment,(id:639421) Cardiovascular Services,BOSTON SCIENTIFIC LTD,id:14748200  , 564.00
Department of Health,Guys and St Thomas NHS Foundation Trust,03/12/2021,(81200) Medical Surgical Supplies & Equipment,(id:639421) Cardiovascular Services,VOLCANO EUROPE BVBA/SPRL,id:14688832    , 540.00
Department of Health,Guys and St Thomas NHS Foundation Trust,03/12/2021,(81200) Medical Surgical Supplies & Equipment,(id:639421) Cardiovascular Services,BENTLEY INNOMED GMBH,id:14640819   ,3060.00
Department of Health,Guys and St Thomas NHS Foundation Trust,03/12/2021,(81200) Medical Surgical Supplies & Equipment,(id:639421) Cardiovascular Services,BENTLEY INNOMED GMBH,id:14688813   ,3060.00
Department of Health,Guys and St Thomas NHS Foundation Trust,03/12/2021,(81200) Medical Surgical Supplies & Equipment,(id:639421) Cardiovascular Services,BENTLEY INNOMED GMBH,id:14640817   ,1020.00
Department of Health,Guys and St Thomas NHS Foundation Trust,10/12/2021,(81200) Medical Surgical Supplies & Equipment,(id:639421) Cardiovascular Services,BENTLEY INNOMED GMBH,id:14687385   ,1020.00
Department of Health,Guys and St Thomas NHS Foundation Trust,22/12/2021,(81400) Medical Surgical Supplies & Equipment,(id:639421) Cardiovascular Services,NHS SUPPLY CHAIN (MAIDSTONE),id:14687496, 600.00
Department of Health,Guys and St Thomas NHS Foundation Trust,22/12/2021,(83400) Office Equipment,(id:780420) Cardiovascular Services,NHS SUPPLY CHAIN (MAIDSTONE),id:14687496 , 101.76
Department of Health,Guys and St Thomas NHS Foundation Trust,10/12/2021,(83400) Office Equipment,(id:780420) Cardiovascular Services,NHS SUPPLY CHAIN (MAIDSTONE),id:14665974 , 143.62
Department of Health,Guys and St Thomas NHS Foundation Trust,17/12/2021,(50552) Qualified Nursing Staff,(id:780420) Cardiovascular Services,CARE PROVIDERS HEALTHCARE,id:14726777  , 349.67
Department of Health,Guys and St Thomas NHS Foundation Trust,22/12/2021,(82000) Provisions & Kitchens,(id:41952) Cardiovascular Services,NHS SUPPLY CHAIN (MAIDSTONE),id:14687496  ,  78.02
Department of Health,Guys and St Thomas NHS Foundation Trust,22/12/2021,(82600) Uniforms & Clothing,(id:41952) Cardiovascular Services,NHS SUPPLY CHAIN (MAIDSTONE),id:14687496    ,  23.61
Department of Health,Guys and St Thomas NHS Foundation Trust,23/12/2021,(83400) Office Equipment,(id:41952) Cardiovascular Services,NHS SUPPLY CHAIN (MAIDSTONE),id:14704159  , 165.75
Department of Health,Guys and St Thomas NHS Foundation Trust,23/12/2021,(81200) Medical Surgical Supplies & Equipment,(id:41950) Cardiovascular Services,NHS SUPPLY CHAIN (MAIDSTONE),id:14704159 ,7241.92
Department of Health,Guys and St Thomas NHS Foundation Trust,17/12/2021,(81200) Medical Surgical Supplies & Equipment,(id:41950) Cardiovascular Services,ABBOTT MEDICAL UK LTD,id:14714994   ,9960.00
Department of Health,Guys and St Thomas NHS Foundation Trust,17/12/2021,(81200) Medical Surgical Supplies & Equipment,(id:41950) Cardiovascular Services,COOK UK LTD,id:14672215   , 660.00
Department of Health,Guys and St Thomas NHS Foundation Trust,17/12/2021,(81200) Medical Surgical Supplies & Equipment,(id:41950) Cardiovascular Services,COOK UK LTD,id:14638927   , 738.00
Department of Health,Guys and St Thomas NHS Foundation Trust,10/12/2021,(81200) Medical Surgical Supplies & Equipment,(id:41950) Cardiovascular Services,ABBOTT MEDICAL UK LTD,id:14687443   , 540.00
Department of Health,Guys and St Thomas NHS Foundation Trust,10/12/2021,(81200) Medical Surgical Supplies & Equipment,(id:41950) Cardiovascular Services,COOK UK LTD,id:14660694   ,1200.00
Department of Health,Guys and St Thomas NHS Foundation Trust,17/12/2021,(81000) Surgical Appliances,(id:41950) Cardiovascular Services,TALAR MADE ORTHOTICS LTD,id:14718834   , 453.96
Department of Health,Guys and St Thomas NHS Foundation Trust,23/12/2021,(81100) Dressings,(id:41950) Cardiovascular Services,NHS SUPPLY CHAIN (MAIDSTONE),id:14704159    , 142.01
Department of Health,Guys and St Thomas NHS Foundation Trust,22/12/2021,(81200) Medical Surgical Supplies & Equipment,(id:41948) Cardiovascular Services,VASCUTEK LTD,id:14704619  , 642.60
Department of Health,Guys and St Thomas NHS Foundation Trust,03/12/2021,(81200) Medical Surgical Supplies & Equipment,(id:41948) Cardiovascular Services,ARGON MEDICAL DEVICES UK LTD,id:14687083 , 792.00
Department of Health,Guys and St Thomas NHS Foundation Trust,23/12/2021,(81200) Medical Surgical Supplies & Equipment,(id:41948) Cardiovascular Services,LEMAITRE VASCULAR LTD,id:14748680   ,1634.40
Department of Health,Guys and St Thomas NHS Foundation Trust,10/12/2021,(84600) Establishment,(id:2607420) Cardiovascular Services,IGPP LTD,id:14679017   , 900.00
Department of Health,Guys and St Thomas NHS Foundation Trust,03/12/2021,(81000) Surgical Appliances,(id:42305) Cardiovascular Services,MEDI UK LTD,id:14681074 ,  52.04
Department of Health,Guys and St Thomas NHS Foundation Trust,10/12/2021,(82000) Provisions & Kitchens,(id:42300) Cardiovascular Services,NHS SUPPLY CHAIN (MAIDSTONE),id:14665974  ,  50.59
Department of Health,Guys and St Thomas NHS Foundation Trust,22/12/2021,(81100) Dressings,(id:42300) Cardiovascular Services,NHS SUPPLY CHAIN (MAIDSTONE),id:14687496    , 350.25
Department of Health,Guys and St Thomas NHS Foundation Trust,22/12/2021,(50522) Unqualified Nursing Staff,(id:42300) Cardiovascular Services,MSI GROUP LTD,id:14747150   , 252.93
Department of Health,Guys and St Thomas NHS Foundation Trust,17/12/2021,(50522) Unqualified Nursing Staff,(id:42300) Cardiovascular Services,MSI GROUP LTD,id:14726799   , 274.04
Department of Health,Guys and St Thomas NHS Foundation Trust,03/12/2021,(50522) Unqualified Nursing Staff,(id:42300) Cardiovascular Services,GLOBE LOCUMS LTD,id:14687279, 295.50
Department of Health,Guys and St Thomas NHS Foundation Trust,23/12/2021,(81280) Medical Surgical Supplies & Equipment,(id:42302) Cardiovascular Services,NHS SUPPLY CHAIN (MAIDSTONE),id:14704159 ,   153180.00
Department of Health,Guys and St Thomas NHS Foundation Trust,17/12/2021,(81200) Medical Surgical Supplies & Equipment,(id:42302) Cardiovascular Services,TERUMO UK LTD,id:14704746 ,1140.00
Department of Health,Guys and St Thomas NHS Foundation Trust,03/12/2021,(81200) Medical Surgical Supplies & Equipment,(id:42302) Cardiovascular Services,VASCULAR PERSPECTIVES LTD,id:14692097    , 540.00
Department of Health,Guys and St Thomas NHS Foundation Trust,03/12/2021,(81200) Medical Surgical Supplies & Equipment,(id:42302) Cardiovascular Services,CARDINAL HEALTH UK 432 LIMITED,id:14638821    , 720.00
Department of Health,Guys and St Thomas NHS Foundation Trust,03/12/2021,(81200) Medical Surgical Supplies & Equipment,(id:42302) Cardiovascular Services,VOLCANO EUROPE BVBA/SPRL,id:14690018,1188.00
Department of Health,Guys and St Thomas NHS Foundation Trust,10/12/2021,(81200) Medical Surgical Supplies & Equipment,(id:42302) Cardiovascular Services,XAVIOURMED LLP,id:14703165, 510.00
Department of Health,Guys and St Thomas NHS Foundation Trust,10/12/2021,(81200) Medical Surgical Supplies & Equipment,(id:42302) Cardiovascular Services,BOSTON SCIENTIFIC LTD,id:14662722   , 606.00
Department of Health,Guys and St Thomas NHS Foundation Trust,22/12/2021,(81700) Lab Equipment Purchase,(id:42302) Cardiovascular Services,NHS SUPPLY CHAIN (MAIDSTONE),id:14687496 , 172.62
Department of Health,Guys and St Thomas NHS Foundation Trust,23/12/2021,(83400) Office Equipment,(id:3923419) Cardiovascular Services,NHS SUPPLY CHAIN (MAIDSTONE),id:14704159,  70.48
Department of Health,Guys and St Thomas NHS Foundation Trust,22/12/2021,(81100) Dressings,(id:3923419) Cardiovascular Services,NHS SUPPLY CHAIN (MAIDSTONE),id:14687496  ,  43.27
Department of Health,Guys and St Thomas NHS Foundation Trust,22/12/2021,(81275) Medical Surgical Supplies & Equipment,(id:3923419) Cardiovascular Services,NHS SUPPLY CHAIN (MAIDSTONE),id:14687496    ,  14.46
Department of Health,Guys and St Thomas NHS Foundation Trust,21/12/2021,(54072) Technical Officers,(id:1243420) Cardiovascular Services,PRICEWATERHOUSECOOPERS LLP,id:14741514,3531.75
Department of Health,Guys and St Thomas NHS Foundation Trust,03/12/2021,(81400) Medical Surgical Supplies & Equipment,(id:1243419) Cardiovascular Services,SECTRA LTD,id:14671154  ,5075.00
Department of Health,Guys and St Thomas NHS Foundation Trust,10/12/2021,(83500) Furniture & Fittings,(id:42291) Cardiovascular Services,LAZERBEAM FIRE AND SECURITY LTD,id:14597058,1937.80
Department of Health,Guys and St Thomas NHS Foundation Trust,10/12/2021,(81265) Medical Surgical Supplies & Equipment,(id:42291) Cardiovascular Services,NHS SUPPLY CHAIN (MAIDSTONE),id:14665974 , 545.08
Department of Health,Guys and St Thomas NHS Foundation Trust,10/12/2021,(81200) Medical Surgical Supplies & Equipment,(id:42290) Cardiovascular Services,NHS SUPPLY CHAIN (MAIDSTONE),id:14665974 , 408.46
Department of Health,Guys and St Thomas NHS Foundation Trust,10/12/2021,(81100) Dressings,(id:42290) Cardiovascular Services,NHS SUPPLY CHAIN (MAIDSTONE),id:14665974    , 106.26
Department of Health,Guys and St Thomas NHS Foundation Trust,17/12/2021,(50522) Unqualified Nursing Staff,(id:42290) Cardiovascular Services,CARE PROVIDERS HEALTHCARE,id:14726664 , 252.92
Department of Health,Guys and St Thomas NHS Foundation Trust,17/12/2021,(50522) Unqualified Nursing Staff,(id:42290) Cardiovascular Services,CARE PROVIDERS HEALTHCARE,id:14726723 , 264.62
Department of Health,Guys and St Thomas NHS Foundation Trust,03/12/2021,(50522) Unqualified Nursing Staff,(id:42290) Cardiovascular Services,CARE PROVIDERS HEALTHCARE,id:14687157 , 204.01
Department of Health,Guys and St Thomas NHS Foundation Trust,10/12/2021,(81225) Medical Surgical Supplies & Equipment,(id:42290) Cardiovascular Services,NHS SUPPLY CHAIN (MAIDSTONE),id:14665974 ,  25.38
Department of Health,Guys and St Thomas NHS Foundation Trust,22/12/2021,(81255) Medical Surgical Supplies & Equipment,(id:42290) Cardiovascular Services,NHS SUPPLY CHAIN (MAIDSTONE),id:14687496 ,   4.10
Department of Health,Guys and St Thomas NHS Foundation Trust,22/12/2021,(81200) Medical Surgical Supplies & Equipment,(id:42298) Cardiovascular Services,ABBOTT MEDICAL UK LTD,id:14706814   , 912.00
Department of Health,Guys and St Thomas NHS Foundation Trust,03/12/2021,(81200) Medical Surgical Supplies & Equipment,(id:42298) Cardiovascular Services,WERFEN LIMITED,id:14673654, 996.60
Department of Health,Guys and St Thomas NHS Foundation Trust,03/12/2021,(81200) Medical Surgical Supplies & Equipment,(id:42298) Cardiovascular Services,BOSTON SCIENTIFIC LTD,id:14551892   , 826.20
Department of Health,Guys and St Thomas NHS Foundation Trust,03/12/2021,(81200) Medical Surgical Supplies & Equipment,(id:42298) Cardiovascular Services,TELEFLEX MEDICAL,id:14628353   ,3432.00
Department of Health,Guys and St Thomas NHS Foundation Trust,03/12/2021,(81200) Medical Surgical Supplies & Equipment,(id:42298) Cardiovascular Services,JOHNSON & JOHNSON MEDICAL LTD,id:14631935,1903.32
Department of Health,Guys and St Thomas NHS Foundation Trust,03/12/2021,(81200) Medical Surgical Supplies & Equipment,(id:42298) Cardiovascular Services,JOHNSON & JOHNSON MEDICAL LTD,id:14643673,6000.00
Department of Health,Guys and St Thomas NHS Foundation Trust,10/12/2021,(81200) Medical Surgical Supplies & Equipment,(id:42298) Cardiovascular Services,JOHNSON & JOHNSON MEDICAL LTD,id:14648779,8540.40
Department of Health,Guys and St Thomas NHS Foundation Trust,10/12/2021,(81200) Medical Surgical Supplies & Equipment,(id:42298) Cardiovascular Services,ABBOTT MEDICAL UK LTD,id:13530718   ,3696.00
Department of Health,Guys and St Thomas NHS Foundation Trust,17/12/2021,(81200) Medical Surgical Supplies & Equipment,(id:42298) Cardiovascular Services,TELEFLEX MEDICAL,id:14670019   ,1956.00
Department of Health,Guys and St Thomas NHS Foundation Trust,17/12/2021,(81200) Medical Surgical Supplies & Equipment,(id:42298) Cardiovascular Services,ABBOTT MEDICAL UK LTD,id:14703158   , 871.20
Department of Health,Guys and St Thomas NHS Foundation Trust,17/12/2021,(81200) Medical Surgical Supplies & Equipment,(id:42298) Cardiovascular Services,TELEFLEX MEDICAL,id:14584123   ,1260.00
Department of Health,Guys and St Thomas NHS Foundation Trust,23/12/2021,(81400) Medical Surgical Supplies & Equipment,(id:42298) Cardiovascular Services,NHS SUPPLY CHAIN (MAIDSTONE),id:14704159 , 201.34
Department of Health,Guys and St Thomas NHS Foundation Trust,10/12/2021,(81230) Medical Surgical Supplies & Equipment,(id:42298) Cardiovascular Services,GETINGE LTD,id:14708415   , 681.60
Department of Health,Guys and St Thomas NHS Foundation Trust,10/12/2021,(82800) Bedding & Linen,(id:42298) Cardiovascular Services,NHS SUPPLY CHAIN (MAIDSTONE),id:14665974   , 142.06
Department of Health,Guys and St Thomas NHS Foundation Trust,23/12/2021,(81240) Medical Surgical Supplies & Equipment,(id:42298) Cardiovascular Services,NHS SUPPLY CHAIN (MAIDSTONE),id:14704159 ,    35975.41
Department of Health,Guys and St Thomas NHS Foundation Trust,10/12/2021,(81240) Medical Surgical Supplies & Equipment,(id:42298) Cardiovascular Services,ABBOTT MEDICAL UK LTD,id:14706612   ,3325.20
Department of Health,Guys and St Thomas NHS Foundation Trust,03/12/2021,(81200) Medical Surgical Supplies & Equipment,(id:42292) Cardiovascular Services,LIVANOVA UK LTD,id:14675154    ,2250.00
Department of Health,Guys and St Thomas NHS Foundation Trust,10/12/2021,(81200) Medical Surgical Supplies & Equipment,(id:42292) Cardiovascular Services,GETINGE LTD,id:14702534   , 523.20
Department of Health,Guys and St Thomas NHS Foundation Trust,03/12/2021,(81270) Medical Surgical Supplies & Equipment,(id:42292) Cardiovascular Services,GETINGE LTD,id:14681915   , 900.00
Department of Health,Guys and St Thomas NHS Foundation Trust,10/12/2021,(83400) Office Equipment,(id:42293) Cardiovascular Services,NHS SUPPLY CHAIN (MAIDSTONE),id:14665974  , 785.38
Department of Health,Guys and St Thomas NHS Foundation Trust,17/12/2021,(81200) Medical Surgical Supplies & Equipment,(id:42293) Cardiovascular Services,LIVANOVA UK LTD,id:14725942    , 691.20
Department of Health,Guys and St Thomas NHS Foundation Trust,23/12/2021,(81200) Medical Surgical Supplies & Equipment,(id:42293) Cardiovascular Services,MEDTRONIC LTD,id:14656966 , 554.40
Department of Health,Guys and St Thomas NHS Foundation Trust,10/12/2021,(81200) Medical Surgical Supplies & Equipment,(id:42293) Cardiovascular Services,AQUILANT LTD,id:14696314  ,5736.00
Department of Health,Guys and St Thomas NHS Foundation Trust,23/12/2021,(81280) Medical Surgical Supplies & Equipment,(id:42293) Cardiovascular Services,NHS SUPPLY CHAIN (MAIDSTONE),id:14704159 ,3793.20
Department of Health,Guys and St Thomas NHS Foundation Trust,17/12/2021,(81280) Medical Surgical Supplies & Equipment,(id:42293) Cardiovascular Services,CRYOLIFE EUROPA LTD,id:14716654,    16200.00
Department of Health,Guys and St Thomas NHS Foundation Trust,03/12/2021,(81280) Medical Surgical Supplies & Equipment,(id:42293) Cardiovascular Services,EDWARDS LIFESCIENCES LTD,id:14671795,2160.00
Department of Health,Guys and St Thomas NHS Foundation Trust,03/12/2021,(81280) Medical Surgical Supplies & Equipment,(id:42293) Cardiovascular Services,EDWARDS LIFESCIENCES LTD,id:14694468,1056.00
Department of Health,Guys and St Thomas NHS Foundation Trust,10/12/2021,(81280) Medical Surgical Supplies & Equipment,(id:42293) Cardiovascular Services,NHS BLOOD AND TRANSPLANT,id:14456636,3689.09
Department of Health,Guys and St Thomas NHS Foundation Trust,23/12/2021,(82600) Uniforms & Clothing,(id:42287) Cardiovascular Services,NHS SUPPLY CHAIN (MAIDSTONE),id:14704159    ,  12.63
Department of Health,Guys and St Thomas NHS Foundation Trust,10/12/2021,(83400) Office Equipment,(id:42287) Cardiovascular Services,NHS SUPPLY CHAIN (MAIDSTONE),id:14665974  , 107.80
Department of Health,Guys and St Thomas NHS Foundation Trust,23/12/2021,(81225) Medical Surgical Supplies & Equipment,(id:42287) Cardiovascular Services,NHS SUPPLY CHAIN (MAIDSTONE),id:14704159 ,  23.30
Department of Health,Guys and St Thomas NHS Foundation Trust,17/12/2021,(81200) Medical Surgical Supplies & Equipment,(id:41863) PACCS,RESMED (UK) LTD,id:14692874  ,1680.00
Department of Health,Guys and St Thomas NHS Foundation Trust,23/12/2021,(83400) Office Equipment,(id:41935) PACCS,NHS SUPPLY CHAIN (MAIDSTONE),id:14704159, 199.92
Department of Health,Guys and St Thomas NHS Foundation Trust,17/12/2021,(50562) Qualified Nursing Staff,(id:41935) PACCS,AMC PROFESSIONAL LTD,id:14726704 , 612.15
Department of Health,Guys and St Thomas NHS Foundation Trust,22/12/2021,(50562) Qualified Nursing Staff,(id:41935) PACCS,JUST NURSES (NURSCO HEALTHCARE LIMITED),id:14747228  , 552.75
Department of Health,Guys and St Thomas NHS Foundation Trust,03/12/2021,(50562) Qualified Nursing Staff,(id:41935) PACCS,NATIONWIDE NURSING LTD,id:14691757    , 509.80
Department of Health,Guys and St Thomas NHS Foundation Trust,03/12/2021,(50562) Qualified Nursing Staff,(id:41935) PACCS,CARE PROVIDERS HEALTHCARE,id:14691943 , 564.16
Department of Health,Guys and St Thomas NHS Foundation Trust,10/12/2021,(50562) Qualified Nursing Staff,(id:41935) PACCS,AMC PROFESSIONAL LTD,id:14709735 , 566.66
Department of Health,Guys and St Thomas NHS Foundation Trust,10/12/2021,(50562) Qualified Nursing Staff,(id:41935) PACCS,CARE PROVIDERS HEALTHCARE,id:14709526 , 576.24
Department of Health,Guys and St Thomas NHS Foundation Trust,10/12/2021,(50562) Qualified Nursing Staff,(id:41935) PACCS,AMC PROFESSIONAL LTD,id:14709627 , 746.74
Department of Health,Guys and St Thomas NHS Foundation Trust,22/12/2021,(81100) Dressings,(id:41935) PACCS,NHS SUPPLY CHAIN (MAIDSTONE),id:14687496  , 139.96
Department of Health,Guys and St Thomas NHS Foundation Trust,17/12/2021,(81200) Medical Surgical Supplies & Equipment,(id:41935) PACCS,RESMED (UK) LTD,id:14670655  ,1702.56
Department of Health,Guys and St Thomas NHS Foundation Trust,03/12/2021,(81200) Medical Surgical Supplies & Equipment,(id:41935) PACCS,BREAS MEDICAL LTD,id:14676534,    16560.00
Department of Health,Guys and St Thomas NHS Foundation Trust,22/12/2021,(81200) Medical Surgical Supplies & Equipment,(id:41935) PACCS,RESMED (UK) LTD,id:14701514  ,1200.00
Department of Health,Guys and St Thomas NHS Foundation Trust,10/12/2021,(81255) Medical Surgical Supplies & Equipment,(id:41935) PACCS,RESPIRONICS UK,id:14705914   , 673.70
Department of Health,Guys and St Thomas NHS Foundation Trust,22/12/2021,(80010) Drug Costs,(id:41935) PACCS,NHS SUPPLY CHAIN (MAIDSTONE),id:14687496 ,  52.80
Department of Health,Guys and St Thomas NHS Foundation Trust,03/12/2021,(86300) Healthcare from non-NHS bodies,(id:1856419) PACCS,REMEO HEALTHCARE LIMITED,id:14692754   ,3500.00
Department of Health,Guys and St Thomas NHS Foundation Trust,03/12/2021,(89440) Research and Development,(id:1648420) PACCS,KINGS COLLEGE LONDON:03529700,id:14676695    ,    13546.30
Department of Health,Guys and St Thomas NHS Foundation Trust,22/12/2021,(81100) Dressings,(id:2545419) PACCS,NHS SUPPLY CHAIN (MAIDSTONE),id:14687496,  42.55
Department of Health,Guys and St Thomas NHS Foundation Trust,22/12/2021,(50562) Qualified Nursing Staff,(id:2545419) PACCS,URGENT STAFFING LTD,id:14747231, 580.05
Department of Health,Guys and St Thomas NHS Foundation Trust,23/12/2021,(81200) Medical Surgical Supplies & Equipment,(id:41919) PACCS,ZOLL MEDICAL UK LTD,id:14723945   , 541.08
Department of Health,Guys and St Thomas NHS Foundation Trust,10/12/2021,(81200) Medical Surgical Supplies & Equipment,(id:41919) PACCS,NHS SUPPLY CHAIN (MAIDSTONE),id:14665974    , 260.63
Department of Health,Guys and St Thomas NHS Foundation Trust,22/12/2021,(82600) Uniforms & Clothing,(id:41919) PACCS,NHS SUPPLY CHAIN (MAIDSTONE),id:14687496  ,  19.41
Department of Health,Guys and St Thomas NHS Foundation Trust,10/12/2021,(89000) Other - Training courses and conferences,(id:41919) PACCS,RESUSCITATION COUNCIL ( UK) TRADING CO,id:14699894 ,1028.00
Department of Health,Guys and St Thomas NHS Foundation Trust,03/12/2021,(81230) Medical Surgical Supplies & Equipment,(id:863419) PACCS,MEDTRONIC LTD,id:14637979   , 672.00
Department of Health,Guys and St Thomas NHS Foundation Trust,03/12/2021,(81200) Medical Surgical Supplies & Equipment,(id:863419) PACCS,MEDTRONIC LTD,id:14637979   , 880.80
Department of Health,Guys and St Thomas NHS Foundation Trust,10/12/2021,(81200) Medical Surgical Supplies & Equipment,(id:863419) PACCS,GETINGE LTD,id:14660035,    56400.00
Department of Health,Guys and St Thomas NHS Foundation Trust,23/12/2021,(81200) Medical Surgical Supplies & Equipment,(id:1842421) PACCS,NHS SUPPLY CHAIN (MAIDSTONE),id:14704159  ,1569.30
Department of Health,Guys and St Thomas NHS Foundation Trust,10/12/2021,(82800) Bedding & Linen,(id:1842421) PACCS,NHS SUPPLY CHAIN (MAIDSTONE),id:14665974    ,   8.16
Department of Health,Guys and St Thomas NHS Foundation Trust,22/12/2021,(81225) Medical Surgical Supplies & Equipment,(id:1842421) PACCS,NHS SUPPLY CHAIN (MAIDSTONE),id:14687496  ,  26.15
Department of Health,Guys and St Thomas NHS Foundation Trust,03/12/2021,(50562) Qualified Nursing Staff,(id:2121419) PACCS,MEDICSPRO LTD,id:14691789 , 564.16
Department of Health,Guys and St Thomas NHS Foundation Trust,10/12/2021,(50562) Qualified Nursing Staff,(id:2121419) PACCS,CARE PROVIDERS HEALTHCARE,id:14709810    , 564.16
Department of Health,Guys and St Thomas NHS Foundation Trust,10/12/2021,(50562) Qualified Nursing Staff,(id:2121419) PACCS,AMC PROFESSIONAL LTD,id:14709497    , 735.20
Department of Health,Guys and St Thomas NHS Foundation Trust,23/12/2021,(81200) Medical Surgical Supplies & Equipment,(id:3135419) PACCS,AMBU LIMITED,id:14720304   ,4309.14
Department of Health,Guys and St Thomas NHS Foundation Trust,03/12/2021,(81400) Medical Surgical Supplies & Equipment,(id:3135419) PACCS,EVAC CHAIR INTERNATIONAL LTD,id:14686847  , 953.00
Department of Health,Guys and St Thomas NHS Foundation Trust,10/12/2021,(82000) Provisions & Kitchens,(id:41927) PACCS,NHS SUPPLY CHAIN (MAIDSTONE),id:14665974,  78.02
Department of Health,Guys and St Thomas NHS Foundation Trust,10/12/2021,(81100) Dressings,(id:41927) PACCS,NHS SUPPLY CHAIN (MAIDSTONE),id:14665974  , 448.36
Department of Health,Guys and St Thomas NHS Foundation Trust,22/12/2021,(81225) Medical Surgical Supplies & Equipment,(id:41927) PACCS,NHS SUPPLY CHAIN (MAIDSTONE),id:14687496    ,  80.12
Department of Health,Guys and St Thomas NHS Foundation Trust,03/12/2021,(83500) Furniture & Fittings,(id:41928) PACCS,DISPOSABLE CUBICLE CURTAINS LIMITED T/A HYGENICA,id:14680975 , 997.80
Department of Health,Guys and St Thomas NHS Foundation Trust,03/12/2021,(80100) Drug Costs,(id:41928) PACCS,BOC LTD :02107500,id:14591657  ,7563.72
Department of Health,Guys and St Thomas NHS Foundation Trust,23/12/2021,(81100) Dressings,(id:41928) PACCS,NHS SUPPLY CHAIN (MAIDSTONE),id:14704159  ,2995.42
Department of Health,Guys and St Thomas NHS Foundation Trust,23/12/2021,(81200) Medical Surgical Supplies & Equipment,(id:41928) PACCS,AMBU LIMITED,id:14720330,4309.14
Department of Health,Guys and St Thomas NHS Foundation Trust,22/12/2021,(81200) Medical Surgical Supplies & Equipment,(id:41928) PACCS,TELEFLEX MEDICAL,id:14705181 ,1050.00
Department of Health,Guys and St Thomas NHS Foundation Trust,03/12/2021,(81200) Medical Surgical Supplies & Equipment,(id:41928) PACCS,EDWARDS LIFESCIENCES LTD,id:14694661   , 654.96
Department of Health,Guys and St Thomas NHS Foundation Trust,03/12/2021,(81200) Medical Surgical Supplies & Equipment,(id:41928) PACCS,AMBU LIMITED,id:14677654,4309.14
Department of Health,Guys and St Thomas NHS Foundation Trust,03/12/2021,(81200) Medical Surgical Supplies & Equipment,(id:41928) PACCS,STRYKER UK LTD,id:14686675   , 924.00
Department of Health,Guys and St Thomas NHS Foundation Trust,10/12/2021,(81200) Medical Surgical Supplies & Equipment,(id:41928) PACCS,GBUK HEALTHCARE,id:14698234  , 843.32
Department of Health,Guys and St Thomas NHS Foundation Trust,03/12/2021,(50522) Unqualified Nursing Staff,(id:41928) PACCS,GLOBE LOCUMS LTD,id:14687260   , 258.80
Department of Health,Guys and St Thomas NHS Foundation Trust,10/12/2021,(89440) Research and Development,(id:41928) PACCS,SG CONSULTING,id:14701614  ,8400.00
Department of Health,Guys and St Thomas NHS Foundation Trust,17/12/2021,(81225) Medical Surgical Supplies & Equipment,(id:41928) PACCS,TALAR MADE ORTHOTICS LTD,id:14724086   , 699.60
Department of Health,Guys and St Thomas NHS Foundation Trust,10/12/2021,(81225) Medical Surgical Supplies & Equipment,(id:41928) PACCS,NHS SUPPLY CHAIN (MAIDSTONE),id:14665974    , 356.35
Department of Health,Guys and St Thomas NHS Foundation Trust,17/12/2021,(81000) Surgical Appliances,(id:41928) PACCS,TALAR MADE ORTHOTICS LTD,id:14718834 ,  43.66
Department of Health,Guys and St Thomas NHS Foundation Trust,22/12/2021,(50562) Qualified Nursing Staff,(id:41928) PACCS,JUST NURSES (NURSCO HEALTHCARE LIMITED),id:14746872  , 564.16
Department of Health,Guys and St Thomas NHS Foundation Trust,22/12/2021,(50562) Qualified Nursing Staff,(id:41928) PACCS,URGENT STAFFING LTD,id:14747231  , 576.24
Department of Health,Guys and St Thomas NHS Foundation Trust,22/12/2021,(50562) Qualified Nursing Staff,(id:41928) PACCS,PULSE HEALTHCARE LIMITED,id:14747213  ,1191.52
Department of Health,Guys and St Thomas NHS Foundation Trust,22/12/2021,(50562) Qualified Nursing Staff,(id:41928) PACCS,AMC PROFESSIONAL LTD,id:14746922 , 735.20
Department of Health,Guys and St Thomas NHS Foundation Trust,22/12/2021,(50562) Qualified Nursing Staff,(id:41928) PACCS,AMC PROFESSIONAL LTD,id:14747036 , 735.20
Department of Health,Guys and St Thomas NHS Foundation Trust,17/12/2021,(50562) Qualified Nursing Staff,(id:41928) PACCS,AMC PROFESSIONAL LTD,id:14726984 , 509.80
Department of Health,Guys and St Thomas NHS Foundation Trust,17/12/2021,(50562) Qualified Nursing Staff,(id:41928) PACCS,URGENT STAFFING LTD,id:14729477  ,1701.21
Department of Health,Guys and St Thomas NHS Foundation Trust,17/12/2021,(50562) Qualified Nursing Staff,(id:41928) PACCS,AMC PROFESSIONAL LTD,id:14726878 , 582.05
Department of Health,Guys and St Thomas NHS Foundation Trust,03/12/2021,(50562) Qualified Nursing Staff,(id:41928) PACCS,MEDICSPRO LTD,id:14691725   , 564.16
Department of Health,Guys and St Thomas NHS Foundation Trust,03/12/2021,(50562) Qualified Nursing Staff,(id:41928) PACCS,AMC PROFESSIONAL LTD,id:14691806 , 576.74
Department of Health,Guys and St Thomas NHS Foundation Trust,03/12/2021,(50562) Qualified Nursing Staff,(id:41928) PACCS,PULSE HEALTHCARE LIMITED,id:14692073  , 579.37
Department of Health,Guys and St Thomas NHS Foundation Trust,03/12/2021,(50562) Qualified Nursing Staff,(id:41928) PACCS,AMC PROFESSIONAL LTD,id:14691752 , 735.20
Department of Health,Guys and St Thomas NHS Foundation Trust,03/12/2021,(50562) Qualified Nursing Staff,(id:41928) PACCS,AMC PROFESSIONAL LTD,id:14691805 ,1552.97
Department of Health,Guys and St Thomas NHS Foundation Trust,03/12/2021,(50562) Qualified Nursing Staff,(id:41928) PACCS,AMC PROFESSIONAL LTD,id:14691969 , 798.00
Department of Health,Guys and St Thomas NHS Foundation Trust,10/12/2021,(50562) Qualified Nursing Staff,(id:41928) PACCS,JUST NURSES (NURSCO HEALTHCARE LIMITED),id:14709449  , 509.80
Department of Health,Guys and St Thomas NHS Foundation Trust,10/12/2021,(50562) Qualified Nursing Staff,(id:41928) PACCS,AMC PROFESSIONAL LTD,id:14709777 , 564.16
Department of Health,Guys and St Thomas NHS Foundation Trust,10/12/2021,(50562) Qualified Nursing Staff,(id:41928) PACCS,AMC PROFESSIONAL LTD,id:14709849 , 566.66
Department of Health,Guys and St Thomas NHS Foundation Trust,10/12/2021,(50562) Qualified Nursing Staff,(id:41928) PACCS,AMC PROFESSIONAL LTD,id:14709500 , 566.66
Department of Health,Guys and St Thomas NHS Foundation Trust,10/12/2021,(50562) Qualified Nursing Staff,(id:41928) PACCS,AMC PROFESSIONAL LTD,id:14709784 , 566.66
Department of Health,Guys and St Thomas NHS Foundation Trust,10/12/2021,(50562) Qualified Nursing Staff,(id:41928) PACCS,URGENT STAFFING LTD,id:14709575  ,1179.33
Department of Health,Guys and St Thomas NHS Foundation Trust,10/12/2021,(50562) Qualified Nursing Staff,(id:41928) PACCS,AMC PROFESSIONAL LTD,id:14709734 , 599.27
Department of Health,Guys and St Thomas NHS Foundation Trust,10/12/2021,(50562) Qualified Nursing Staff,(id:41928) PACCS,MEDICSPRO LTD,id:14709605   , 612.15
Department of Health,Guys and St Thomas NHS Foundation Trust,10/12/2021,(50562) Qualified Nursing Staff,(id:41928) PACCS,AMC PROFESSIONAL LTD,id:14709683 , 612.15
Department of Health,Guys and St Thomas NHS Foundation Trust,10/12/2021,(50562) Qualified Nursing Staff,(id:41928) PACCS,AMC PROFESSIONAL LTD,id:14709625 , 646.19
Department of Health,Guys and St Thomas NHS Foundation Trust,10/12/2021,(50562) Qualified Nursing Staff,(id:41928) PACCS,AMC PROFESSIONAL LTD,id:14709497 , 735.20
Department of Health,Guys and St Thomas NHS Foundation Trust,23/12/2021,(50562) Qualified Nursing Staff,(id:41928) PACCS,AMC PROFESSIONAL LTD,id:14749453 , 735.20
Department of Health,Guys and St Thomas NHS Foundation Trust,10/12/2021,(83500) Furniture & Fittings,(id:41931) PACCS,MEDSTROM LTD,id:13845676  ,2538.90
Department of Health,Guys and St Thomas NHS Foundation Trust,10/12/2021,(83500) Furniture & Fittings,(id:41931) PACCS,MEDSTROM LTD,id:14625762  ,2457.00
Department of Health,Guys and St Thomas NHS Foundation Trust,23/12/2021,(81200) Medical Surgical Supplies & Equipment,(id:41931) PACCS,NHS SUPPLY CHAIN (MAIDSTONE),id:14704159    , 894.76
Department of Health,Guys and St Thomas NHS Foundation Trust,22/12/2021,(50562) Qualified Nursing Staff,(id:41931) PACCS,URGENT STAFFING LTD,id:14746878  ,1140.40
Department of Health,Guys and St Thomas NHS Foundation Trust,17/12/2021,(50562) Qualified Nursing Staff,(id:41931) PACCS,AMC PROFESSIONAL LTD,id:14726755 , 764.62
Department of Health,Guys and St Thomas NHS Foundation Trust,22/12/2021,(50562) Qualified Nursing Staff,(id:41931) PACCS,AMC PROFESSIONAL LTD,id:14746868 , 576.74
Department of Health,Guys and St Thomas NHS Foundation Trust,22/12/2021,(50562) Qualified Nursing Staff,(id:41931) PACCS,URGENT STAFFING LTD,id:14746819  , 612.15
Department of Health,Guys and St Thomas NHS Foundation Trust,22/12/2021,(50562) Qualified Nursing Staff,(id:41931) PACCS,MEDICSPRO LTD,id:14747080   , 612.15
Department of Health,Guys and St Thomas NHS Foundation Trust,22/12/2021,(50562) Qualified Nursing Staff,(id:41931) PACCS,AMC PROFESSIONAL LTD,id:14747163 , 735.20
Department of Health,Guys and St Thomas NHS Foundation Trust,03/12/2021,(50562) Qualified Nursing Staff,(id:41931) PACCS,AMC PROFESSIONAL LTD,id:14692079 , 576.74
Department of Health,Guys and St Thomas NHS Foundation Trust,03/12/2021,(50562) Qualified Nursing Staff,(id:41931) PACCS,AMC PROFESSIONAL LTD,id:14692075 , 582.05
Department of Health,Guys and St Thomas NHS Foundation Trust,03/12/2021,(50562) Qualified Nursing Staff,(id:41931) PACCS,UNITY HEALTHCARE RECRUITMENT LTD,id:14687139    , 612.15
Department of Health,Guys and St Thomas NHS Foundation Trust,03/12/2021,(50562) Qualified Nursing Staff,(id:41931) PACCS,AMC PROFESSIONAL LTD,id:14691756 , 764.62
Department of Health,Guys and St Thomas NHS Foundation Trust,03/12/2021,(50562) Qualified Nursing Staff,(id:41931) PACCS,AMC PROFESSIONAL LTD,id:14691813 , 798.00
Department of Health,Guys and St Thomas NHS Foundation Trust,10/12/2021,(50562) Qualified Nursing Staff,(id:41931) PACCS,AMC PROFESSIONAL LTD,id:14711093 , 572.10
Department of Health,Guys and St Thomas NHS Foundation Trust,10/12/2021,(50562) Qualified Nursing Staff,(id:41931) PACCS,MEDICSPRO LTD,id:14709667   , 580.05
Department of Health,Guys and St Thomas NHS Foundation Trust,10/12/2021,(50562) Qualified Nursing Staff,(id:41931) PACCS,AMC PROFESSIONAL LTD,id:14709682 , 646.19
Department of Health,Guys and St Thomas NHS Foundation Trust,10/12/2021,(50562) Qualified Nursing Staff,(id:41931) PACCS,AMC PROFESSIONAL LTD,id:14709681 , 754.97
Department of Health,Guys and St Thomas NHS Foundation Trust,23/12/2021,(50562) Qualified Nursing Staff,(id:41931) PACCS,AMC PROFESSIONAL LTD,id:14749521 , 764.62
Department of Health,Guys and St Thomas NHS Foundation Trust,23/12/2021,(50562) Qualified Nursing Staff,(id:41931) PACCS,AMC PROFESSIONAL LTD,id:14749454 ,1552.97
Department of Health,Guys and St Thomas NHS Foundation Trust,23/12/2021,(50562) Qualified Nursing Staff,(id:41931) PACCS,AMC PROFESSIONAL LTD,id:14749462 , 781.48
Department of Health,Guys and St Thomas NHS Foundation Trust,10/12/2021,(82000) Provisions & Kitchens,(id:41864) PACCS,NHS SUPPLY CHAIN (MAIDSTONE),id:14665974,  23.04
Department of Health,Guys and St Thomas NHS Foundation Trust,22/12/2021,(82800) Bedding & Linen,(id:41864) PACCS,NHS SUPPLY CHAIN (MAIDSTONE),id:14687496 ,  86.26
Department of Health,Guys and St Thomas NHS Foundation Trust,23/12/2021,(84650) Establishment,(id:2188419) Chief Executive,ODGERS BERNDTSON,id:14748621   ,7166.68
Department of Health,Guys and St Thomas NHS Foundation Trust,03/12/2021,(89270) Establishment,(id:42830) Chief Executive,MONITOR,id:14552835    ,    39657.60
Department of Health,Guys and St Thomas NHS Foundation Trust,10/12/2021,(84600) Establishment,(id:987420) Hosted Services,WILMINGTON HEALTHCARE LIMITED,id:14708935 ,1077.60
Department of Health,Guys and St Thomas NHS Foundation Trust,17/12/2021,(89570) Other – Other Operating Expenditure,(id:987420) Hosted Services,ST GEORGE'S UNIVERSITY HOSPITALS NHS FOUNDATION TRUST,id:14686925    ,    14354.50
Department of Health,Guys and St Thomas NHS Foundation Trust,03/12/2021,(89280) Other - Consultancy costs,(id:987420) Hosted Services,KINGSTON UNIVERSITY,id:14513057    ,1730.00
Department of Health,Guys and St Thomas NHS Foundation Trust,23/12/2021,(55062) Admin & Clerical,(id:987420) Hosted Services,VENN GROUP LTD,id:14749490   ,4966.03
Department of Health,Guys and St Thomas NHS Foundation Trust,22/12/2021,(81200) Medical Surgical Supplies & Equipment,(id:49447) Debtors (I&E Rechargable),NHS SUPPLY CHAIN (MAIDSTONE),id:14687496    , 453.02
Department of Health,Guys and St Thomas NHS Foundation Trust,10/12/2021,(81100) Dressings,(id:49447) Debtors (I&E Rechargable),NHS SUPPLY CHAIN (MAIDSTONE),id:14665974  ,  33.60
Department of Health,Guys and St Thomas NHS Foundation Trust,17/12/2021,(84200) Rental under Operating Lease,(id:590619) Central Services,LEX AUTOLEASE LIMITED,id:14727141   , 550.76
Department of Health,Guys and St Thomas NHS Foundation Trust,17/12/2021,(84400) Transport,(id:42579) Central Services,CMAC GROUP UK LTD,id:14691490  ,    13915.60
Department of Health,Guys and St Thomas NHS Foundation Trust,17/12/2021,(84400) Transport,(id:42579) Central Services,STARCROSS TRADING LTD T/A BEARS,id:14724047   , 871.60
Department of Health,Guys and St Thomas NHS Foundation Trust,17/12/2021,(84400) Transport,(id:42579) Central Services,STARCROSS TRADING LTD T/A BEARS,id:14724073   ,1882.27
Department of Health,Guys and St Thomas NHS Foundation Trust,17/12/2021,(84400) Transport,(id:42579) Central Services,STARCROSS TRADING LTD T/A BEARS,id:14724027   ,2000.00
Department of Health,Guys and St Thomas NHS Foundation Trust,17/12/2021,(84400) Transport,(id:42579) Central Services,STARCROSS TRADING LTD T/A BEARS,id:14723835   ,2812.25
Department of Health,Guys and St Thomas NHS Foundation Trust,17/12/2021,(84400) Transport,(id:42579) Central Services,STARCROSS TRADING LTD T/A BEARS,id:14723842   ,5677.25
Department of Health,Guys and St Thomas NHS Foundation Trust,17/12/2021,(84400) Transport,(id:42579) Central Services,STARCROSS TRADING LTD T/A BEARS,id:14724078   ,6072.95
Department of Health,Guys and St Thomas NHS Foundation Trust,17/12/2021,(84400) Transport,(id:42579) Central Services,STARCROSS TRADING LTD T/A BEARS,id:14724087   ,7831.57
Department of Health,Guys and St Thomas NHS Foundation Trust,23/12/2021,(84400) Transport,(id:42579) Central Services,OMD AUTOS LIMITED,id:14748974  ,2363.50
Department of Health,Guys and St Thomas NHS Foundation Trust,23/12/2021,(84400) Transport,(id:42579) Central Services,STARCROSS TRADING LTD T/A BEARS,id:14747909   ,5627.69
Department of Health,Guys and St Thomas NHS Foundation Trust,23/12/2021,(84400) Transport,(id:42579) Central Services,STARCROSS TRADING LTD T/A BEARS,id:14748022   ,6081.72
Department of Health,Guys and St Thomas NHS Foundation Trust,23/12/2021,(84400) Transport,(id:42579) Central Services,STARCROSS TRADING LTD T/A BEARS,id:14747986   ,6715.34
Department of Health,Guys and St Thomas NHS Foundation Trust,23/12/2021,(84400) Transport,(id:42579) Central Services,STARCROSS TRADING LTD T/A BEARS,id:14747954   ,6759.36
Department of Health,Guys and St Thomas NHS Foundation Trust,23/12/2021,(84400) Transport,(id:42579) Central Services,STARCROSS TRADING LTD T/A BEARS,id:14747754   ,    10000.00
Department of Health,Guys and St Thomas NHS Foundation Trust,03/12/2021,(84400) Transport,(id:42579) Central Services,STARCROSS TRADING LTD T/A BEARS,id:14691538   ,    22820.00
Department of Health,Guys and St Thomas NHS Foundation Trust,03/12/2021,(84400) Transport,(id:42579) Central Services,SAVOY VENTURES LTD.,id:14691475,    33750.00
Department of Health,Guys and St Thomas NHS Foundation Trust,03/12/2021,(84400) Transport,(id:42579) Central Services,STARCROSS TRADING LTD T/A BEARS,id:14690037   ,1353.10
Department of Health,Guys and St Thomas NHS Foundation Trust,03/12/2021,(84400) Transport,(id:42579) Central Services,STARCROSS TRADING LTD T/A BEARS,id:14691405   ,2570.82
Department of Health,Guys and St Thomas NHS Foundation Trust,03/12/2021,(84400) Transport,(id:42579) Central Services,STARCROSS TRADING LTD T/A BEARS,id:14691373   ,2900.53
Department of Health,Guys and St Thomas NHS Foundation Trust,03/12/2021,(84400) Transport,(id:42579) Central Services,STARCROSS TRADING LTD T/A BEARS,id:14691387   ,2927.23
Department of Health,Guys and St Thomas NHS Foundation Trust,03/12/2021,(84400) Transport,(id:42579) Central Services,STARCROSS TRADING LTD T/A BEARS,id:14691354   ,3308.78
Department of Health,Guys and St Thomas NHS Foundation Trust,10/12/2021,(84400) Transport,(id:42579) Central Services,STARCROSS TRADING LTD T/A BEARS,id:14704196   ,1022.36
Department of Health,Guys and St Thomas NHS Foundation Trust,10/12/2021,(84400) Transport,(id:42579) Central Services,STARCROSS TRADING LTD T/A BEARS,id:14709867   ,1571.00
Department of Health,Guys and St Thomas NHS Foundation Trust,10/12/2021,(84400) Transport,(id:42579) Central Services,STARCROSS TRADING LTD T/A BEARS,id:14704209   ,2570.50
Department of Health,Guys and St Thomas NHS Foundation Trust,10/12/2021,(84400) Transport,(id:42579) Central Services,STARCROSS TRADING LTD T/A BEARS,id:14706754   ,7582.30
Department of Health,Guys and St Thomas NHS Foundation Trust,23/12/2021,(84400) Transport,(id:42579) Central Services,STARCROSS TRADING LTD T/A BEARS,id:14747890   , 614.80
Department of Health,Guys and St Thomas NHS Foundation Trust,23/12/2021,(84400) Transport,(id:42579) Central Services,STARCROSS TRADING LTD T/A BEARS,id:14747910   , 815.08
Department of Health,Guys and St Thomas NHS Foundation Trust,23/12/2021,(84400) Transport,(id:42579) Central Services,STARCROSS TRADING LTD T/A BEARS,id:14747896   , 977.80
Department of Health,Guys and St Thomas NHS Foundation Trust,23/12/2021,(84400) Transport,(id:42579) Central Services,STARCROSS TRADING LTD T/A BEARS,id:14748021   ,1150.00
Department of Health,Guys and St Thomas NHS Foundation Trust,23/12/2021,(84400) Transport,(id:42579) Central Services,STARCROSS TRADING LTD T/A BEARS,id:14747787   ,1310.80
Department of Health,Guys and St Thomas NHS Foundation Trust,03/12/2021,(84100) Transport,(id:42579) Central Services,OMD AUTOS LIMITED,id:14691418  ,2684.84
Department of Health,Guys and St Thomas NHS Foundation Trust,10/12/2021,(84100) Transport,(id:42579) Central Services,OMD AUTOS LIMITED,id:14709917  , 250.00
Department of Health,Guys and St Thomas NHS Foundation Trust,10/12/2021,(84100) Transport,(id:42579) Central Services,OMD AUTOS LIMITED,id:14709936  , 250.00
Department of Health,Guys and St Thomas NHS Foundation Trust,10/12/2021,(84100) Transport,(id:42579) Central Services,OMD AUTOS LIMITED,id:14709965  , 500.00
Department of Health,Guys and St Thomas NHS Foundation Trust,10/12/2021,(84100) Transport,(id:42579) Central Services,OMD AUTOS LIMITED,id:14709957  , 740.00
Department of Health,Guys and St Thomas NHS Foundation Trust,10/12/2021,(84100) Transport,(id:42579) Central Services,OMD AUTOS LIMITED,id:14709962  ,1158.80
Department of Health,Guys and St Thomas NHS Foundation Trust,23/12/2021,(84100) Transport,(id:42579) Central Services,OMD AUTOS LIMITED,id:14748985  , 840.00
Department of Health,Guys and St Thomas NHS Foundation Trust,03/12/2021,(81000) Surgical Appliances,(id:42579) Central Services,STARCROSS TRADING LTD T/A BEARS,id:14690094   , 681.80
Department of Health,Guys and St Thomas NHS Foundation Trust,22/12/2021,(83110) Energy Costs,(id:42579) Central Services,MAITLAND ENGINEERING LTD,id:14652254  ,7644.00
Department of Health,Guys and St Thomas NHS Foundation Trust,17/12/2021,(84600) Establishment,(id:42558) Central Services,PARK PLAZA,id:14727840,    15580.00
Department of Health,Guys and St Thomas NHS Foundation Trust,03/12/2021,(83342) Premises Services,(id:492421) Central Services,PHS GROUP,id:14692737 , 973.71
Department of Health,Guys and St Thomas NHS Foundation Trust,17/12/2021,(83343) Premises Services,(id:492421) Central Services,VEOLIA ES (UK) LTD,id:14704435  , 809.29
Department of Health,Guys and St Thomas NHS Foundation Trust,03/12/2021,(83342) Premises Services,(id:2491419) Central Services,SRCL LTD,id:14692698 , 735.07
Department of Health,Guys and St Thomas NHS Foundation Trust,03/12/2021,(83342) Premises Services,(id:492501) Central Services,SRCL LTD,id:14692674  ,2168.10
Department of Health,Guys and St Thomas NHS Foundation Trust,22/12/2021,(83342) Premises Services,(id:492471) Central Services,SRCL LTD,id:14739514  ,2822.65
Department of Health,Guys and St Thomas NHS Foundation Trust,03/12/2021,(83342) Premises Services,(id:492471) Central Services,SRCL LTD,id:14692495  ,1937.70
Department of Health,Guys and St Thomas NHS Foundation Trust,03/12/2021,(83342) Premises Services,(id:492449) Central Services,SRCL LTD,id:14692699  ,1588.89
Department of Health,Guys and St Thomas NHS Foundation Trust,03/12/2021,(83342) Premises Services,(id:492482) Central Services,SRCL LTD,id:14692474  ,2441.40
Department of Health,Guys and St Thomas NHS Foundation Trust,23/12/2021,(83400) Office Equipment,(id:42599) Central Services,BELIMED  LIMITED,id:14748690 , 548.58
Department of Health,Guys and St Thomas NHS Foundation Trust,22/12/2021,(81100) Dressings,(id:42599) Central Services,ELIS UK LIMITED,id:14740818    , 763.40
Department of Health,Guys and St Thomas NHS Foundation Trust,22/12/2021,(81100) Dressings,(id:42599) Central Services,ELIS UK LIMITED,id:14735134    , 720.00
Department of Health,Guys and St Thomas NHS Foundation Trust,22/12/2021,(81100) Dressings,(id:42599) Central Services,ELIS UK LIMITED,id:14740899    , 718.20
Department of Health,Guys and St Thomas NHS Foundation Trust,22/12/2021,(81100) Dressings,(id:42599) Central Services,ELIS UK LIMITED,id:14734254    , 445.90
Department of Health,Guys and St Thomas NHS Foundation Trust,22/12/2021,(81100) Dressings,(id:42599) Central Services,ELIS UK LIMITED,id:14734914    , 445.90
Department of Health,Guys and St Thomas NHS Foundation Trust,22/12/2021,(81100) Dressings,(id:42599) Central Services,ELIS UK LIMITED,id:14735834    , 720.00
Department of Health,Guys and St Thomas NHS Foundation Trust,03/12/2021,(84500) Establishment,(id:42599) Central Services,CDP  PRINT MANAGEMENT,id:14673117    , 680.86
Department of Health,Guys and St Thomas NHS Foundation Trust,23/12/2021,(81200) Medical Surgical Supplies & Equipment,(id:42599) Central Services,BELIMED  LIMITED,id:14748836,1552.51
Department of Health,Guys and St Thomas NHS Foundation Trust,17/12/2021,(81200) Medical Surgical Supplies & Equipment,(id:42599) Central Services,SERCHEM LTD,id:14711825, 855.66
Department of Health,Guys and St Thomas NHS Foundation Trust,22/12/2021,(81200) Medical Surgical Supplies & Equipment,(id:42599) Central Services,FINGERPRINT MEDICAL LTD,id:14746515   ,1518.00
Department of Health,Guys and St Thomas NHS Foundation Trust,03/12/2021,(81200) Medical Surgical Supplies & Equipment,(id:2486419) Central Services,ROCIALLE MEDICAL LTD,id:14643454    , 580.92
Department of Health,Guys and St Thomas NHS Foundation Trust,10/12/2021,(83340) Premises Services,(id:42576) Central Services,BYWATERS (LEYTON) LTD,id:14662194, 708.56
Department of Health,Guys and St Thomas NHS Foundation Trust,22/12/2021,(84500) Establishment,(id:42576) Central Services,LES REED CLEARANCE SERVICE,id:14739674    , 600.00
Department of Health,Guys and St Thomas NHS Foundation Trust,23/12/2021,(83400) Office Equipment,(id:42540) Central Services,ASSIST SECURITY LIMITED,id:14749274    ,1260.00
Department of Health,Guys and St Thomas NHS Foundation Trust,23/12/2021,(83400) Office Equipment,(id:42540) Central Services,ASSIST SECURITY LIMITED,id:14749270    ,2700.00
Department of Health,Guys and St Thomas NHS Foundation Trust,23/12/2021,(83400) Office Equipment,(id:42540) Central Services,ASSIST SECURITY LIMITED,id:14749438    , 675.00
Department of Health,Guys and St Thomas NHS Foundation Trust,10/12/2021,(82000) Provisions & Kitchens,(id:42535) Central Services,HOSPITAL KOSHER MEALS SERVICE,id:14706577   , 604.20
Department of Health,Guys and St Thomas NHS Foundation Trust,23/12/2021,(82000) Provisions & Kitchens,(id:42535) Central Services,NHS SUPPLY CHAIN (MAIDSTONE),id:14704159    , 480.70
Department of Health,Guys and St Thomas NHS Foundation Trust,03/12/2021,(83400) Office Equipment,(id:42535) Central Services,NUTRIPACK LTD,id:14689514    ,2585.69
Department of Health,Guys and St Thomas NHS Foundation Trust,10/12/2021,(83400) Office Equipment,(id:42535) Central Services,NUTRIPACK LTD,id:14668295    ,1250.68
Department of Health,Guys and St Thomas NHS Foundation Trust,10/12/2021,(84500) Establishment,(id:42535) Central Services,SATO UK LTD,id:14686966    , 526.32
Department of Health,Guys and St Thomas NHS Foundation Trust,17/12/2021,(82000) Provisions & Kitchens,(id:42526) Central Services,PELICAN PROCUREMENT SERVICES LTD,id:14723819,    41481.41
Department of Health,Guys and St Thomas NHS Foundation Trust,03/12/2021,(83210) Water & Sewerage,(id:4934428) Asset Management,SMARTA WATER LTD,id:14692360    , 321.00
Department of Health,Guys and St Thomas NHS Foundation Trust,03/12/2021,(83120) Energy Costs,(id:4934428) Asset Management,CORONA ENERGY RETAIL 4 LTD,id:14689393   , 337.43
Department of Health,Guys and St Thomas NHS Foundation Trust,03/12/2021,(83220) Water & Sewerage,(id:4933420) Asset Management,SMARTA WATER LTD,id:14692360    ,  30.66
Department of Health,Guys and St Thomas NHS Foundation Trust,17/12/2021,(83110) Energy Costs,(id:4934422) Asset Management,EDF ENERGY,id:14723675    ,1701.74
Department of Health,Guys and St Thomas NHS Foundation Trust,17/12/2021,(83120) Energy Costs,(id:4934424) Asset Management,TOTAL GAS & POWER LIMITED,id:14723559    , 978.41
Department of Health,Guys and St Thomas NHS Foundation Trust,03/12/2021,(83220) Water & Sewerage,(id:4934425) Asset Management,SMARTA WATER LTD,id:14692360    , 163.45
Department of Health,Guys and St Thomas NHS Foundation Trust,03/12/2021,(83210) Water & Sewerage,(id:4932419) Asset Management,SMARTA WATER LTD,id:14692360    ,   4.50
Department of Health,Guys and St Thomas NHS Foundation Trust,17/12/2021,(83755) Rental under Operating Lease,(id:515409) Asset Management,COMMUNITY HEALTH PARTNERSHIPS,id:14711887,    74586.14
Department of Health,Guys and St Thomas NHS Foundation Trust,03/12/2021,(83755) Rental under Operating Lease,(id:5227419) Asset Management,COMMUNITY HEALTH PARTNERSHIPS,id:14671914    ,    44681.85
Department of Health,Guys and St Thomas NHS Foundation Trust,03/12/2021,(83880) Building & Engineering,(id:42559) Asset Management,WOODNUT CONSTRUCTION & DEVELOPMENT LTD,id:14647458   ,7128.00
Department of Health,Guys and St Thomas NHS Foundation Trust,10/12/2021,(83880) Building & Engineering,(id:42559) Asset Management,WOODNUT CONSTRUCTION & DEVELOPMENT LTD,id:14704535   , 504.00
Department of Health,Guys and St Thomas NHS Foundation Trust,03/12/2021,(83220) Water & Sewerage,(id:2591419) Asset Management,SMARTA WATER LTD,id:14692360    ,2278.35
Department of Health,Guys and St Thomas NHS Foundation Trust,17/12/2021,(89120) Other - Legal fees,(id:42624) Asset Management,BEACHCROFT LLP OFFICE ACCOUNT,id:14677514 ,2773.00
Department of Health,Guys and St Thomas NHS Foundation Trust,03/12/2021,(83710) Rates,(id:2096419) Asset Management,LONDON BOROUGH OF SOUTHWARK:04102500,id:13978554,    10371.83
Department of Health,Guys and St Thomas NHS Foundation Trust,17/12/2021,(83755) Rental under Operating Lease,(id:42620) Asset Management,LAMBERT SMITH HAMPTON,id:14711873    ,    70132.50
Department of Health,Guys and St Thomas NHS Foundation Trust,10/12/2021,(89110) Other - Insurance,(id:42621) Asset Management,THE ARCH COMPANY PROPERTIES LIMITED,id:14711864 ,1369.80
Department of Health,Guys and St Thomas NHS Foundation Trust,17/12/2021,(83765) Rent,(id:42621) Asset Management,THE ARCH COMPANY PROPERTIES LIMITED,id:14711848    , 644.98
Department of Health,Guys and St Thomas NHS Foundation Trust,03/12/2021,(83220) Water & Sewerage,(id:42621) Asset Management,SMARTA WATER LTD,id:14692360 ,  56.42
Department of Health,Guys and St Thomas NHS Foundation Trust,22/12/2021,(83755) Rental under Operating Lease,(id:446410) Asset Management,LAMBERT SMITH HAMPTON,id:14739861   ,3360.28
Department of Health,Guys and St Thomas NHS Foundation Trust,17/12/2021,(83765) Rent,(id:1552419) Asset Management,WORKMAN LLP,id:14729854 ,    80461.45
Department of Health,Guys and St Thomas NHS Foundation Trust,03/12/2021,(83880) Building & Engineering,(id:492601) Essentia Community Services,EXCEL HOME AND COMMERCIAL LTD.,id:12522419    ,1100.00
Department of Health,Guys and St Thomas NHS Foundation Trust,17/12/2021,(84000) Transport,(id:492417) Essentia Community Services,ALLSTAR BUSINESS SOLUTIONS LTD (ARVAL),id:14720699    , 763.59
Department of Health,Guys and St Thomas NHS Foundation Trust,03/12/2021,(83881) Building & Engineering,(id:1116423) Essentia Community Services,VERNACARE,id:14544635    , 365.13
Department of Health,Guys and St Thomas NHS Foundation Trust,10/12/2021,(83881) Building & Engineering,(id:1116423) Essentia Community Services,ETA PROJECTS LTD,id:14623498  , 621.43
Department of Health,Guys and St Thomas NHS Foundation Trust,03/12/2021,(83350) Premises Services,(id:1116423) Essentia Community Services,ASSIST SECURITY LIMITED,id:14690374,2520.00
Department of Health,Guys and St Thomas NHS Foundation Trust,22/12/2021,(83880) Building & Engineering,(id:1116423) Essentia Community Services,MASKOLD ENVIRONMENTAL LTD,id:14722670   , 743.00
Department of Health,Guys and St Thomas NHS Foundation Trust,10/12/2021,(83880) Building & Engineering,(id:1116421) Essentia Community Services,ARTIC BUILDING SERVICES LTD,id:14667934 , 971.63
Department of Health,Guys and St Thomas NHS Foundation Trust,17/12/2021,(83881) Building & Engineering,(id:1116422) Essentia Community Services,BELLS POWER LTD,id:14678154   ,1850.00
Department of Health,Guys and St Thomas NHS Foundation Trust,10/12/2021,(83881) Building & Engineering,(id:1116426) Essentia Community Services,SIEMSATEC LIMITED,id:14623154 , 243.93
Department of Health,Guys and St Thomas NHS Foundation Trust,22/12/2021,(83400) Office Equipment,(id:1649419) Essentia Community Services,RICHMONDS OF LONDON LTD,id:14717824 ,1022.76
Department of Health,Guys and St Thomas NHS Foundation Trust,23/12/2021,(83350) Premises Services,(id:1415419) Essentia Community Services,ASSIST SECURITY LIMITED,id:14749919,1770.00
Department of Health,Guys and St Thomas NHS Foundation Trust,23/12/2021,(83400) Office Equipment,(id:1116419) Essentia Community Services,NHS SUPPLY CHAIN (MAIDSTONE),id:14704159 ,  30.72
Department of Health,Guys and St Thomas NHS Foundation Trust,03/12/2021,(83360) Premises Services,(id:1116419) Essentia Community Services,INITIAL WASHROOM SOLUTIONS,id:14637840  , 188.76
Department of Health,Guys and St Thomas NHS Foundation Trust,17/12/2021,(83110) Energy Costs,(id:1116432) Essentia Community Services,WORKMAN LLP,id:14723699  ,1437.21
Department of Health,Guys and St Thomas NHS Foundation Trust,17/12/2021,(83360) Premises Services,(id:389410) Essentia Community Services,CITY & KENT CLEANING LTD,id:14711816,    10479.91
Department of Health,Guys and St Thomas NHS Foundation Trust,17/12/2021,(84000) Transport,(id:492597) Essentia Community Services,ALLSTAR BUSINESS SOLUTIONS LTD (ARVAL),id:14720699    ,  87.55
Department of Health,Guys and St Thomas NHS Foundation Trust,10/12/2021,(83881) Building & Engineering,(id:492553) Essentia Community Services,LIGHTNING PROTECTION TESTING UK,id:14673074   ,  90.00
Department of Health,Guys and St Thomas NHS Foundation Trust,03/12/2021,(83880) Building & Engineering,(id:492606) Essentia Community Services,LONDON & SURREY ROOFING LTD,id:14671336  ,2160.00
Department of Health,Guys and St Thomas NHS Foundation Trust,10/12/2021,(83880) Building & Engineering,(id:492606) Essentia Community Services,ROPTEC LTD,id:14672774    ,4400.00
Department of Health,Guys and St Thomas NHS Foundation Trust,10/12/2021,(83881) Building & Engineering,(id:492522) Essentia Community Services,SIEMSATEC LIMITED,id:14623154  , 243.93
Department of Health,Guys and St Thomas NHS Foundation Trust,03/12/2021,(83220) Water & Sewerage,(id:42627) Essentia Infrastructure,SMARTA WATER LTD,id:14692360    ,    21572.65
Department of Health,Guys and St Thomas NHS Foundation Trust,17/12/2021,(83120) Energy Costs,(id:1789419) Essentia Infrastructure,TOTAL GAS & POWER LIMITED,id:14723670  ,1514.19
Department of Health,Guys and St Thomas NHS Foundation Trust,22/12/2021,(55072) Admin & Clerical,(id:42615) Essentia COO,MMP CONSULTANCY LTD,id:14747155  ,1376.28
Department of Health,Guys and St Thomas NHS Foundation Trust,17/12/2021,(55102) Admin & Clerical,(id:42615) Essentia COO,THE MANAGEMENT RECRUITMENT GROUP LTD,id:14709618,3749.64
Department of Health,Guys and St Thomas NHS Foundation Trust,17/12/2021,(89000) Other - Training courses and conferences,(id:42593) Essentia COO,ETA PROJECTS LTD,id:14721237 ,2555.00
Department of Health,Guys and St Thomas NHS Foundation Trust,17/12/2021,(55082) Admin & Clerical,(id:42675) Essentia COO,MLC PARTNERS LTD,id:14726935,1973.70
Department of Health,Guys and St Thomas NHS Foundation Trust,17/12/2021,(83400) Office Equipment,(id:373411) Guys Site services,PELICAN PROCUREMENT SERVICES LTD,id:14723819  , 121.02
Department of Health,Guys and St Thomas NHS Foundation Trust,17/12/2021,(83400) Office Equipment,(id:42662) Guys Site services,MATRIX A I LTD,id:14723523 , 730.80
Department of Health,Guys and St Thomas NHS Foundation Trust,17/12/2021,(83880) Building & Engineering,(id:42662) Guys Site services,GRANTLEIGH LTD,id:14694134,1610.00
Department of Health,Guys and St Thomas NHS Foundation Trust,10/12/2021,(83400) Office Equipment,(id:42545) Guys Site services,BIOQUELL UK LTD,id:14689017,1891.14
Department of Health,Guys and St Thomas NHS Foundation Trust,22/12/2021,(83360) Premises Services,(id:42545) Guys Site services,CITY & KENT CLEANING LTD,id:14712734,    65322.85
Department of Health,Guys and St Thomas NHS Foundation Trust,17/12/2021,(83360) Premises Services,(id:4624419) Guys Site services,CITY & KENT CLEANING LTD,id:14712736   ,    11569.69
Department of Health,Guys and St Thomas NHS Foundation Trust,22/12/2021,(83360) Premises Services,(id:3022419) Guys Site services,CITY & KENT CLEANING LTD,id:14737674   ,6600.14
Department of Health,Guys and St Thomas NHS Foundation Trust,23/12/2021,(83880) Building & Engineering,(id:42631) Guys Site services,STATIC SYSTEMS GROUP PLC CIS5,id:14749134,7113.21
Department of Health,Guys and St Thomas NHS Foundation Trust,17/12/2021,(83880) Building & Engineering,(id:42631) Guys Site services,STEVE MORGAN,id:14723412  ,3150.00
Department of Health,Guys and St Thomas NHS Foundation Trust,03/12/2021,(83880) Building & Engineering,(id:42631) Guys Site services,ABBEY LIFTCARE LTD,id:14653154 ,2998.75
Department of Health,Guys and St Thomas NHS Foundation Trust,03/12/2021,(83880) Building & Engineering,(id:42631) Guys Site services,SCHNEIDER ELECTRIC,id:14653115 ,3425.00
Department of Health,Guys and St Thomas NHS Foundation Trust,10/12/2021,(83880) Building & Engineering,(id:42631) Guys Site services,MAITLAND ENGINEERING LTD,id:14646839,2571.00
Department of Health,Guys and St Thomas NHS Foundation Trust,22/12/2021,(83880) Building & Engineering,(id:42632) Guys Site services,AIREDALE INTERNATIONAL AIR CONDITIONING LTD,id:14718758 , 650.00
Department of Health,Guys and St Thomas NHS Foundation Trust,17/12/2021,(55652) Maintenance Staff,(id:42632) Guys Site services,MICHAEL PAGE INTERNATIONAL RECRUITMENT LTD,id:14726861  ,1156.06
Department of Health,Guys and St Thomas NHS Foundation Trust,17/12/2021,(55652) Maintenance Staff,(id:42632) Guys Site services,MICHAEL PAGE INTERNATIONAL RECRUITMENT LTD,id:14729445  ,1618.48
Department of Health,Guys and St Thomas NHS Foundation Trust,22/12/2021,(55652) Maintenance Staff,(id:42632) Guys Site services,MICHAEL PAGE INTERNATIONAL RECRUITMENT LTD,id:14747015  ,1156.06
Department of Health,Guys and St Thomas NHS Foundation Trust,22/12/2021,(55652) Maintenance Staff,(id:42632) Guys Site services,MICHAEL PAGE INTERNATIONAL RECRUITMENT LTD,id:14747091  ,1156.06
